Department Family,Entity,Date,Expense Type,Expense area,Supplier,Transaction Number,Amount,VAT registration Number
Department of Health,Salisbury NHS Foundation Trust,08/11/2019,ETS UNITARY CHARGE,Finance charges & Reserves,SALISBURY HEALTHCARE FACILITIES LTD,452,319843.75,
Department of Health,Salisbury NHS Foundation Trust,29/11/2019,HEALTHCARE - NHS TRUSTS,Clinical Support,ROYAL UNITED HOSPITAL BATH NHS TRUST,10363912,71006.15,
Department of Health,Salisbury NHS Foundation Trust,22/11/2019,COSTS TO OTHER LABS,Clinical Support,UNIVERSITY HOSPITAL SOUTHAMPTON NHS FOUNDATION TRUST,1015881,4906.04,
Department of Health,Salisbury NHS Foundation Trust,22/11/2019,COSTS TO OTHER LABS,Clinical Support,UNIVERSITY HOSPITAL SOUTHAMPTON NHS FOUNDATION TRUST,1015881,27177.69,
Department of Health,Salisbury NHS Foundation Trust,29/11/2019,ENERGY - ELECTRICITY,Facilities,SCOTTISH POWER,106560073,9869.02,
Department of Health,Salisbury NHS Foundation Trust,29/11/2019,ENERGY - ELECTRICITY,Facilities,SCOTTISH POWER,106560073,84297.13,
Department of Health,Salisbury NHS Foundation Trust,29/11/2019,ENERGY - ELECTRICITY,Facilities,SCOTTISH POWER,106560073,493.45,
Department of Health,Salisbury NHS Foundation Trust,29/11/2019,ENERGY - ELECTRICITY,Facilities,SCOTTISH POWER,106560073,16859.43,
Department of Health,Salisbury NHS Foundation Trust,29/11/2019,HEALTHCARE - NHS TRUSTS,Clinical Support,GREAT WESTERN HOSPITALS NHS FT,16985891,70544.45,
Department of Health,Salisbury NHS Foundation Trust,08/11/2019,HARD/SOFTWARE-SERV COMM NETWORKS,Facilities,PCCW GLOBAL NETWORKS (UK) LIMITED,5605,27708,
Department of Health,Salisbury NHS Foundation Trust,08/11/2019,HARD/SOFTWARE-SERV COMM NETWORKS,Facilities,PCCW GLOBAL NETWORKS (UK) LIMITED,5605,5541.6,
Department of Health,Salisbury NHS Foundation Trust,08/11/2019,DI & RADIO-RADIOLOGY EQUIPMENT,Clinical Support,NHS SUPPLY CHAIN,2010004527,51216.94,
Department of Health,Salisbury NHS Foundation Trust,08/11/2019,NETWORKING COSTS,Capital,REDWAY NETWORKS LTD,SIN051721,47369,
Department of Health,Salisbury NHS Foundation Trust,08/11/2019,NETWORKING COSTS,Capital,REDWAY NETWORKS LTD,SIN051721,14673,
Department of Health,Salisbury NHS Foundation Trust,08/11/2019,NETWORKING COSTS,Capital,REDWAY NETWORKS LTD,SIN051721,9473.8,
Department of Health,Salisbury NHS Foundation Trust,08/11/2019,NETWORKING COSTS,Capital,REDWAY NETWORKS LTD,SIN051721,2934.6,
Department of Health,Salisbury NHS Foundation Trust,08/11/2019,COMPUTER MAINTENANCE,Corporate - Finance & Procurement,ADVISEINC LTD,INV-0902,10000,
Department of Health,Salisbury NHS Foundation Trust,08/11/2019,COMPUTER MAINTENANCE,Corporate - Finance & Procurement,ADVISEINC LTD,INV-0902,12500,
Department of Health,Salisbury NHS Foundation Trust,08/11/2019,COMPUTER MAINTENANCE,Corporate - Finance & Procurement,ADVISEINC LTD,INV-0902,2000,
Department of Health,Salisbury NHS Foundation Trust,08/11/2019,COMPUTER MAINTENANCE,Corporate - Finance & Procurement,ADVISEINC LTD,INV-0902,2500,
Department of Health,Salisbury NHS Foundation Trust,15/11/2019,M&S EQUIPMENT - OTHER,Clinical Support,COBALT HEALTH,45618,26571.43,
Department of Health,Salisbury NHS Foundation Trust,15/11/2019,HARD/SOFTWARE-CONTRACTS,Corporate - Transformation & Informatics,NAUTILUS CONSULTING LIMITED,INV-1161,16000,
Department of Health,Salisbury NHS Foundation Trust,15/11/2019,HARD/SOFTWARE-CONTRACTS,Corporate - Transformation & Informatics,NAUTILUS CONSULTING LIMITED,INV-1161,16000,
Department of Health,Salisbury NHS Foundation Trust,15/11/2019,SURGICAL INSTRUMENTS - DISPOSABLE,Medicine,NHS LOGISTICS,1010146968,15.78,
Department of Health,Salisbury NHS Foundation Trust,15/11/2019,DRESSINGS  -  PROCEDURE PACKS,Corporate - Finance & Procurement,NHS LOGISTICS,1010146968,152.63,
Department of Health,Salisbury NHS Foundation Trust,15/11/2019,DRESSINGS  -  PROCEDURE PACKS,Corporate - Finance & Procurement,NHS LOGISTICS,1010146968,281.23,
Department of Health,Salisbury NHS Foundation Trust,15/11/2019,DRESSINGS  -  PROCEDURE PACKS,Corporate - Finance & Procurement,NHS LOGISTICS,1010146968,164.47,
Department of Health,Salisbury NHS Foundation Trust,15/11/2019,DRESSINGS  -  PROCEDURE PACKS,Corporate - Finance & Procurement,NHS LOGISTICS,1010146968,228,
Department of Health,Salisbury NHS Foundation Trust,15/11/2019,DRESSINGS  -  PROCEDURE PACKS,Corporate - Finance & Procurement,NHS LOGISTICS,1010146968,121.43,
Department of Health,Salisbury NHS Foundation Trust,15/11/2019,DRESSINGS  -  PROCEDURE PACKS,Corporate - Finance & Procurement,NHS LOGISTICS,1010146968,99.8,
Department of Health,Salisbury NHS Foundation Trust,15/11/2019,DRESSINGS  -  PROCEDURE PACKS,Corporate - Finance & Procurement,NHS LOGISTICS,1010146968,81.29,
Department of Health,Salisbury NHS Foundation Trust,15/11/2019,DRESSINGS  -  PROCEDURE PACKS,Corporate - Finance & Procurement,NHS LOGISTICS,1010146968,85.2,
Department of Health,Salisbury NHS Foundation Trust,15/11/2019,DRESSINGS  -  PROCEDURE PACKS,Corporate - Finance & Procurement,NHS LOGISTICS,1010146968,182.42,
Department of Health,Salisbury NHS Foundation Trust,15/11/2019,LAB EQUIP-LABORATORY APPARATUS,Clinical Support,NHS LOGISTICS,1010146968,250,
Department of Health,Salisbury NHS Foundation Trust,15/11/2019,MEDSURGCONS-OTHER,Medicine,NHS LOGISTICS,1010146968,26.65,
Department of Health,Salisbury NHS Foundation Trust,15/11/2019,MEDSURGCONS-OTHER,Surgery,NHS LOGISTICS,1010146968,90,
Department of Health,Salisbury NHS Foundation Trust,15/11/2019,MEDSURGCONS-OTHER,Medicine,NHS LOGISTICS,1010146968,208.3,
Department of Health,Salisbury NHS Foundation Trust,15/11/2019,ADULTS HEARING AIDS,Surgery,NHS LOGISTICS,1010146968,2366,
Department of Health,Salisbury NHS Foundation Trust,15/11/2019,ADULTS HEARING AIDS,Surgery,NHS LOGISTICS,1010146968,40,
Department of Health,Salisbury NHS Foundation Trust,15/11/2019,PAPER GENERAL STATIONERY SUNDRIES,Corporate - Operations,NHS LOGISTICS,1010146968,48.78,
Department of Health,Salisbury NHS Foundation Trust,15/11/2019,PAPER GENERAL STATIONERY SUNDRIES,Clinical Support,NHS LOGISTICS,1010146968,24.39,
Department of Health,Salisbury NHS Foundation Trust,15/11/2019,ELECTRICAL EQUIPMENT,Surgery,NHS LOGISTICS,1010146968,5.04,
Department of Health,Salisbury NHS Foundation Trust,15/11/2019,ADULTS HEARING AIDS,Surgery,NHS LOGISTICS,1010146968,97.39,
Department of Health,Salisbury NHS Foundation Trust,15/11/2019,PAPER GENERAL STATIONERY SUNDRIES,Clinical Support,NHS LOGISTICS,1010146968,16.26,
Department of Health,Salisbury NHS Foundation Trust,15/11/2019,MED PROSTH - OTHER,Surgery,NHS LOGISTICS,1010146968,440.88,
Department of Health,Salisbury NHS Foundation Trust,15/11/2019,OPTICAL - OTHER,Surgery,NHS LOGISTICS,1010146968,288,
Department of Health,Salisbury NHS Foundation Trust,15/11/2019,MEDSURGCONS-OTHER,Medicine,NHS LOGISTICS,1010146968,850,
Department of Health,Salisbury NHS Foundation Trust,15/11/2019,DRESSINGS - PRE STERILE,Medicine,NHS LOGISTICS,1010146968,1.58,
Department of Health,Salisbury NHS Foundation Trust,15/11/2019,HEALTHCARE - WEAR,Surgery,NHS LOGISTICS,1010146968,10.85,
Department of Health,Salisbury NHS Foundation Trust,15/11/2019,PAPER GENERAL STATIONERY SUNDRIES,Musculo-Skeletal,NHS LOGISTICS,1010146968,16.26,
Department of Health,Salisbury NHS Foundation Trust,15/11/2019,DRESSINGS - PRE STERILE,Medicine,NHS LOGISTICS,1010146968,24.51,
Department of Health,Salisbury NHS Foundation Trust,15/11/2019,DRESSINGS - PRE STERILE,Medicine,NHS LOGISTICS,1010146968,4.62,
Department of Health,Salisbury NHS Foundation Trust,15/11/2019,DRESSINGS - PRE STERILE,Medicine,NHS LOGISTICS,1010146968,12.55,
Department of Health,Salisbury NHS Foundation Trust,15/11/2019,SURGICAL INSTRUMENTS - DISPOSABLE,Medicine,NHS LOGISTICS,1010146968,13.5,
Department of Health,Salisbury NHS Foundation Trust,15/11/2019,DRESSINGS - PRE STERILE,Medicine,NHS LOGISTICS,1010146968,29.56,
Department of Health,Salisbury NHS Foundation Trust,15/11/2019,DRESSINGS - PRE STERILE,Medicine,NHS LOGISTICS,1010146968,14.78,
Department of Health,Salisbury NHS Foundation Trust,15/11/2019,DRESSINGS - PRE STERILE,Medicine,NHS LOGISTICS,1010146968,4.48,
Department of Health,Salisbury NHS Foundation Trust,15/11/2019,TISSUES HAND TOWELS & TOILET PAPER,Clinical Support,NHS LOGISTICS,1010146968,5.71,
Department of Health,Salisbury NHS Foundation Trust,15/11/2019,PAPER GENERAL STATIONERY SUNDRIES,Clinical Support,NHS LOGISTICS,1010146968,16.26,
Department of Health,Salisbury NHS Foundation Trust,15/11/2019,TOILETRIES PERSONAL HYGIENE PRODUCT,Clinical Support,NHS LOGISTICS,1010146968,2.7,
Department of Health,Salisbury NHS Foundation Trust,15/11/2019,PAPER GENERAL STATIONERY SUNDRIES,Clinical Support,NHS LOGISTICS,1010146968,16.26,
Department of Health,Salisbury NHS Foundation Trust,15/11/2019,PAPER GENERAL STATIONERY SUNDRIES,Clinical Support,NHS LOGISTICS,1010146968,64.96,
Department of Health,Salisbury NHS Foundation Trust,15/11/2019,DRESSINGS - PRE STERILE,Musculo-Skeletal,NHS LOGISTICS,1010146968,2.79,
Department of Health,Salisbury NHS Foundation Trust,15/11/2019,DRESSINGS - PRE STERILE,Musculo-Skeletal,NHS LOGISTICS,1010146968,45.22,
Department of Health,Salisbury NHS Foundation Trust,15/11/2019,DRESSINGS - PRE STERILE,Musculo-Skeletal,NHS LOGISTICS,1010146968,27.61,
Department of Health,Salisbury NHS Foundation Trust,15/11/2019,SURGICAL INSTRUMENTS - DISPOSABLE,Musculo-Skeletal,NHS LOGISTICS,1010146968,39.6,
Department of Health,Salisbury NHS Foundation Trust,15/11/2019,MEDSURGCONS-SUTURES,Musculo-Skeletal,NHS LOGISTICS,1010146968,55,
Department of Health,Salisbury NHS Foundation Trust,15/11/2019,MEDSURGCONS-SUTURES,Musculo-Skeletal,NHS LOGISTICS,1010146968,44.66,
Department of Health,Salisbury NHS Foundation Trust,15/11/2019,MEDSURGCONS-SUTURES,Musculo-Skeletal,NHS LOGISTICS,1010146968,66.33,
Department of Health,Salisbury NHS Foundation Trust,15/11/2019,MEDSURGCONS-SUTURES,Musculo-Skeletal,NHS LOGISTICS,1010146968,71.24,
Department of Health,Salisbury NHS Foundation Trust,15/11/2019,DRESSINGS - PRE STERILE,Musculo-Skeletal,NHS LOGISTICS,1010146968,6.63,
Department of Health,Salisbury NHS Foundation Trust,15/11/2019,DRESSINGS - PRE STERILE,Musculo-Skeletal,NHS LOGISTICS,1010146968,118.8,
Department of Health,Salisbury NHS Foundation Trust,15/11/2019,MEDSURGCONS-OTHER,Surgery,NHS LOGISTICS,1010146968,26.65,
Department of Health,Salisbury NHS Foundation Trust,15/11/2019,DRESSINGS - PRE STERILE,Surgery,NHS LOGISTICS,1010146968,111.24,
Department of Health,Salisbury NHS Foundation Trust,15/11/2019,DRESSINGS - PRE STERILE,Surgery,NHS LOGISTICS,1010146968,7.97,
Department of Health,Salisbury NHS Foundation Trust,15/11/2019,OTHER MEDICAL SUPPLIES,Clinical Support,NHS LOGISTICS,1010146968,13.5,
Department of Health,Salisbury NHS Foundation Trust,15/11/2019,MEDSURGCONS-OTHER,Medicine,NHS LOGISTICS,1010146968,200,
Department of Health,Salisbury NHS Foundation Trust,15/11/2019,MED PROSTH - PACEMAKERS,Medicine,NHS LOGISTICS,1010146968,60,
Department of Health,Salisbury NHS Foundation Trust,15/11/2019,MED PROSTH - PACEMAKERS,Medicine,NHS LOGISTICS,1010146968,660,
Department of Health,Salisbury NHS Foundation Trust,15/11/2019,MEDSURGCONS-OTHER,Medicine,NHS LOGISTICS,1010146968,215,
Department of Health,Salisbury NHS Foundation Trust,15/11/2019,MEDSURGCONS-OTHER,Medicine,NHS LOGISTICS,1010146968,215,
Department of Health,Salisbury NHS Foundation Trust,15/11/2019,MED PROSTH - PACEMAKERS,Medicine,NHS LOGISTICS,1010146968,550,
Department of Health,Salisbury NHS Foundation Trust,15/11/2019,BEVERAGES & AMBIENT FOOD,Medicine,NHS LOGISTICS,1010146968,7.8,
Department of Health,Salisbury NHS Foundation Trust,15/11/2019,BEVERAGES & AMBIENT FOOD,Medicine,NHS LOGISTICS,1010146968,2.88,
Department of Health,Salisbury NHS Foundation Trust,15/11/2019,DRESSINGS - PRE STERILE,Surgery,NHS LOGISTICS,1010146968,81.9,
Department of Health,Salisbury NHS Foundation Trust,15/11/2019,DRESSINGS - PRE STERILE,Surgery,NHS LOGISTICS,1010146968,67.43,
Department of Health,Salisbury NHS Foundation Trust,15/11/2019,PAPER GENERAL STATIONERY SUNDRIES,Surgery,NHS LOGISTICS,1010146968,32.52,
Department of Health,Salisbury NHS Foundation Trust,15/11/2019,MEDSURGCONS-OTHER,Surgery,NHS LOGISTICS,1010146968,44.9,
Department of Health,Salisbury NHS Foundation Trust,15/11/2019,MEDSURGCONS-SUTURES,Surgery,NHS LOGISTICS,1010146968,145.48,
Department of Health,Salisbury NHS Foundation Trust,15/11/2019,MEDSURGCONS-LAPAROSCOPIC EQUIPMENT,Surgery,NHS LOGISTICS,1010146968,180,
Department of Health,Salisbury NHS Foundation Trust,15/11/2019,PATIENTS INCONTINENCE,Clinical Support,NHS LOGISTICS,1010146968,6,
Department of Health,Salisbury NHS Foundation Trust,15/11/2019,OTHER MEDICAL SUPPLIES,Clinical Support,NHS LOGISTICS,1010146968,52.8,
Department of Health,Salisbury NHS Foundation Trust,15/11/2019,MEDSURGCONS-OTHER,Clinical Support,NHS LOGISTICS,1010146968,29.75,
Department of Health,Salisbury NHS Foundation Trust,15/11/2019,M & S EQUIPELECTEQUIPINST - OTHER,Clinical Support,NHS LOGISTICS,1010146968,40,
Department of Health,Salisbury NHS Foundation Trust,15/11/2019,MEDSURGCONS-SUTURES,Clinical Support,NHS LOGISTICS,1010146968,30.51,
Department of Health,Salisbury NHS Foundation Trust,15/11/2019,RENAL CONSUMEABLES,Surgery,NHS LOGISTICS,1010146968,250,
Department of Health,Salisbury NHS Foundation Trust,15/11/2019,TUBES,Surgery,NHS LOGISTICS,1010146968,373.57,
Department of Health,Salisbury NHS Foundation Trust,15/11/2019,DISPOSABLE THEATRE DRAPES WIPES,Clinical Support,NHS LOGISTICS,1010146968,5.44,
Department of Health,Salisbury NHS Foundation Trust,15/11/2019,ADULTS HEARING AIDS,Surgery,NHS LOGISTICS,1010146968,2366,
Department of Health,Salisbury NHS Foundation Trust,15/11/2019,M & S EQUIPELECTEQUIPINST - OTHER,Clinical Support,NHS LOGISTICS,1010146968,40.11,
Department of Health,Salisbury NHS Foundation Trust,15/11/2019,MEDSURGCONS-OTHER,Clinical Support,NHS LOGISTICS,1010146968,28.4,
Department of Health,Salisbury NHS Foundation Trust,15/11/2019,TISSUES HAND TOWELS & TOILET PAPER,Medicine,NHS LOGISTICS,1010146968,0.6,
Department of Health,Salisbury NHS Foundation Trust,15/11/2019,PAPER GENERAL STATIONERY SUNDRIES,Medicine,NHS LOGISTICS,1010146968,16.26,
Department of Health,Salisbury NHS Foundation Trust,15/11/2019,MED PROSTH - PACEMAKERS,Medicine,NHS LOGISTICS,1010146968,3300,
Department of Health,Salisbury NHS Foundation Trust,15/11/2019,MED PROSTH - OTHER,Medicine,NHS LOGISTICS,1010146968,7132,
Department of Health,Salisbury NHS Foundation Trust,15/11/2019,MED PROSTH - PACEMAKERS,Medicine,NHS LOGISTICS,1010146968,90,
Department of Health,Salisbury NHS Foundation Trust,15/11/2019,MED PROSTH - PACEMAKERS,Medicine,NHS LOGISTICS,1010146968,660,
Department of Health,Salisbury NHS Foundation Trust,15/11/2019,MEDSURGCONS-OTHER,Medicine,NHS LOGISTICS,1010146968,765,
Department of Health,Salisbury NHS Foundation Trust,15/11/2019,MEDSURGCONS-OTHER,Medicine,NHS LOGISTICS,1010146968,430,
Department of Health,Salisbury NHS Foundation Trust,15/11/2019,MEDSURGCONS-OTHER,Medicine,NHS LOGISTICS,1010146968,215,
Department of Health,Salisbury NHS Foundation Trust,15/11/2019,MEDSURGCONS-OTHER,Medicine,NHS LOGISTICS,1010146968,300,
Department of Health,Salisbury NHS Foundation Trust,15/11/2019,MEDSURGCONS-SUTURES,Surgery,NHS LOGISTICS,1010146968,98.8,
Department of Health,Salisbury NHS Foundation Trust,15/11/2019,MEDSURGCONS-OTHER,Musculo-Skeletal,NHS LOGISTICS,1010146968,318,
Department of Health,Salisbury NHS Foundation Trust,15/11/2019,ADULTS HEARING AIDS,Surgery,NHS LOGISTICS,1010146968,318,
Department of Health,Salisbury NHS Foundation Trust,15/11/2019,OTHER MEDICAL SUPPLIES,Medicine,NHS LOGISTICS,1010146968,4.6,
Department of Health,Salisbury NHS Foundation Trust,15/11/2019,TISSUES HAND TOWELS & TOILET PAPER,Medicine,NHS LOGISTICS,1010146968,2.44,
Department of Health,Salisbury NHS Foundation Trust,15/11/2019,DRESSINGS - PRE STERILE,Medicine,NHS LOGISTICS,1010146968,11.9,
Department of Health,Salisbury NHS Foundation Trust,15/11/2019,TOILETRIES PERSONAL HYGIENE PRODUCT,Medicine,NHS LOGISTICS,1010146968,9.16,
Department of Health,Salisbury NHS Foundation Trust,15/11/2019,MEDSURGCONS-OTHER,Medicine,NHS LOGISTICS,1010146968,22.5,
Department of Health,Salisbury NHS Foundation Trust,15/11/2019,OTHER MEDICAL SUPPLIES,Medicine,NHS LOGISTICS,1010146968,1.34,
Department of Health,Salisbury NHS Foundation Trust,15/11/2019,MEDSURGCONS-OTHER,Medicine,NHS LOGISTICS,1010146968,6.4,
Department of Health,Salisbury NHS Foundation Trust,15/11/2019,DISPOSABLE THEATRE DRAPES WIPES,Medicine,NHS LOGISTICS,1010146968,2.93,
Department of Health,Salisbury NHS Foundation Trust,15/11/2019,DRESSINGS - PRE STERILE,Clinical Support,NHS LOGISTICS,1010146968,3.4,
Department of Health,Salisbury NHS Foundation Trust,15/11/2019,OTHER MEDICAL SUPPLIES,Clinical Support,NHS LOGISTICS,1010146968,71.24,
Department of Health,Salisbury NHS Foundation Trust,15/11/2019,COOKING & KITCHEN UTENSILS,Clinical Support,NHS LOGISTICS,1010146968,2.02,
Department of Health,Salisbury NHS Foundation Trust,15/11/2019,MEDSURGCONS-OTHER,Clinical Support,NHS LOGISTICS,1010146968,77.8,
Department of Health,Salisbury NHS Foundation Trust,15/11/2019,DRUGS,Clinical Support,NHS LOGISTICS,1010146968,9.5,
Department of Health,Salisbury NHS Foundation Trust,15/11/2019,BAGS SACKS - OTHER,Facilities,NHS LOGISTICS,1010146968,18.3,
Department of Health,Salisbury NHS Foundation Trust,15/11/2019,BAGS SACKS - OTHER,Facilities,NHS LOGISTICS,1010146968,49.5,
Department of Health,Salisbury NHS Foundation Trust,15/11/2019,BAGS SACKS - OTHER,Facilities,NHS LOGISTICS,1010146968,5.55,
Department of Health,Salisbury NHS Foundation Trust,15/11/2019,BAGS SACKS - OTHER,Facilities,NHS LOGISTICS,1010146968,135.2,
Department of Health,Salisbury NHS Foundation Trust,15/11/2019,BAGS SACKS - OTHER,Facilities,NHS LOGISTICS,1010146968,19.68,
Department of Health,Salisbury NHS Foundation Trust,15/11/2019,BAGS SACKS - OTHER,Facilities,NHS LOGISTICS,1010146968,12.18,
Department of Health,Salisbury NHS Foundation Trust,15/11/2019,TOILETRIES PERSONAL HYGIENE PRODUCT,Facilities,NHS LOGISTICS,1010146968,216,
Department of Health,Salisbury NHS Foundation Trust,15/11/2019,LIQUID REFRESHMENTS,Facilities,NHS LOGISTICS,1010146968,5.4,
Department of Health,Salisbury NHS Foundation Trust,15/11/2019,CLEANING MATERIAL PRODUCTS SUNDRIES,Facilities,NHS LOGISTICS,1010146968,36.48,
Department of Health,Salisbury NHS Foundation Trust,15/11/2019,MEDSURGCONS-OTHER,Facilities,NHS LOGISTICS,1010146968,35.8,
Department of Health,Salisbury NHS Foundation Trust,15/11/2019,M & S EQUIPELECTEQUIPINST - OTHER,Facilities,NHS LOGISTICS,1010146968,8.1,
Department of Health,Salisbury NHS Foundation Trust,15/11/2019,M & S EQUIPELECTEQUIPINST - OTHER,Facilities,NHS LOGISTICS,1010146968,188.16,
Department of Health,Salisbury NHS Foundation Trust,15/11/2019,CLEANING MATERIAL PRODUCTS SUNDRIES,Facilities,NHS LOGISTICS,1010146968,73.75,
Department of Health,Salisbury NHS Foundation Trust,15/11/2019,BAGS SACKS - OTHER,Facilities,NHS LOGISTICS,1010146968,19.76,
Department of Health,Salisbury NHS Foundation Trust,15/11/2019,CLEANING MATERIAL PRODUCTS SUNDRIES,Facilities,NHS LOGISTICS,1010146968,42.48,
Department of Health,Salisbury NHS Foundation Trust,15/11/2019,TISSUES HAND TOWELS & TOILET PAPER,Facilities,NHS LOGISTICS,1010146968,757.92,
Department of Health,Salisbury NHS Foundation Trust,15/11/2019,CLEANING MATERIAL PRODUCTS SUNDRIES,Facilities,NHS LOGISTICS,1010146968,20.5,
Department of Health,Salisbury NHS Foundation Trust,15/11/2019,DISPOSABLE THEATRE DRAPES WIPES,Facilities,NHS LOGISTICS,1010146968,73.92,
Department of Health,Salisbury NHS Foundation Trust,15/11/2019,DRESSINGS - PRE STERILE,Medicine,NHS LOGISTICS,1010146968,232.5,
Department of Health,Salisbury NHS Foundation Trust,15/11/2019,BEVERAGES & AMBIENT FOOD,Medicine,NHS LOGISTICS,1010146968,7.8,
Department of Health,Salisbury NHS Foundation Trust,15/11/2019,MEDSURGCONS-OTHER,Medicine,NHS LOGISTICS,1010146968,7.94,
Department of Health,Salisbury NHS Foundation Trust,15/11/2019,BEVERAGES & AMBIENT FOOD,Medicine,NHS LOGISTICS,1010146968,0.97,
Department of Health,Salisbury NHS Foundation Trust,15/11/2019,DRESSINGS - PRE STERILE,Medicine,NHS LOGISTICS,1010146968,11.9,
Department of Health,Salisbury NHS Foundation Trust,15/11/2019,MEDSURGCONS-OTHER,Medicine,NHS LOGISTICS,1010146968,44.9,
Department of Health,Salisbury NHS Foundation Trust,15/11/2019,MEDSURGCONS-OTHER,Medicine,NHS LOGISTICS,1010146968,5.43,
Department of Health,Salisbury NHS Foundation Trust,15/11/2019,MEDSURGCONS-OTHER,Medicine,NHS LOGISTICS,1010146968,23,
Department of Health,Salisbury NHS Foundation Trust,15/11/2019,PATIENTS INCONTINENCE,Medicine,NHS LOGISTICS,1010146968,11.24,
Department of Health,Salisbury NHS Foundation Trust,15/11/2019,PATIENT APPLIANCES,Medicine,NHS LOGISTICS,1010146968,7.2,
Department of Health,Salisbury NHS Foundation Trust,15/11/2019,BEVERAGES & AMBIENT FOOD,Medicine,NHS LOGISTICS,1010146968,2.16,
Department of Health,Salisbury NHS Foundation Trust,15/11/2019,BEVERAGES & AMBIENT FOOD,Medicine,NHS LOGISTICS,1010146968,2.88,
Department of Health,Salisbury NHS Foundation Trust,15/11/2019,MEDSURGCONS-OTHER,Medicine,NHS LOGISTICS,1010146968,25.56,
Department of Health,Salisbury NHS Foundation Trust,15/11/2019,NON DISPOSABLE BED LINEN,Medicine,NHS LOGISTICS,1010146968,8.46,
Department of Health,Salisbury NHS Foundation Trust,15/11/2019,DISPOSABLE THEATRE DRAPES WIPES,Medicine,NHS LOGISTICS,1010146968,2.93,
Department of Health,Salisbury NHS Foundation Trust,15/11/2019,M & S EQUIPELECTEQUIPINST - OTHER,Clinical Support,NHS LOGISTICS,1010146968,3.66,
Department of Health,Salisbury NHS Foundation Trust,15/11/2019,TISSUES HAND TOWELS & TOILET PAPER,Clinical Support,NHS LOGISTICS,1010146968,21.06,
Department of Health,Salisbury NHS Foundation Trust,15/11/2019,MEDSURGCONS-OTHER,Clinical Support,NHS LOGISTICS,1010146968,3.38,
Department of Health,Salisbury NHS Foundation Trust,15/11/2019,MEDSURGCONS-OTHER,Clinical Support,NHS LOGISTICS,1010146968,2.39,
Department of Health,Salisbury NHS Foundation Trust,15/11/2019,DRESSINGS  -  PROCEDURE PACKS,Clinical Support,NHS LOGISTICS,1010146968,3.2,
Department of Health,Salisbury NHS Foundation Trust,15/11/2019,OTHER MEDICAL SUPPLIES,Clinical Support,NHS LOGISTICS,1010146968,3,
Department of Health,Salisbury NHS Foundation Trust,15/11/2019,MEDSURGCONS-OTHER,Clinical Support,NHS LOGISTICS,1010146968,4.77,
Department of Health,Salisbury NHS Foundation Trust,15/11/2019,SERVICES FROM NHS BODIES,Clinical Support,NHS LOGISTICS,1010146968,4.32,
Department of Health,Salisbury NHS Foundation Trust,15/11/2019,DRESSINGS - PRE STERILE,Clinical Support,NHS LOGISTICS,1010146968,2.16,
Department of Health,Salisbury NHS Foundation Trust,15/11/2019,NON DISPOSABLE BED LINEN,Clinical Support,NHS LOGISTICS,1010146968,11.28,
Department of Health,Salisbury NHS Foundation Trust,15/11/2019,DISPOSABLE THEATRE DRAPES WIPES,Clinical Support,NHS LOGISTICS,1010146968,2.93,
Department of Health,Salisbury NHS Foundation Trust,15/11/2019,DISPOSABLE THEATRE DRAPES WIPES,Clinical Support,NHS LOGISTICS,1010146968,5.44,
Department of Health,Salisbury NHS Foundation Trust,15/11/2019,ADULTS HEARING AIDS,Surgery,NHS LOGISTICS,1010146968,627.9,
Department of Health,Salisbury NHS Foundation Trust,15/11/2019,PATIENTS BABY WEAR,Medicine,NHS LOGISTICS,1010146968,19.98,
Department of Health,Salisbury NHS Foundation Trust,15/11/2019,PATIENTS BABY WEAR,Medicine,NHS LOGISTICS,1010146968,6.17,
Department of Health,Salisbury NHS Foundation Trust,15/11/2019,OTHER MEDICAL SUPPLIES,Medicine,NHS LOGISTICS,1010146968,13.8,
Department of Health,Salisbury NHS Foundation Trust,15/11/2019,BAGS SACKS - OTHER,Medicine,NHS LOGISTICS,1010146968,3.2,
Department of Health,Salisbury NHS Foundation Trust,15/11/2019,DRESSINGS - PRE STERILE,Medicine,NHS LOGISTICS,1010146968,7.64,
Department of Health,Salisbury NHS Foundation Trust,15/11/2019,M & S EQUIPELECTEQUIPINST - OTHER,Medicine,NHS LOGISTICS,1010146968,6.76,
Department of Health,Salisbury NHS Foundation Trust,15/11/2019,MEDSURGCONS-OTHER,Medicine,NHS LOGISTICS,1010146968,7.94,
Department of Health,Salisbury NHS Foundation Trust,15/11/2019,M & S EQUIPELECTEQUIPINST - OTHER,Medicine,NHS LOGISTICS,1010146968,3.66,
Department of Health,Salisbury NHS Foundation Trust,15/11/2019,TISSUES HAND TOWELS & TOILET PAPER,Medicine,NHS LOGISTICS,1010146968,2.44,
Department of Health,Salisbury NHS Foundation Trust,15/11/2019,DRESSINGS - PRE STERILE,Medicine,NHS LOGISTICS,1010146968,1.45,
Department of Health,Salisbury NHS Foundation Trust,15/11/2019,TISSUES HAND TOWELS & TOILET PAPER,Medicine,NHS LOGISTICS,1010146968,3,
Department of Health,Salisbury NHS Foundation Trust,15/11/2019,PATIENTS INCONTINENCE,Medicine,NHS LOGISTICS,1010146968,1.98,
Department of Health,Salisbury NHS Foundation Trust,15/11/2019,PATIENTS INCONTINENCE,Medicine,NHS LOGISTICS,1010146968,11.8,
Department of Health,Salisbury NHS Foundation Trust,15/11/2019,M & S EQUIPELECTEQUIPINST - OTHER,Medicine,NHS LOGISTICS,1010146968,11.76,
Department of Health,Salisbury NHS Foundation Trust,15/11/2019,MEDSURGCONS-OTHER,Medicine,NHS LOGISTICS,1010146968,3.38,
Department of Health,Salisbury NHS Foundation Trust,15/11/2019,TUBES,Medicine,NHS LOGISTICS,1010146968,5.82,
Department of Health,Salisbury NHS Foundation Trust,15/11/2019,DRESSINGS - PRE STERILE,Medicine,NHS LOGISTICS,1010146968,1.48,
Department of Health,Salisbury NHS Foundation Trust,15/11/2019,ANAESTHETIC EQUIPMENT ACCESSORIES,Medicine,NHS LOGISTICS,1010146968,2.4,
Department of Health,Salisbury NHS Foundation Trust,15/11/2019,DRESSINGS  -  PROCEDURE PACKS,Medicine,NHS LOGISTICS,1010146968,1.05,
Department of Health,Salisbury NHS Foundation Trust,15/11/2019,COOKING & KITCHEN UTENSILS,Medicine,NHS LOGISTICS,1010146968,8.28,
Department of Health,Salisbury NHS Foundation Trust,15/11/2019,MEDSURGCONS-OTHER,Medicine,NHS LOGISTICS,1010146968,10,
Department of Health,Salisbury NHS Foundation Trust,15/11/2019,MEDSURGCONS-OTHER,Medicine,NHS LOGISTICS,1010146968,5.1,
Department of Health,Salisbury NHS Foundation Trust,15/11/2019,OTHER MEDICAL SUPPLIES,Medicine,NHS LOGISTICS,1010146968,7.12,
Department of Health,Salisbury NHS Foundation Trust,15/11/2019,SURGICAL INSTRUMENTS - DISPOSABLE,Medicine,NHS LOGISTICS,1010146968,2.25,
Department of Health,Salisbury NHS Foundation Trust,15/11/2019,PATIENTS INCONTINENCE,Medicine,NHS LOGISTICS,1010146968,33.72,
Department of Health,Salisbury NHS Foundation Trust,15/11/2019,PATIENTS INCONTINENCE,Medicine,NHS LOGISTICS,1010146968,2.25,
Department of Health,Salisbury NHS Foundation Trust,15/11/2019,PATIENT APPLIANCES,Medicine,NHS LOGISTICS,1010146968,2.75,
Department of Health,Salisbury NHS Foundation Trust,15/11/2019,PATIENT APPLIANCES,Medicine,NHS LOGISTICS,1010146968,2.75,
Department of Health,Salisbury NHS Foundation Trust,15/11/2019,PATIENT APPLIANCES,Medicine,NHS LOGISTICS,1010146968,3.6,
Department of Health,Salisbury NHS Foundation Trust,15/11/2019,TISSUES HAND TOWELS & TOILET PAPER,Medicine,NHS LOGISTICS,1010146968,0.6,
Department of Health,Salisbury NHS Foundation Trust,15/11/2019,TUBES,Medicine,NHS LOGISTICS,1010146968,2.74,
Department of Health,Salisbury NHS Foundation Trust,15/11/2019,DRESSINGS - PRE STERILE,Medicine,NHS LOGISTICS,1010146968,7.66,
Department of Health,Salisbury NHS Foundation Trust,15/11/2019,NON DISPOSABLE BED LINEN,Medicine,NHS LOGISTICS,1010146968,22.56,
Department of Health,Salisbury NHS Foundation Trust,15/11/2019,DISPOSABLE THEATRE DRAPES WIPES,Medicine,NHS LOGISTICS,1010146968,21.2,
Department of Health,Salisbury NHS Foundation Trust,15/11/2019,MEDSURGCONS-OTHER,Surgery,NHS LOGISTICS,1010146968,7.17,
Department of Health,Salisbury NHS Foundation Trust,15/11/2019,TUBES,Surgery,NHS LOGISTICS,1010146968,5.82,
Department of Health,Salisbury NHS Foundation Trust,15/11/2019,DRESSINGS - PRE STERILE,Surgery,NHS LOGISTICS,1010146968,1.48,
Department of Health,Salisbury NHS Foundation Trust,15/11/2019,MEDSURGCONS-OTHER,Surgery,NHS LOGISTICS,1010146968,22.5,
Department of Health,Salisbury NHS Foundation Trust,15/11/2019,PATIENTS INCONTINENCE,Surgery,NHS LOGISTICS,1010146968,7.62,
Department of Health,Salisbury NHS Foundation Trust,15/11/2019,MEDSURGCONS-OTHER,Surgery,NHS LOGISTICS,1010146968,3.53,
Department of Health,Salisbury NHS Foundation Trust,15/11/2019,TUBES,Surgery,NHS LOGISTICS,1010146968,2.74,
Department of Health,Salisbury NHS Foundation Trust,15/11/2019,NON DISPOSABLE BED LINEN,Surgery,NHS LOGISTICS,1010146968,5.64,
Department of Health,Salisbury NHS Foundation Trust,15/11/2019,M & S EQUIPELECTEQUIPINST - OTHER,Clinical Support,NHS LOGISTICS,1010146968,81,
Department of Health,Salisbury NHS Foundation Trust,15/11/2019,DRESSINGS - PRE STERILE,Clinical Support,NHS LOGISTICS,1010146968,23.28,
Department of Health,Salisbury NHS Foundation Trust,15/11/2019,ELECTRICAL EQUIPMENT,Clinical Support,NHS LOGISTICS,1010146968,3.1,
Department of Health,Salisbury NHS Foundation Trust,15/11/2019,OTHER MEDICAL SUPPLIES,Clinical Support,NHS LOGISTICS,1010146968,26.5,
Department of Health,Salisbury NHS Foundation Trust,15/11/2019,OTHER MEDICAL SUPPLIES,Clinical Support,NHS LOGISTICS,1010146968,29.5,
Department of Health,Salisbury NHS Foundation Trust,15/11/2019,MEDSURGCONS-OTHER,Clinical Support,NHS LOGISTICS,1010146968,41.5,
Department of Health,Salisbury NHS Foundation Trust,15/11/2019,DISPOSABLE THEATRE DRAPES WIPES,Clinical Support,NHS LOGISTICS,1010146968,3.46,
Department of Health,Salisbury NHS Foundation Trust,15/11/2019,TOILETRIES PERSONAL HYGIENE PRODUCT,Clinical Support,NHS LOGISTICS,1010146968,13.4,
Department of Health,Salisbury NHS Foundation Trust,15/11/2019,TISSUES HAND TOWELS & TOILET PAPER,Clinical Support,NHS LOGISTICS,1010146968,3.66,
Department of Health,Salisbury NHS Foundation Trust,15/11/2019,DRESSINGS - PRE STERILE,Clinical Support,NHS LOGISTICS,1010146968,27.26,
Department of Health,Salisbury NHS Foundation Trust,15/11/2019,DRESSINGS - PRE STERILE,Clinical Support,NHS LOGISTICS,1010146968,3.55,
Department of Health,Salisbury NHS Foundation Trust,15/11/2019,DRESSINGS - PRE STERILE,Clinical Support,NHS LOGISTICS,1010146968,3.34,
Department of Health,Salisbury NHS Foundation Trust,15/11/2019,MEDSURGCONS-OTHER,Clinical Support,NHS LOGISTICS,1010146968,1.4,
Department of Health,Salisbury NHS Foundation Trust,15/11/2019,TISSUES HAND TOWELS & TOILET PAPER,Clinical Support,NHS LOGISTICS,1010146968,1.8,
Department of Health,Salisbury NHS Foundation Trust,15/11/2019,MED SURG EQUIP REP MAINT CLEANING,Clinical Support,NHS LOGISTICS,1010146968,26.59,
Department of Health,Salisbury NHS Foundation Trust,15/11/2019,DRESSINGS  -  PROCEDURE PACKS,Clinical Support,NHS LOGISTICS,1010146968,1.6,
Department of Health,Salisbury NHS Foundation Trust,15/11/2019,MED SURG EQUIP REP MAINT CLEANING,Clinical Support,NHS LOGISTICS,1010146968,15.3,
Department of Health,Salisbury NHS Foundation Trust,15/11/2019,MEDSURGCONS-OTHER,Clinical Support,NHS LOGISTICS,1010146968,3.38,
Department of Health,Salisbury NHS Foundation Trust,15/11/2019,TUBES,Clinical Support,NHS LOGISTICS,1010146968,5.82,
Department of Health,Salisbury NHS Foundation Trust,15/11/2019,PATIENTS BABY WEAR,Clinical Support,NHS LOGISTICS,1010146968,5.68,
Department of Health,Salisbury NHS Foundation Trust,15/11/2019,MEDSURGCONS-OTHER,Clinical Support,NHS LOGISTICS,1010146968,1.2,
Department of Health,Salisbury NHS Foundation Trust,15/11/2019,MED SURG EQUIP REP MAINT CLEANING,Clinical Support,NHS LOGISTICS,1010146968,53.18,
Department of Health,Salisbury NHS Foundation Trust,15/11/2019,DRESSINGS  -  PROCEDURE PACKS,Clinical Support,NHS LOGISTICS,1010146968,1.75,
Department of Health,Salisbury NHS Foundation Trust,15/11/2019,OTHER MEDICAL SUPPLIES,Clinical Support,NHS LOGISTICS,1010146968,3,
Department of Health,Salisbury NHS Foundation Trust,15/11/2019,MEDSURGCONS-OTHER,Clinical Support,NHS LOGISTICS,1010146968,5,
Department of Health,Salisbury NHS Foundation Trust,15/11/2019,MEDSURGCONS-OTHER,Clinical Support,NHS LOGISTICS,1010146968,5.1,
Department of Health,Salisbury NHS Foundation Trust,15/11/2019,OTHER MEDICAL SUPPLIES,Clinical Support,NHS LOGISTICS,1010146968,6.63,
Department of Health,Salisbury NHS Foundation Trust,15/11/2019,OTHER MEDICAL SUPPLIES,Clinical Support,NHS LOGISTICS,1010146968,2.68,
Department of Health,Salisbury NHS Foundation Trust,15/11/2019,SURGICAL INSTRUMENTS - DISPOSABLE,Clinical Support,NHS LOGISTICS,1010146968,6.75,
Department of Health,Salisbury NHS Foundation Trust,15/11/2019,TOILETRIES PERSONAL HYGIENE PRODUCT,Clinical Support,NHS LOGISTICS,1010146968,2.15,
Department of Health,Salisbury NHS Foundation Trust,15/11/2019,DRESSINGS - PRE STERILE,Clinical Support,NHS LOGISTICS,1010146968,24.55,
Department of Health,Salisbury NHS Foundation Trust,15/11/2019,DRESSINGS - PRE STERILE,Clinical Support,NHS LOGISTICS,1010146968,40.5,
Department of Health,Salisbury NHS Foundation Trust,15/11/2019,DRESSINGS - PRE STERILE,Clinical Support,NHS LOGISTICS,1010146968,12.02,
Department of Health,Salisbury NHS Foundation Trust,15/11/2019,DRESSINGS - PRE STERILE,Clinical Support,NHS LOGISTICS,1010146968,2.04,
Department of Health,Salisbury NHS Foundation Trust,15/11/2019,MEDSURGCONS-OTHER,Clinical Support,NHS LOGISTICS,1010146968,8.76,
Department of Health,Salisbury NHS Foundation Trust,15/11/2019,MEDSURGCONS-OTHER,Clinical Support,NHS LOGISTICS,1010146968,12.32,
Department of Health,Salisbury NHS Foundation Trust,15/11/2019,DRESSINGS - PRE STERILE,Clinical Support,NHS LOGISTICS,1010146968,2.88,
Department of Health,Salisbury NHS Foundation Trust,15/11/2019,DRESSINGS - PRE STERILE,Clinical Support,NHS LOGISTICS,1010146968,13.8,
Department of Health,Salisbury NHS Foundation Trust,15/11/2019,MEDSURGCONS-OTHER,Clinical Support,NHS LOGISTICS,1010146968,6.4,
Department of Health,Salisbury NHS Foundation Trust,15/11/2019,TISSUES HAND TOWELS & TOILET PAPER,Clinical Support,NHS LOGISTICS,1010146968,0.6,
Department of Health,Salisbury NHS Foundation Trust,15/11/2019,MEDSURGCONS-OTHER,Clinical Support,NHS LOGISTICS,1010146968,0.78,
Department of Health,Salisbury NHS Foundation Trust,15/11/2019,NON DISPOSABLE BED LINEN,Clinical Support,NHS LOGISTICS,1010146968,2.82,
Department of Health,Salisbury NHS Foundation Trust,15/11/2019,MEDSURGCONS-OTHER,Clinical Support,NHS LOGISTICS,1010146968,1.2,
Department of Health,Salisbury NHS Foundation Trust,15/11/2019,MEDSURGCONS-OTHER,Clinical Support,NHS LOGISTICS,1010146968,1.56,
Department of Health,Salisbury NHS Foundation Trust,15/11/2019,DISPOSABLE THEATRE DRAPES WIPES,Clinical Support,NHS LOGISTICS,1010146968,2.93,
Department of Health,Salisbury NHS Foundation Trust,15/11/2019,DISPOSABLE THEATRE DRAPES WIPES,Clinical Support,NHS LOGISTICS,1010146968,10.6,
Department of Health,Salisbury NHS Foundation Trust,15/11/2019,DISPOSABLE THEATRE DRAPES WIPES,Clinical Support,NHS LOGISTICS,1010146968,6.26,
Department of Health,Salisbury NHS Foundation Trust,15/11/2019,DRESSINGS - PRE STERILE,Musculo-Skeletal,NHS LOGISTICS,1010146968,5.22,
Department of Health,Salisbury NHS Foundation Trust,15/11/2019,DRESSINGS - PRE STERILE,Musculo-Skeletal,NHS LOGISTICS,1010146968,2.29,
Department of Health,Salisbury NHS Foundation Trust,15/11/2019,DRESSINGS - PRE STERILE,Musculo-Skeletal,NHS LOGISTICS,1010146968,26.28,
Department of Health,Salisbury NHS Foundation Trust,15/11/2019,DRESSINGS - PRE STERILE,Musculo-Skeletal,NHS LOGISTICS,1010146968,27.44,
Department of Health,Salisbury NHS Foundation Trust,15/11/2019,TISSUES HAND TOWELS & TOILET PAPER,Musculo-Skeletal,NHS LOGISTICS,1010146968,3.66,
Department of Health,Salisbury NHS Foundation Trust,15/11/2019,DRESSINGS  -  PROCEDURE PACKS,Musculo-Skeletal,NHS LOGISTICS,1010146968,0.16,
Department of Health,Salisbury NHS Foundation Trust,15/11/2019,HEALTHCARE - WEAR,Musculo-Skeletal,NHS LOGISTICS,1010146968,4.92,
Department of Health,Salisbury NHS Foundation Trust,15/11/2019,HEALTHCARE - WEAR,Musculo-Skeletal,NHS LOGISTICS,1010146968,4.92,
Department of Health,Salisbury NHS Foundation Trust,15/11/2019,MEDSURGCONS-OTHER,Musculo-Skeletal,NHS LOGISTICS,1010146968,1.53,
Department of Health,Salisbury NHS Foundation Trust,15/11/2019,SURGICAL INSTRUMENTS - GENERAL,Musculo-Skeletal,NHS LOGISTICS,1010146968,13,
Department of Health,Salisbury NHS Foundation Trust,15/11/2019,DRESSINGS - PRE STERILE,Musculo-Skeletal,NHS LOGISTICS,1010146968,2.22,
Department of Health,Salisbury NHS Foundation Trust,15/11/2019,OTHER MEDICAL SUPPLIES,Musculo-Skeletal,NHS LOGISTICS,1010146968,1.34,
Department of Health,Salisbury NHS Foundation Trust,15/11/2019,DRESSINGS - PRE STERILE,Musculo-Skeletal,NHS LOGISTICS,1010146968,2.76,
Department of Health,Salisbury NHS Foundation Trust,15/11/2019,DISPOSABLE THEATRE DRAPES WIPES,Musculo-Skeletal,NHS LOGISTICS,1010146968,10.6,
Department of Health,Salisbury NHS Foundation Trust,15/11/2019,OTHER MEDICAL SUPPLIES,Clinical Support,NHS LOGISTICS,1010146968,105.6,
Department of Health,Salisbury NHS Foundation Trust,15/11/2019,PATIENT APPLIANCES,Clinical Support,NHS LOGISTICS,1010146968,27.3,
Department of Health,Salisbury NHS Foundation Trust,15/11/2019,M & S EQUIPELECTEQUIPINST - OTHER,Clinical Support,NHS LOGISTICS,1010146968,43.1,
Department of Health,Salisbury NHS Foundation Trust,15/11/2019,M & S EQUIPELECTEQUIPINST - OTHER,Clinical Support,NHS LOGISTICS,1010146968,6.25,
Department of Health,Salisbury NHS Foundation Trust,15/11/2019,PATIENT APPLIANCES,Clinical Support,NHS LOGISTICS,1010146968,2.26,
Department of Health,Salisbury NHS Foundation Trust,15/11/2019,DRESSINGS - PRE STERILE,Clinical Support,NHS LOGISTICS,1010146968,1.36,
Department of Health,Salisbury NHS Foundation Trust,15/11/2019,MEDSURGCONS-OTHER,Clinical Support,NHS LOGISTICS,1010146968,41.5,
Department of Health,Salisbury NHS Foundation Trust,15/11/2019,MED SURG EQUIP REP MAINT CLEANING,Clinical Support,NHS LOGISTICS,1010146968,26.59,
Department of Health,Salisbury NHS Foundation Trust,15/11/2019,MEDSURGCONS-OTHER,Clinical Support,NHS LOGISTICS,1010146968,10.18,
Department of Health,Salisbury NHS Foundation Trust,15/11/2019,ANAESTHETIC EQUIPMENT ACCESSORIES,Clinical Support,NHS LOGISTICS,1010146968,27.89,
Department of Health,Salisbury NHS Foundation Trust,15/11/2019,DRESSINGS - PRE STERILE,Clinical Support,NHS LOGISTICS,1010146968,0.74,
Department of Health,Salisbury NHS Foundation Trust,15/11/2019,BABY TEXTURE MODIFIED FOODS,Clinical Support,NHS LOGISTICS,1010146968,35.24,
Department of Health,Salisbury NHS Foundation Trust,15/11/2019,OTHER MEDICAL SUPPLIES,Clinical Support,NHS LOGISTICS,1010146968,1.34,
Department of Health,Salisbury NHS Foundation Trust,15/11/2019,MEDSURGCONS-OTHER,Clinical Support,NHS LOGISTICS,1010146968,10.64,
Department of Health,Salisbury NHS Foundation Trust,15/11/2019,DRESSINGS - PRE STERILE,Clinical Support,NHS LOGISTICS,1010146968,2.88,
Department of Health,Salisbury NHS Foundation Trust,15/11/2019,SERVICES FROM NHS BODIES,Clinical Support,NHS LOGISTICS,1010146968,13.91,
Department of Health,Salisbury NHS Foundation Trust,15/11/2019,DISPOSABLE THEATRE DRAPES WIPES,Clinical Support,NHS LOGISTICS,1010146968,10.6,
Department of Health,Salisbury NHS Foundation Trust,15/11/2019,PATIENTS BABY WEAR,Medicine,NHS LOGISTICS,1010146968,26.64,
Department of Health,Salisbury NHS Foundation Trust,15/11/2019,PATIENTS BABY WEAR,Medicine,NHS LOGISTICS,1010146968,24.68,
Department of Health,Salisbury NHS Foundation Trust,15/11/2019,OTHER MEDICAL SUPPLIES,Medicine,NHS LOGISTICS,1010146968,23,
Department of Health,Salisbury NHS Foundation Trust,15/11/2019,DRESSINGS - PRE STERILE,Medicine,NHS LOGISTICS,1010146968,2.21,
Department of Health,Salisbury NHS Foundation Trust,15/11/2019,DRESSINGS - PRE STERILE,Medicine,NHS LOGISTICS,1010146968,3.82,
Department of Health,Salisbury NHS Foundation Trust,15/11/2019,M & S EQUIPELECTEQUIPINST - OTHER,Medicine,NHS LOGISTICS,1010146968,25.04,
Department of Health,Salisbury NHS Foundation Trust,15/11/2019,M & S EQUIPELECTEQUIPINST - OTHER,Medicine,NHS LOGISTICS,1010146968,6.76,
Department of Health,Salisbury NHS Foundation Trust,15/11/2019,ELECTRICAL EQUIPMENT,Medicine,NHS LOGISTICS,1010146968,1.48,
Department of Health,Salisbury NHS Foundation Trust,15/11/2019,DISPOSABLE THEATRE DRAPES WIPES,Medicine,NHS LOGISTICS,1010146968,1.73,
Department of Health,Salisbury NHS Foundation Trust,15/11/2019,TOILETRIES PERSONAL HYGIENE PRODUCT,Medicine,NHS LOGISTICS,1010146968,3.35,
Department of Health,Salisbury NHS Foundation Trust,15/11/2019,TISSUES HAND TOWELS & TOILET PAPER,Medicine,NHS LOGISTICS,1010146968,2.44,
Department of Health,Salisbury NHS Foundation Trust,15/11/2019,PATIENTS INCONTINENCE,Medicine,NHS LOGISTICS,1010146968,4.72,
Department of Health,Salisbury NHS Foundation Trust,15/11/2019,M & S EQUIPELECTEQUIPINST - OTHER,Medicine,NHS LOGISTICS,1010146968,11.76,
Department of Health,Salisbury NHS Foundation Trust,15/11/2019,MEDSURGCONS-OTHER,Medicine,NHS LOGISTICS,1010146968,3.38,
Department of Health,Salisbury NHS Foundation Trust,15/11/2019,MEDSURGCONS-OTHER,Medicine,NHS LOGISTICS,1010146968,1.53,
Department of Health,Salisbury NHS Foundation Trust,15/11/2019,MEDSURGCONS-OTHER,Medicine,NHS LOGISTICS,1010146968,2.39,
Department of Health,Salisbury NHS Foundation Trust,15/11/2019,DRESSINGS - PRE STERILE,Medicine,NHS LOGISTICS,1010146968,1.48,
Department of Health,Salisbury NHS Foundation Trust,15/11/2019,DRESSINGS  -  PROCEDURE PACKS,Medicine,NHS LOGISTICS,1010146968,0.7,
Department of Health,Salisbury NHS Foundation Trust,15/11/2019,DRESSINGS  -  PROCEDURE PACKS,Medicine,NHS LOGISTICS,1010146968,1.4,
Department of Health,Salisbury NHS Foundation Trust,15/11/2019,MEDSURGCONS-OTHER,Medicine,NHS LOGISTICS,1010146968,5,
Department of Health,Salisbury NHS Foundation Trust,15/11/2019,MEDSURGCONS-OTHER,Medicine,NHS LOGISTICS,1010146968,5.1,
Department of Health,Salisbury NHS Foundation Trust,15/11/2019,OTHER MEDICAL SUPPLIES,Medicine,NHS LOGISTICS,1010146968,7.12,
Department of Health,Salisbury NHS Foundation Trust,15/11/2019,OTHER MEDICAL SUPPLIES,Medicine,NHS LOGISTICS,1010146968,6.63,
Department of Health,Salisbury NHS Foundation Trust,15/11/2019,OTHER MEDICAL SUPPLIES,Medicine,NHS LOGISTICS,1010146968,1.34,
Department of Health,Salisbury NHS Foundation Trust,15/11/2019,SURGICAL INSTRUMENTS - DISPOSABLE,Medicine,NHS LOGISTICS,1010146968,4.5,
Department of Health,Salisbury NHS Foundation Trust,15/11/2019,PATIENTS INCONTINENCE,Medicine,NHS LOGISTICS,1010146968,33.72,
Department of Health,Salisbury NHS Foundation Trust,15/11/2019,DRESSINGS - PRE STERILE,Medicine,NHS LOGISTICS,1010146968,2.04,
Department of Health,Salisbury NHS Foundation Trust,15/11/2019,DRESSINGS - PRE STERILE,Medicine,NHS LOGISTICS,1010146968,1.12,
Department of Health,Salisbury NHS Foundation Trust,15/11/2019,MEDSURGCONS-OTHER,Medicine,NHS LOGISTICS,1010146968,12.8,
Department of Health,Salisbury NHS Foundation Trust,15/11/2019,MEDSURGCONS-OTHER,Medicine,NHS LOGISTICS,1010146968,0.78,
Department of Health,Salisbury NHS Foundation Trust,15/11/2019,DRESSINGS - PRE STERILE,Medicine,NHS LOGISTICS,1010146968,3.83,
Department of Health,Salisbury NHS Foundation Trust,15/11/2019,NON DISPOSABLE BED LINEN,Medicine,NHS LOGISTICS,1010146968,16.92,
Department of Health,Salisbury NHS Foundation Trust,15/11/2019,PATIENT APPLIANCES,Medicine,NHS LOGISTICS,1010146968,4.02,
Department of Health,Salisbury NHS Foundation Trust,15/11/2019,DISPOSABLE THEATRE DRAPES WIPES,Medicine,NHS LOGISTICS,1010146968,2.93,
Department of Health,Salisbury NHS Foundation Trust,15/11/2019,DISPOSABLE THEATRE DRAPES WIPES,Medicine,NHS LOGISTICS,1010146968,10.6,
Department of Health,Salisbury NHS Foundation Trust,15/11/2019,DISPOSABLE THEATRE DRAPES WIPES,Medicine,NHS LOGISTICS,1010146968,3.13,
Department of Health,Salisbury NHS Foundation Trust,15/11/2019,M & S EQUIPELECTEQUIPINST - OTHER,Musculo-Skeletal,NHS LOGISTICS,1010146968,43.35,
Department of Health,Salisbury NHS Foundation Trust,15/11/2019,M & S EQUIPELECTEQUIPINST - OTHER,Clinical Support,NHS LOGISTICS,1010146968,43.35,
Department of Health,Salisbury NHS Foundation Trust,15/11/2019,OTHER MEDICAL SUPPLIES,Medicine,NHS LOGISTICS,1010146968,41,
Department of Health,Salisbury NHS Foundation Trust,15/11/2019,DRESSINGS - PRE STERILE,Medicine,NHS LOGISTICS,1010146968,1.46,
Department of Health,Salisbury NHS Foundation Trust,15/11/2019,DRESSINGS - PRE STERILE,Medicine,NHS LOGISTICS,1010146968,3.82,
Department of Health,Salisbury NHS Foundation Trust,15/11/2019,MEDSURGCONS-OTHER,Medicine,NHS LOGISTICS,1010146968,47.22,
Department of Health,Salisbury NHS Foundation Trust,15/11/2019,CLEANING MATERIAL PRODUCTS SUNDRIES,Medicine,NHS LOGISTICS,1010146968,6.6,
Department of Health,Salisbury NHS Foundation Trust,15/11/2019,DRESSINGS - PRE STERILE,Medicine,NHS LOGISTICS,1010146968,1.45,
Department of Health,Salisbury NHS Foundation Trust,15/11/2019,TISSUES HAND TOWELS & TOILET PAPER,Medicine,NHS LOGISTICS,1010146968,0.9,
Department of Health,Salisbury NHS Foundation Trust,15/11/2019,PATIENTS INCONTINENCE,Medicine,NHS LOGISTICS,1010146968,9.44,
Department of Health,Salisbury NHS Foundation Trust,15/11/2019,MEDSURGCONS-OTHER,Medicine,NHS LOGISTICS,1010146968,26.65,
Department of Health,Salisbury NHS Foundation Trust,15/11/2019,MEDSURGCONS-OTHER,Medicine,NHS LOGISTICS,1010146968,26.6,
Department of Health,Salisbury NHS Foundation Trust,15/11/2019,MEDSURGCONS-OTHER,Medicine,NHS LOGISTICS,1010146968,3.38,
Department of Health,Salisbury NHS Foundation Trust,15/11/2019,MEDSURGCONS-OTHER,Medicine,NHS LOGISTICS,1010146968,2.39,
Department of Health,Salisbury NHS Foundation Trust,15/11/2019,TUBES,Medicine,NHS LOGISTICS,1010146968,5.82,
Department of Health,Salisbury NHS Foundation Trust,15/11/2019,M & S EQUIPELECTEQUIPINST - OTHER,Medicine,NHS LOGISTICS,1010146968,4.75,
Department of Health,Salisbury NHS Foundation Trust,15/11/2019,DRESSINGS - PRE STERILE,Medicine,NHS LOGISTICS,1010146968,0.74,
Department of Health,Salisbury NHS Foundation Trust,15/11/2019,DRESSINGS  -  PROCEDURE PACKS,Medicine,NHS LOGISTICS,1010146968,3.2,
Department of Health,Salisbury NHS Foundation Trust,15/11/2019,MEDSURGCONS-OTHER,Medicine,NHS LOGISTICS,1010146968,10,
Department of Health,Salisbury NHS Foundation Trust,15/11/2019,MEDSURGCONS-OTHER,Medicine,NHS LOGISTICS,1010146968,10.2,
Department of Health,Salisbury NHS Foundation Trust,15/11/2019,OTHER MEDICAL SUPPLIES,Medicine,NHS LOGISTICS,1010146968,1.34,
Department of Health,Salisbury NHS Foundation Trust,15/11/2019,SURGICAL INSTRUMENTS - DISPOSABLE,Medicine,NHS LOGISTICS,1010146968,4.5,
Department of Health,Salisbury NHS Foundation Trust,15/11/2019,PATIENTS INCONTINENCE,Medicine,NHS LOGISTICS,1010146968,16.86,
Department of Health,Salisbury NHS Foundation Trust,15/11/2019,MEDSURGCONS-OTHER,Medicine,NHS LOGISTICS,1010146968,6.4,
Department of Health,Salisbury NHS Foundation Trust,15/11/2019,TISSUES HAND TOWELS & TOILET PAPER,Medicine,NHS LOGISTICS,1010146968,0.6,
Department of Health,Salisbury NHS Foundation Trust,15/11/2019,NON DISPOSABLE BED LINEN,Medicine,NHS LOGISTICS,1010146968,5.64,
Department of Health,Salisbury NHS Foundation Trust,15/11/2019,PATIENT APPLIANCES,Medicine,NHS LOGISTICS,1010146968,1.34,
Department of Health,Salisbury NHS Foundation Trust,15/11/2019,DISPOSABLE THEATRE DRAPES WIPES,Medicine,NHS LOGISTICS,1010146968,2.93,
Department of Health,Salisbury NHS Foundation Trust,15/11/2019,DISPOSABLE THEATRE DRAPES WIPES,Medicine,NHS LOGISTICS,1010146968,10.6,
Department of Health,Salisbury NHS Foundation Trust,15/11/2019,HEALTHCARE - WEAR,Surgery,NHS LOGISTICS,1010146968,116.95,
Department of Health,Salisbury NHS Foundation Trust,15/11/2019,OTHER MEDICAL SUPPLIES,Surgery,NHS LOGISTICS,1010146968,12.96,
Department of Health,Salisbury NHS Foundation Trust,15/11/2019,OTHER MEDICAL SUPPLIES,Surgery,NHS LOGISTICS,1010146968,34.5,
Department of Health,Salisbury NHS Foundation Trust,15/11/2019,OTHER MEDICAL SUPPLIES,Surgery,NHS LOGISTICS,1010146968,4.8,
Department of Health,Salisbury NHS Foundation Trust,15/11/2019,OTHER MEDICAL SUPPLIES,Surgery,NHS LOGISTICS,1010146968,4.8,
Department of Health,Salisbury NHS Foundation Trust,15/11/2019,ELECTRICAL EQUIPMENT,Surgery,NHS LOGISTICS,1010146968,2.55,
Department of Health,Salisbury NHS Foundation Trust,15/11/2019,ANAESTHETIC EQUIPMENT ACCESSORIES,Surgery,NHS LOGISTICS,1010146968,75.6,
Department of Health,Salisbury NHS Foundation Trust,15/11/2019,ANAESTHETIC EQUIPMENT ACCESSORIES,Surgery,NHS LOGISTICS,1010146968,75.6,
Department of Health,Salisbury NHS Foundation Trust,15/11/2019,ANAESTHETIC EQUIPMENT ACCESSORIES,Surgery,NHS LOGISTICS,1010146968,151.2,
Department of Health,Salisbury NHS Foundation Trust,15/11/2019,ANAESTHETIC EQUIPMENT ACCESSORIES,Surgery,NHS LOGISTICS,1010146968,93.75,
Department of Health,Salisbury NHS Foundation Trust,15/11/2019,TUBES,Surgery,NHS LOGISTICS,1010146968,9.98,
Department of Health,Salisbury NHS Foundation Trust,15/11/2019,MEDSURGCONS-OTHER,Surgery,NHS LOGISTICS,1010146968,5.17,
Department of Health,Salisbury NHS Foundation Trust,15/11/2019,MEDSURGCONS-OTHER,Surgery,NHS LOGISTICS,1010146968,4.17,
Department of Health,Salisbury NHS Foundation Trust,15/11/2019,DRESSINGS - PRE STERILE,Surgery,NHS LOGISTICS,1010146968,23.8,
Department of Health,Salisbury NHS Foundation Trust,15/11/2019,MEDSURGCONS-OTHER,Surgery,NHS LOGISTICS,1010146968,10.14,
Department of Health,Salisbury NHS Foundation Trust,15/11/2019,MEDSURGCONS-OTHER,Surgery,NHS LOGISTICS,1010146968,10.86,
Department of Health,Salisbury NHS Foundation Trust,15/11/2019,MEDSURGCONS-OTHER,Surgery,NHS LOGISTICS,1010146968,3.06,
Department of Health,Salisbury NHS Foundation Trust,15/11/2019,M & S EQUIPELECTEQUIPINST - OTHER,Surgery,NHS LOGISTICS,1010146968,50,
Department of Health,Salisbury NHS Foundation Trust,15/11/2019,M & S EQUIPELECTEQUIPINST - OTHER,Surgery,NHS LOGISTICS,1010146968,50,
Department of Health,Salisbury NHS Foundation Trust,15/11/2019,OTHER MEDICAL SUPPLIES,Surgery,NHS LOGISTICS,1010146968,43.5,
Department of Health,Salisbury NHS Foundation Trust,15/11/2019,OTHER MEDICAL SUPPLIES,Surgery,NHS LOGISTICS,1010146968,17.4,
Department of Health,Salisbury NHS Foundation Trust,15/11/2019,MEDSURGCONS-OTHER,Surgery,NHS LOGISTICS,1010146968,22.5,
Department of Health,Salisbury NHS Foundation Trust,15/11/2019,MEDSURGCONS-OTHER,Surgery,NHS LOGISTICS,1010146968,46,
Department of Health,Salisbury NHS Foundation Trust,15/11/2019,OTHER MEDICAL SUPPLIES,Surgery,NHS LOGISTICS,1010146968,8.04,
Department of Health,Salisbury NHS Foundation Trust,15/11/2019,OTHER MEDICAL SUPPLIES,Surgery,NHS LOGISTICS,1010146968,15.9,
Department of Health,Salisbury NHS Foundation Trust,15/11/2019,OTHER MEDICAL SUPPLIES,Surgery,NHS LOGISTICS,1010146968,10.6,
Department of Health,Salisbury NHS Foundation Trust,15/11/2019,SURGICAL INSTRUMENTS - GENERAL,Surgery,NHS LOGISTICS,1010146968,9.5,
Department of Health,Salisbury NHS Foundation Trust,15/11/2019,MEDSURGCONS-OTHER,Surgery,NHS LOGISTICS,1010146968,7.78,
Department of Health,Salisbury NHS Foundation Trust,15/11/2019,TUBES,Surgery,NHS LOGISTICS,1010146968,8.22,
Department of Health,Salisbury NHS Foundation Trust,15/11/2019,MEDSURGCONS-OTHER,Surgery,NHS LOGISTICS,1010146968,197.5,
Department of Health,Salisbury NHS Foundation Trust,15/11/2019,MEDSURGCONS-SUTURES,Surgery,NHS LOGISTICS,1010146968,165.02,
Department of Health,Salisbury NHS Foundation Trust,15/11/2019,PAPER GENERAL STATIONERY SUNDRIES,Corporate - Transformation & Informatics,NHS LOGISTICS,1010146968,16.26,
Department of Health,Salisbury NHS Foundation Trust,15/11/2019,PAPER GENERAL STATIONERY SUNDRIES,Corporate - Transformation & Informatics,NHS LOGISTICS,1010146968,64.96,
Department of Health,Salisbury NHS Foundation Trust,15/11/2019,MEDSURGCONS-OTHER,Surgery,NHS LOGISTICS,1010146968,82.5,
Department of Health,Salisbury NHS Foundation Trust,15/11/2019,MEDSURGCONS-OTHER,Surgery,NHS LOGISTICS,1010146968,82.4,
Department of Health,Salisbury NHS Foundation Trust,15/11/2019,OTHER MEDICAL SUPPLIES,Medicine,NHS LOGISTICS,1010146968,156,
Department of Health,Salisbury NHS Foundation Trust,15/11/2019,MEDSURGCONS-OTHER,Medicine,NHS LOGISTICS,1010146968,1050,
Department of Health,Salisbury NHS Foundation Trust,15/11/2019,MEDSURGCONS-OTHER,Medicine,NHS LOGISTICS,1010146968,45.78,
Department of Health,Salisbury NHS Foundation Trust,15/11/2019,OTHER MEDICAL SUPPLIES,Medicine,NHS LOGISTICS,1010146968,28,
Department of Health,Salisbury NHS Foundation Trust,15/11/2019,TISSUES HAND TOWELS & TOILET PAPER,Medicine,NHS LOGISTICS,1010146968,1.22,
Department of Health,Salisbury NHS Foundation Trust,15/11/2019,TISSUES HAND TOWELS & TOILET PAPER,Medicine,NHS LOGISTICS,1010146968,0.3,
Department of Health,Salisbury NHS Foundation Trust,15/11/2019,MEDSURGCONS-OTHER,Medicine,NHS LOGISTICS,1010146968,3.38,
Department of Health,Salisbury NHS Foundation Trust,15/11/2019,DRESSINGS  -  PROCEDURE PACKS,Medicine,NHS LOGISTICS,1010146968,29,
Department of Health,Salisbury NHS Foundation Trust,15/11/2019,OTHER MEDICAL SUPPLIES,Medicine,NHS LOGISTICS,1010146968,1.14,
Department of Health,Salisbury NHS Foundation Trust,15/11/2019,OTHER MEDICAL SUPPLIES,Medicine,NHS LOGISTICS,1010146968,101,
Department of Health,Salisbury NHS Foundation Trust,15/11/2019,DISPOSABLE THEATRE DRAPES WIPES,Medicine,NHS LOGISTICS,1010146968,1.73,
Department of Health,Salisbury NHS Foundation Trust,15/11/2019,TISSUES HAND TOWELS & TOILET PAPER,Medicine,NHS LOGISTICS,1010146968,2.44,
Department of Health,Salisbury NHS Foundation Trust,15/11/2019,TISSUES HAND TOWELS & TOILET PAPER,Medicine,NHS LOGISTICS,1010146968,0.3,
Department of Health,Salisbury NHS Foundation Trust,15/11/2019,M & S EQUIPELECTEQUIPINST - OTHER,Medicine,NHS LOGISTICS,1010146968,8.1,
Department of Health,Salisbury NHS Foundation Trust,15/11/2019,MEDSURGCONS-OTHER,Medicine,NHS LOGISTICS,1010146968,3.38,
Department of Health,Salisbury NHS Foundation Trust,15/11/2019,DRESSINGS  -  PROCEDURE PACKS,Medicine,NHS LOGISTICS,1010146968,29,
Department of Health,Salisbury NHS Foundation Trust,15/11/2019,OTHER MEDICAL SUPPLIES,Medicine,NHS LOGISTICS,1010146968,1.34,
Department of Health,Salisbury NHS Foundation Trust,15/11/2019,NON DISPOSABLE BED LINEN,Medicine,NHS LOGISTICS,1010146968,2.82,
Department of Health,Salisbury NHS Foundation Trust,15/11/2019,DISPOSABLE THEATRE DRAPES WIPES,Medicine,NHS LOGISTICS,1010146968,2.72,
Department of Health,Salisbury NHS Foundation Trust,15/11/2019,PAPER GENERAL STATIONERY SUNDRIES,Surgery,NHS LOGISTICS,1010146968,16.26,
Department of Health,Salisbury NHS Foundation Trust,15/11/2019,PAPER GENERAL STATIONERY SUNDRIES,Surgery,NHS LOGISTICS,1010146968,64.96,
Department of Health,Salisbury NHS Foundation Trust,15/11/2019,OTHER MEDICAL SUPPLIES,Musculo-Skeletal,NHS LOGISTICS,1010146968,23.4,
Department of Health,Salisbury NHS Foundation Trust,15/11/2019,OTHER MEDICAL SUPPLIES,Musculo-Skeletal,NHS LOGISTICS,1010146968,27,
Department of Health,Salisbury NHS Foundation Trust,15/11/2019,ADULTS HEARING AIDS,Surgery,NHS LOGISTICS,1010146968,14,
Department of Health,Salisbury NHS Foundation Trust,15/11/2019,DRESSINGS - PRE STERILE,Musculo-Skeletal,NHS LOGISTICS,1010146968,14.28,
Department of Health,Salisbury NHS Foundation Trust,15/11/2019,OTHER MEDICAL SUPPLIES,Surgery,NHS LOGISTICS,1010146968,7.73,
Department of Health,Salisbury NHS Foundation Trust,15/11/2019,MEDSURGCONS-OTHER,Medicine,NHS LOGISTICS,1010146968,21,
Department of Health,Salisbury NHS Foundation Trust,15/11/2019,MEDSURGCONS-OTHER,Medicine,NHS LOGISTICS,1010146968,42,
Department of Health,Salisbury NHS Foundation Trust,15/11/2019,MEDSURGCONS-OTHER,Medicine,NHS LOGISTICS,1010146968,21,
Department of Health,Salisbury NHS Foundation Trust,15/11/2019,ADULTS HEARING AIDS,Surgery,NHS LOGISTICS,1010146968,97.39,
Department of Health,Salisbury NHS Foundation Trust,15/11/2019,SOFT FURNISHINGS,Surgery,NHS LOGISTICS,1010146968,53.1,
Department of Health,Salisbury NHS Foundation Trust,15/11/2019,SOFT FURNISHINGS,Surgery,NHS LOGISTICS,1010146968,63,
Department of Health,Salisbury NHS Foundation Trust,15/11/2019,PAPER GENERAL STATIONERY SUNDRIES,Corporate - Operations,NHS LOGISTICS,1010146968,16.26,
Department of Health,Salisbury NHS Foundation Trust,15/11/2019,BAGS SACKS - OTHER,Clinical Support,NHS LOGISTICS,1010146968,5.5,
Department of Health,Salisbury NHS Foundation Trust,15/11/2019,MEDSURGCONS-OTHER,Clinical Support,NHS LOGISTICS,1010146968,23.2,
Department of Health,Salisbury NHS Foundation Trust,15/11/2019,MEDSURGCONS-OTHER,Clinical Support,NHS LOGISTICS,1010146968,35.8,
Department of Health,Salisbury NHS Foundation Trust,15/11/2019,MEDSURGCONS-OTHER,Surgery,NHS LOGISTICS,1010146968,959.5,
Department of Health,Salisbury NHS Foundation Trust,15/11/2019,MEDSURGCONS-OTHER,Musculo-Skeletal,NHS LOGISTICS,1010146968,318,
Department of Health,Salisbury NHS Foundation Trust,15/11/2019,TISSUES HAND TOWELS & TOILET PAPER,Facilities,NHS LOGISTICS,1010146968,26.2,
Department of Health,Salisbury NHS Foundation Trust,15/11/2019,MEDSURGCONS-OTHER,Clinical Support,NHS LOGISTICS,1010146968,12,
Department of Health,Salisbury NHS Foundation Trust,15/11/2019,CLEANING MATERIAL PRODUCTS SUNDRIES,Facilities,NHS LOGISTICS,1010146968,22.8,
Department of Health,Salisbury NHS Foundation Trust,15/11/2019,BAGS SACKS - OTHER,Clinical Support,NHS LOGISTICS,1010146968,3.2,
Department of Health,Salisbury NHS Foundation Trust,15/11/2019,TUBES,Clinical Support,NHS LOGISTICS,1010146968,9.98,
Department of Health,Salisbury NHS Foundation Trust,15/11/2019,TISSUES HAND TOWELS & TOILET PAPER,Clinical Support,NHS LOGISTICS,1010146968,1.2,
Department of Health,Salisbury NHS Foundation Trust,15/11/2019,MEDSURGCONS-OTHER,Clinical Support,NHS LOGISTICS,1010146968,3.38,
Department of Health,Salisbury NHS Foundation Trust,15/11/2019,TUBES,Clinical Support,NHS LOGISTICS,1010146968,24.96,
Department of Health,Salisbury NHS Foundation Trust,15/11/2019,DRESSINGS  -  PROCEDURE PACKS,Clinical Support,NHS LOGISTICS,1010146968,11.52,
Department of Health,Salisbury NHS Foundation Trust,15/11/2019,MEDSURGCONS-OTHER,Clinical Support,NHS LOGISTICS,1010146968,22.5,
Department of Health,Salisbury NHS Foundation Trust,15/11/2019,SURGICAL INSTRUMENTS - DISPOSABLE,Clinical Support,NHS LOGISTICS,1010146968,4.5,
Department of Health,Salisbury NHS Foundation Trust,15/11/2019,SERVICES FROM NHS BODIES,Clinical Support,NHS LOGISTICS,1010146968,4.32,
Department of Health,Salisbury NHS Foundation Trust,15/11/2019,DRESSINGS - PRE STERILE,Clinical Support,NHS LOGISTICS,1010146968,7.2,
Department of Health,Salisbury NHS Foundation Trust,15/11/2019,MEDSURGCONS-OTHER,Clinical Support,NHS LOGISTICS,1010146968,15.56,
Department of Health,Salisbury NHS Foundation Trust,15/11/2019,NON DISPOSABLE BED LINEN,Clinical Support,NHS LOGISTICS,1010146968,5.64,
Department of Health,Salisbury NHS Foundation Trust,15/11/2019,M & S EQUIPELECTEQUIPINST - OTHER,Surgery,NHS LOGISTICS,1010146968,1544,
Department of Health,Salisbury NHS Foundation Trust,15/11/2019,MEDSURGCONS-OTHER,Surgery,NHS LOGISTICS,1010146968,47,
Department of Health,Salisbury NHS Foundation Trust,15/11/2019,PAPER GENERAL STATIONERY SUNDRIES,Corporate - OD and People,NHS LOGISTICS,1010146968,32.52,
Department of Health,Salisbury NHS Foundation Trust,15/11/2019,DRESSINGS  -  PROCEDURE PACKS,Medicine,NHS LOGISTICS,1010146968,29,
Department of Health,Salisbury NHS Foundation Trust,15/11/2019,SURGICAL INSTRUMENTS - GENERAL,Musculo-Skeletal,NHS LOGISTICS,1010146968,12.78,
Department of Health,Salisbury NHS Foundation Trust,15/11/2019,OTHER MEDICAL SUPPLIES,Musculo-Skeletal,NHS LOGISTICS,1010146968,41,
Department of Health,Salisbury NHS Foundation Trust,15/11/2019,DRESSINGS - PRE STERILE,Musculo-Skeletal,NHS LOGISTICS,1010146968,1.46,
Department of Health,Salisbury NHS Foundation Trust,15/11/2019,DRESSINGS - PRE STERILE,Musculo-Skeletal,NHS LOGISTICS,1010146968,1.18,
Department of Health,Salisbury NHS Foundation Trust,15/11/2019,DRESSINGS - PRE STERILE,Musculo-Skeletal,NHS LOGISTICS,1010146968,3.05,
Department of Health,Salisbury NHS Foundation Trust,15/11/2019,DRESSINGS - PRE STERILE,Musculo-Skeletal,NHS LOGISTICS,1010146968,11.46,
Department of Health,Salisbury NHS Foundation Trust,15/11/2019,DRESSINGS - PRE STERILE,Musculo-Skeletal,NHS LOGISTICS,1010146968,16.8,
Department of Health,Salisbury NHS Foundation Trust,15/11/2019,DRESSINGS - PRE STERILE,Musculo-Skeletal,NHS LOGISTICS,1010146968,3.01,
Department of Health,Salisbury NHS Foundation Trust,15/11/2019,DRESSINGS - PRE STERILE,Musculo-Skeletal,NHS LOGISTICS,1010146968,12.44,
Department of Health,Salisbury NHS Foundation Trust,15/11/2019,M & S EQUIPELECTEQUIPINST - OTHER,Musculo-Skeletal,NHS LOGISTICS,1010146968,6.76,
Department of Health,Salisbury NHS Foundation Trust,15/11/2019,DISPOSABLE THEATRE DRAPES WIPES,Musculo-Skeletal,NHS LOGISTICS,1010146968,1.73,
Department of Health,Salisbury NHS Foundation Trust,15/11/2019,M & S EQUIPELECTEQUIPINST - OTHER,Musculo-Skeletal,NHS LOGISTICS,1010146968,3.66,
Department of Health,Salisbury NHS Foundation Trust,15/11/2019,DRESSINGS - PRE STERILE,Musculo-Skeletal,NHS LOGISTICS,1010146968,1,
Department of Health,Salisbury NHS Foundation Trust,15/11/2019,DRESSINGS - PRE STERILE,Musculo-Skeletal,NHS LOGISTICS,1010146968,3.34,
Department of Health,Salisbury NHS Foundation Trust,15/11/2019,TISSUES HAND TOWELS & TOILET PAPER,Musculo-Skeletal,NHS LOGISTICS,1010146968,0.6,
Department of Health,Salisbury NHS Foundation Trust,15/11/2019,PATIENTS INCONTINENCE,Musculo-Skeletal,NHS LOGISTICS,1010146968,2.29,
Department of Health,Salisbury NHS Foundation Trust,15/11/2019,PATIENTS INCONTINENCE,Musculo-Skeletal,NHS LOGISTICS,1010146968,3.96,
Department of Health,Salisbury NHS Foundation Trust,15/11/2019,MEDSURGCONS-OTHER,Musculo-Skeletal,NHS LOGISTICS,1010146968,26.65,
Department of Health,Salisbury NHS Foundation Trust,15/11/2019,MEDSURGCONS-OTHER,Musculo-Skeletal,NHS LOGISTICS,1010146968,3.38,
Department of Health,Salisbury NHS Foundation Trust,15/11/2019,MEDSURGCONS-OTHER,Musculo-Skeletal,NHS LOGISTICS,1010146968,5.43,
Department of Health,Salisbury NHS Foundation Trust,15/11/2019,DRESSINGS - PRE STERILE,Musculo-Skeletal,NHS LOGISTICS,1010146968,1.48,
Department of Health,Salisbury NHS Foundation Trust,15/11/2019,M & S EQUIPELECTEQUIPINST - OTHER,Musculo-Skeletal,NHS LOGISTICS,1010146968,13.17,
Department of Health,Salisbury NHS Foundation Trust,15/11/2019,DRESSINGS  -  PROCEDURE PACKS,Musculo-Skeletal,NHS LOGISTICS,1010146968,29,
Department of Health,Salisbury NHS Foundation Trust,15/11/2019,TOILETRIES PERSONAL HYGIENE PRODUCT,Musculo-Skeletal,NHS LOGISTICS,1010146968,1.77,
Department of Health,Salisbury NHS Foundation Trust,15/11/2019,MEDSURGCONS-OTHER,Musculo-Skeletal,NHS LOGISTICS,1010146968,5.1,
Department of Health,Salisbury NHS Foundation Trust,15/11/2019,OTHER MEDICAL SUPPLIES,Musculo-Skeletal,NHS LOGISTICS,1010146968,7.12,
Department of Health,Salisbury NHS Foundation Trust,15/11/2019,OTHER MEDICAL SUPPLIES,Musculo-Skeletal,NHS LOGISTICS,1010146968,1.34,
Department of Health,Salisbury NHS Foundation Trust,15/11/2019,OTHER MEDICAL SUPPLIES,Musculo-Skeletal,NHS LOGISTICS,1010146968,3.58,
Department of Health,Salisbury NHS Foundation Trust,15/11/2019,SURGICAL INSTRUMENTS - DISPOSABLE,Musculo-Skeletal,NHS LOGISTICS,1010146968,11.25,
Department of Health,Salisbury NHS Foundation Trust,15/11/2019,DRESSINGS - PRE STERILE,Musculo-Skeletal,NHS LOGISTICS,1010146968,53.9,
Department of Health,Salisbury NHS Foundation Trust,15/11/2019,DRESSINGS - PRE STERILE,Musculo-Skeletal,NHS LOGISTICS,1010146968,2.04,
Department of Health,Salisbury NHS Foundation Trust,15/11/2019,MEDSURGCONS-OTHER,Musculo-Skeletal,NHS LOGISTICS,1010146968,12.8,
Department of Health,Salisbury NHS Foundation Trust,15/11/2019,MED SURG EQUIP REP MAINT CLEANING,Musculo-Skeletal,NHS LOGISTICS,1010146968,8.99,
Department of Health,Salisbury NHS Foundation Trust,15/11/2019,NON DISPOSABLE BED LINEN,Musculo-Skeletal,NHS LOGISTICS,1010146968,5.64,
Department of Health,Salisbury NHS Foundation Trust,15/11/2019,PATIENT APPLIANCES,Musculo-Skeletal,NHS LOGISTICS,1010146968,42,
Department of Health,Salisbury NHS Foundation Trust,15/11/2019,DISPOSABLE THEATRE DRAPES WIPES,Musculo-Skeletal,NHS LOGISTICS,1010146968,2.93,
Department of Health,Salisbury NHS Foundation Trust,15/11/2019,DISPOSABLE THEATRE DRAPES WIPES,Musculo-Skeletal,NHS LOGISTICS,1010146968,10.6,
Department of Health,Salisbury NHS Foundation Trust,15/11/2019,DISPOSABLE THEATRE DRAPES WIPES,Musculo-Skeletal,NHS LOGISTICS,1010146968,6.26,
Department of Health,Salisbury NHS Foundation Trust,15/11/2019,ADULTS HEARING AIDS,Surgery,NHS LOGISTICS,1010146968,850,
Department of Health,Salisbury NHS Foundation Trust,15/11/2019,ADULTS HEARING AIDS,Surgery,NHS LOGISTICS,1010146968,1077,
Department of Health,Salisbury NHS Foundation Trust,15/11/2019,MEDSURGCONS-SUTURES,Musculo-Skeletal,NHS LOGISTICS,1010146968,62.5,
Department of Health,Salisbury NHS Foundation Trust,15/11/2019,MEDSURGCONS-SUTURES,Musculo-Skeletal,NHS LOGISTICS,1010146968,45.17,
Department of Health,Salisbury NHS Foundation Trust,15/11/2019,MEDSURGCONS-SUTURES,Musculo-Skeletal,NHS LOGISTICS,1010146968,63.6,
Department of Health,Salisbury NHS Foundation Trust,15/11/2019,MEDSURGCONS-SUTURES,Musculo-Skeletal,NHS LOGISTICS,1010146968,45.83,
Department of Health,Salisbury NHS Foundation Trust,15/11/2019,MEDSURGCONS-OTHER,Surgery,NHS LOGISTICS,1010146968,179.4,
Department of Health,Salisbury NHS Foundation Trust,15/11/2019,HEALTHCARE - WEAR,Surgery,NHS LOGISTICS,1010146968,36.82,
Department of Health,Salisbury NHS Foundation Trust,15/11/2019,DRESSINGS - PRE STERILE,Surgery,NHS LOGISTICS,1010146968,81.9,
Department of Health,Salisbury NHS Foundation Trust,15/11/2019,DRESSINGS - PRE STERILE,Surgery,NHS LOGISTICS,1010146968,134.86,
Department of Health,Salisbury NHS Foundation Trust,15/11/2019,MEDSURGCONS-SUTURES,Surgery,NHS LOGISTICS,1010146968,145.48,
Department of Health,Salisbury NHS Foundation Trust,15/11/2019,BAGS SACKS - OTHER,Surgery,NHS LOGISTICS,1010146968,6.4,
Department of Health,Salisbury NHS Foundation Trust,15/11/2019,BAGS SACKS - OTHER,Surgery,NHS LOGISTICS,1010146968,2.42,
Department of Health,Salisbury NHS Foundation Trust,15/11/2019,DRESSINGS - PRE STERILE,Surgery,NHS LOGISTICS,1010146968,11.64,
Department of Health,Salisbury NHS Foundation Trust,15/11/2019,MEDSURGCONS-OTHER,Surgery,NHS LOGISTICS,1010146968,7.94,
Department of Health,Salisbury NHS Foundation Trust,15/11/2019,M & S EQUIPELECTEQUIPINST - OTHER,Surgery,NHS LOGISTICS,1010146968,2.44,
Department of Health,Salisbury NHS Foundation Trust,15/11/2019,BAGS SACKS - OTHER,Surgery,NHS LOGISTICS,1010146968,4.58,
Department of Health,Salisbury NHS Foundation Trust,15/11/2019,DRESSINGS - PRE STERILE,Surgery,NHS LOGISTICS,1010146968,2.9,
Department of Health,Salisbury NHS Foundation Trust,15/11/2019,DRESSINGS - PRE STERILE,Surgery,NHS LOGISTICS,1010146968,4.2,
Department of Health,Salisbury NHS Foundation Trust,15/11/2019,DRESSINGS - PRE STERILE,Surgery,NHS LOGISTICS,1010146968,5.86,
Department of Health,Salisbury NHS Foundation Trust,15/11/2019,DRESSINGS - PRE STERILE,Surgery,NHS LOGISTICS,1010146968,3.34,
Department of Health,Salisbury NHS Foundation Trust,15/11/2019,TISSUES HAND TOWELS & TOILET PAPER,Surgery,NHS LOGISTICS,1010146968,1.8,
Department of Health,Salisbury NHS Foundation Trust,15/11/2019,DRUGS,Surgery,NHS LOGISTICS,1010146968,42.1,
Department of Health,Salisbury NHS Foundation Trust,15/11/2019,OTHER MEDICAL SUPPLIES,Surgery,NHS LOGISTICS,1010146968,45.8,
Department of Health,Salisbury NHS Foundation Trust,15/11/2019,TUBES,Surgery,NHS LOGISTICS,1010146968,48.4,
Department of Health,Salisbury NHS Foundation Trust,15/11/2019,SURGICAL INSTRUMENTS - GENERAL,Surgery,NHS LOGISTICS,1010146968,2.5,
Department of Health,Salisbury NHS Foundation Trust,15/11/2019,DRUGS,Surgery,NHS LOGISTICS,1010146968,20.05,
Department of Health,Salisbury NHS Foundation Trust,15/11/2019,SURGICAL INSTRUMENTS - DISPOSABLE,Surgery,NHS LOGISTICS,1010146968,4.5,
Department of Health,Salisbury NHS Foundation Trust,15/11/2019,OTHER MEDICAL SUPPLIES,Surgery,NHS LOGISTICS,1010146968,206.01,
Department of Health,Salisbury NHS Foundation Trust,15/11/2019,DRUGS,Surgery,NHS LOGISTICS,1010146968,20.05,
Department of Health,Salisbury NHS Foundation Trust,15/11/2019,MEDSURGCONS-OTHER,Surgery,NHS LOGISTICS,1010146968,54,
Department of Health,Salisbury NHS Foundation Trust,15/11/2019,MEDSURGCONS-SUTURES,Surgery,NHS LOGISTICS,1010146968,20.88,
Department of Health,Salisbury NHS Foundation Trust,15/11/2019,MEDSURGCONS-SUTURES,Surgery,NHS LOGISTICS,1010146968,35.67,
Department of Health,Salisbury NHS Foundation Trust,15/11/2019,MEDSURGCONS-SUTURES,Surgery,NHS LOGISTICS,1010146968,50.41,
Department of Health,Salisbury NHS Foundation Trust,15/11/2019,DRESSINGS - PRE STERILE,Surgery,NHS LOGISTICS,1010146968,32.22,
Department of Health,Salisbury NHS Foundation Trust,15/11/2019,SURGICAL INSTRUMENTS - GENERAL,Surgery,NHS LOGISTICS,1010146968,330.04,
Department of Health,Salisbury NHS Foundation Trust,15/11/2019,TUBES,Surgery,NHS LOGISTICS,1010146968,3.7,
Department of Health,Salisbury NHS Foundation Trust,15/11/2019,TUBES,Surgery,NHS LOGISTICS,1010146968,15,
Department of Health,Salisbury NHS Foundation Trust,15/11/2019,DRESSINGS - PRE STERILE,Surgery,NHS LOGISTICS,1010146968,33.09,
Department of Health,Salisbury NHS Foundation Trust,15/11/2019,NON DISPOSABLE BED LINEN,Surgery,NHS LOGISTICS,1010146968,22.56,
Department of Health,Salisbury NHS Foundation Trust,15/11/2019,CLEANING MATERIAL PRODUCTS SUNDRIES,Surgery,NHS LOGISTICS,1010146968,1.96,
Department of Health,Salisbury NHS Foundation Trust,15/11/2019,DISPOSABLE THEATRE DRAPES WIPES,Surgery,NHS LOGISTICS,1010146968,21.2,
Department of Health,Salisbury NHS Foundation Trust,15/11/2019,OTHER MEDICAL SUPPLIES,Surgery,NHS LOGISTICS,1010146968,4.8,
Department of Health,Salisbury NHS Foundation Trust,15/11/2019,M & S EQUIPELECTEQUIPINST - OTHER,Surgery,NHS LOGISTICS,1010146968,100,
Department of Health,Salisbury NHS Foundation Trust,15/11/2019,M & S EQUIPELECTEQUIPINST - OTHER,Surgery,NHS LOGISTICS,1010146968,75,
Department of Health,Salisbury NHS Foundation Trust,15/11/2019,MEDSURGCONS-OTHER,Surgery,NHS LOGISTICS,1010146968,88,
Department of Health,Salisbury NHS Foundation Trust,15/11/2019,SURGICAL INSTRUMENTS - GENERAL,Surgery,NHS LOGISTICS,1010146968,9.5,
Department of Health,Salisbury NHS Foundation Trust,15/11/2019,MEDSURGCONS-OTHER,Surgery,NHS LOGISTICS,1010146968,22.9,
Department of Health,Salisbury NHS Foundation Trust,15/11/2019,TISSUES HAND TOWELS & TOILET PAPER,Surgery,NHS LOGISTICS,1010146968,3.6,
Department of Health,Salisbury NHS Foundation Trust,15/11/2019,MEDSURGCONS-OTHER,Surgery,NHS LOGISTICS,1010146968,10.14,
Department of Health,Salisbury NHS Foundation Trust,15/11/2019,DRESSINGS - PRE STERILE,Surgery,NHS LOGISTICS,1010146968,4.08,
Department of Health,Salisbury NHS Foundation Trust,15/11/2019,DRESSINGS - PRE STERILE,Surgery,NHS LOGISTICS,1010146968,2.16,
Department of Health,Salisbury NHS Foundation Trust,15/11/2019,DRESSINGS - PRE STERILE,Surgery,NHS LOGISTICS,1010146968,1.68,
Department of Health,Salisbury NHS Foundation Trust,15/11/2019,DRESSINGS - PRE STERILE,Surgery,NHS LOGISTICS,1010146968,11.54,
Department of Health,Salisbury NHS Foundation Trust,15/11/2019,DRESSINGS - PRE STERILE,Surgery,NHS LOGISTICS,1010146968,2.76,
Department of Health,Salisbury NHS Foundation Trust,15/11/2019,TUBES,Surgery,NHS LOGISTICS,1010146968,16.65,
Department of Health,Salisbury NHS Foundation Trust,15/11/2019,M & S EQUIPELECTEQUIPINST - OTHER,Surgery,NHS LOGISTICS,1010146968,350,
Department of Health,Salisbury NHS Foundation Trust,15/11/2019,M & S EQUIPELECTEQUIPINST - OTHER,Surgery,NHS LOGISTICS,1010146968,170,
Department of Health,Salisbury NHS Foundation Trust,15/11/2019,MEDSURGCONS-LAPAROSCOPIC EQUIPMENT,Surgery,NHS LOGISTICS,1010146968,144,
Department of Health,Salisbury NHS Foundation Trust,15/11/2019,MEDSURGCONS-LAPAROSCOPIC EQUIPMENT,Surgery,NHS LOGISTICS,1010146968,228,
Department of Health,Salisbury NHS Foundation Trust,15/11/2019,MEDSURGCONS-LAPAROSCOPIC EQUIPMENT,Surgery,NHS LOGISTICS,1010146968,170,
Department of Health,Salisbury NHS Foundation Trust,15/11/2019,OTHER MEDICAL SUPPLIES,Musculo-Skeletal,NHS LOGISTICS,1010146968,41,
Department of Health,Salisbury NHS Foundation Trust,15/11/2019,DRESSINGS - PRE STERILE,Musculo-Skeletal,NHS LOGISTICS,1010146968,3.42,
Department of Health,Salisbury NHS Foundation Trust,15/11/2019,M & S EQUIPELECTEQUIPINST - OTHER,Musculo-Skeletal,NHS LOGISTICS,1010146968,12.52,
Department of Health,Salisbury NHS Foundation Trust,15/11/2019,M & S EQUIPELECTEQUIPINST - OTHER,Musculo-Skeletal,NHS LOGISTICS,1010146968,6.76,
Department of Health,Salisbury NHS Foundation Trust,15/11/2019,ELECTRICAL EQUIPMENT,Musculo-Skeletal,NHS LOGISTICS,1010146968,2.96,
Department of Health,Salisbury NHS Foundation Trust,15/11/2019,M & S EQUIPELECTEQUIPINST - OTHER,Musculo-Skeletal,NHS LOGISTICS,1010146968,2.44,
Department of Health,Salisbury NHS Foundation Trust,15/11/2019,M & S EQUIPELECTEQUIPINST - OTHER,Musculo-Skeletal,NHS LOGISTICS,1010146968,3.78,
Department of Health,Salisbury NHS Foundation Trust,15/11/2019,TISSUES HAND TOWELS & TOILET PAPER,Musculo-Skeletal,NHS LOGISTICS,1010146968,2.44,
Department of Health,Salisbury NHS Foundation Trust,15/11/2019,DRESSINGS - PRE STERILE,Musculo-Skeletal,NHS LOGISTICS,1010146968,9.72,
Department of Health,Salisbury NHS Foundation Trust,15/11/2019,DRESSINGS - PRE STERILE,Musculo-Skeletal,NHS LOGISTICS,1010146968,5.86,
Department of Health,Salisbury NHS Foundation Trust,15/11/2019,M & S EQUIPELECTEQUIPINST - OTHER,Musculo-Skeletal,NHS LOGISTICS,1010146968,23.52,
Department of Health,Salisbury NHS Foundation Trust,15/11/2019,MEDSURGCONS-OTHER,Musculo-Skeletal,NHS LOGISTICS,1010146968,6.76,
Department of Health,Salisbury NHS Foundation Trust,15/11/2019,MEDSURGCONS-OTHER,Musculo-Skeletal,NHS LOGISTICS,1010146968,5.43,
Department of Health,Salisbury NHS Foundation Trust,15/11/2019,MEDSURGCONS-OTHER,Musculo-Skeletal,NHS LOGISTICS,1010146968,1.53,
Department of Health,Salisbury NHS Foundation Trust,15/11/2019,DRESSINGS - PRE STERILE,Musculo-Skeletal,NHS LOGISTICS,1010146968,2.22,
Department of Health,Salisbury NHS Foundation Trust,15/11/2019,OTHER MEDICAL SUPPLIES,Musculo-Skeletal,NHS LOGISTICS,1010146968,0.56,
Department of Health,Salisbury NHS Foundation Trust,15/11/2019,DRESSINGS  -  PROCEDURE PACKS,Musculo-Skeletal,NHS LOGISTICS,1010146968,29,
Department of Health,Salisbury NHS Foundation Trust,15/11/2019,DRESSINGS  -  PROCEDURE PACKS,Musculo-Skeletal,NHS LOGISTICS,1010146968,1.4,
Department of Health,Salisbury NHS Foundation Trust,15/11/2019,NON DISPOSABLE BED LINEN,Musculo-Skeletal,NHS LOGISTICS,1010146968,19.52,
Department of Health,Salisbury NHS Foundation Trust,15/11/2019,TOILETRIES PERSONAL HYGIENE PRODUCT,Musculo-Skeletal,NHS LOGISTICS,1010146968,1.77,
Department of Health,Salisbury NHS Foundation Trust,15/11/2019,MEDSURGCONS-OTHER,Musculo-Skeletal,NHS LOGISTICS,1010146968,7.5,
Department of Health,Salisbury NHS Foundation Trust,15/11/2019,MEDSURGCONS-OTHER,Musculo-Skeletal,NHS LOGISTICS,1010146968,7.65,
Department of Health,Salisbury NHS Foundation Trust,15/11/2019,OTHER MEDICAL SUPPLIES,Musculo-Skeletal,NHS LOGISTICS,1010146968,7.12,
Department of Health,Salisbury NHS Foundation Trust,15/11/2019,OTHER MEDICAL SUPPLIES,Musculo-Skeletal,NHS LOGISTICS,1010146968,1.34,
Department of Health,Salisbury NHS Foundation Trust,15/11/2019,SURGICAL INSTRUMENTS - DISPOSABLE,Musculo-Skeletal,NHS LOGISTICS,1010146968,4.5,
Department of Health,Salisbury NHS Foundation Trust,15/11/2019,PATIENTS INCONTINENCE,Musculo-Skeletal,NHS LOGISTICS,1010146968,20.32,
Department of Health,Salisbury NHS Foundation Trust,15/11/2019,OTHER MEDICAL SUPPLIES,Musculo-Skeletal,NHS LOGISTICS,1010146968,6.8,
Department of Health,Salisbury NHS Foundation Trust,15/11/2019,TOILETRIES PERSONAL HYGIENE PRODUCT,Musculo-Skeletal,NHS LOGISTICS,1010146968,2.88,
Department of Health,Salisbury NHS Foundation Trust,15/11/2019,DRESSINGS - PRE STERILE,Musculo-Skeletal,NHS LOGISTICS,1010146968,2.04,
Department of Health,Salisbury NHS Foundation Trust,15/11/2019,DRESSINGS - PRE STERILE,Musculo-Skeletal,NHS LOGISTICS,1010146968,2.84,
Department of Health,Salisbury NHS Foundation Trust,15/11/2019,MEDSURGCONS-OTHER,Musculo-Skeletal,NHS LOGISTICS,1010146968,19.2,
Department of Health,Salisbury NHS Foundation Trust,15/11/2019,DENTAL SURGERY SUNDRIES,Musculo-Skeletal,NHS LOGISTICS,1010146968,2.52,
Department of Health,Salisbury NHS Foundation Trust,15/11/2019,M & S EQUIPELECTEQUIPINST - OTHER,Musculo-Skeletal,NHS LOGISTICS,1010146968,1.42,
Department of Health,Salisbury NHS Foundation Trust,15/11/2019,NON DISPOSABLE BED LINEN,Musculo-Skeletal,NHS LOGISTICS,1010146968,11.28,
Department of Health,Salisbury NHS Foundation Trust,15/11/2019,DISPOSABLE THEATRE DRAPES WIPES,Musculo-Skeletal,NHS LOGISTICS,1010146968,21.2,
Department of Health,Salisbury NHS Foundation Trust,15/11/2019,DISPOSABLE THEATRE DRAPES WIPES,Musculo-Skeletal,NHS LOGISTICS,1010146968,3.13,
Department of Health,Salisbury NHS Foundation Trust,15/11/2019,DRESSINGS - PRE STERILE,Clinical Support,NHS LOGISTICS,1010146968,134.86,
Department of Health,Salisbury NHS Foundation Trust,15/11/2019,MEDSURGCONS-SUTURES,Clinical Support,NHS LOGISTICS,1010146968,30.51,
Department of Health,Salisbury NHS Foundation Trust,15/11/2019,MEDSURGCONS-SUTURES,Clinical Support,NHS LOGISTICS,1010146968,49.4,
Department of Health,Salisbury NHS Foundation Trust,15/11/2019,MEDSURGCONS-SUTURES,Clinical Support,NHS LOGISTICS,1010146968,72.74,
Department of Health,Salisbury NHS Foundation Trust,15/11/2019,MEDSURGCONS-SUTURES,Clinical Support,NHS LOGISTICS,1010146968,68.91,
Department of Health,Salisbury NHS Foundation Trust,15/11/2019,MEDSURGCONS-SUTURES,Clinical Support,NHS LOGISTICS,1010146968,106.12,
Department of Health,Salisbury NHS Foundation Trust,15/11/2019,MEDSURGCONS-SUTURES,Clinical Support,NHS LOGISTICS,1010146968,38.56,
Department of Health,Salisbury NHS Foundation Trust,15/11/2019,MEDSURGCONS-OTHER,Clinical Support,NHS LOGISTICS,1010146968,55.17,
Department of Health,Salisbury NHS Foundation Trust,15/11/2019,OTHER MEDICAL SUPPLIES,Clinical Support,NHS LOGISTICS,1010146968,36.16,
Department of Health,Salisbury NHS Foundation Trust,15/11/2019,MEDSURGCONS-SUTURES,Clinical Support,NHS LOGISTICS,1010146968,74.99,
Department of Health,Salisbury NHS Foundation Trust,15/11/2019,MEDSURGCONS-SUTURES,Clinical Support,NHS LOGISTICS,1010146968,25.62,
Department of Health,Salisbury NHS Foundation Trust,15/11/2019,MEDSURGCONS-SUTURES,Clinical Support,NHS LOGISTICS,1010146968,50.41,
Department of Health,Salisbury NHS Foundation Trust,15/11/2019,MEDSURGCONS-SUTURES,Clinical Support,NHS LOGISTICS,1010146968,117.48,
Department of Health,Salisbury NHS Foundation Trust,15/11/2019,NON DISPOSABLE BED LINEN,Clinical Support,NHS LOGISTICS,1010146968,11.28,
Department of Health,Salisbury NHS Foundation Trust,15/11/2019,PATIENT APPLIANCES,Surgery,NHS LOGISTICS,1010146968,83,
Department of Health,Salisbury NHS Foundation Trust,15/11/2019,PATIENT APPLIANCES,Surgery,NHS LOGISTICS,1010146968,83,
Department of Health,Salisbury NHS Foundation Trust,15/11/2019,PATIENT APPLIANCES,Surgery,NHS LOGISTICS,1010146968,83,
Department of Health,Salisbury NHS Foundation Trust,15/11/2019,PATIENT APPLIANCES,Surgery,NHS LOGISTICS,1010146968,83,
Department of Health,Salisbury NHS Foundation Trust,15/11/2019,PAPER GENERAL STATIONERY SUNDRIES,Medicine,NHS LOGISTICS,1010146968,48.78,
Department of Health,Salisbury NHS Foundation Trust,15/11/2019,M & S EQUIPELECTEQUIPINST - OTHER,Clinical Support,NHS LOGISTICS,1010146968,125.24,
Department of Health,Salisbury NHS Foundation Trust,15/11/2019,M & S EQUIPELECTEQUIPINST - OTHER,Clinical Support,NHS LOGISTICS,1010146968,130,
Department of Health,Salisbury NHS Foundation Trust,15/11/2019,M & S EQUIPELECTEQUIPINST - OTHER,Clinical Support,NHS LOGISTICS,1010146968,576,
Department of Health,Salisbury NHS Foundation Trust,15/11/2019,M & S EQUIPELECTEQUIPINST - OTHER,Clinical Support,NHS LOGISTICS,1010146968,142.78,
Department of Health,Salisbury NHS Foundation Trust,15/11/2019,ELECTRICAL EQUIPMENT,Musculo-Skeletal,NHS LOGISTICS,1010146968,1.48,
Department of Health,Salisbury NHS Foundation Trust,15/11/2019,MEDSURGCONS-OTHER,Medicine,NHS LOGISTICS,1010146968,95,
Department of Health,Salisbury NHS Foundation Trust,15/11/2019,MEDSURGCONS-OTHER,Medicine,NHS LOGISTICS,1010146968,95,
Department of Health,Salisbury NHS Foundation Trust,15/11/2019,MEDSURGCONS-OTHER,Medicine,NHS LOGISTICS,1010146968,95,
Department of Health,Salisbury NHS Foundation Trust,15/11/2019,MEDSURGCONS-OTHER,Medicine,NHS LOGISTICS,1010146968,87.5,
Department of Health,Salisbury NHS Foundation Trust,15/11/2019,MEDSURGCONS-OTHER,Medicine,NHS LOGISTICS,1010146968,850,
Department of Health,Salisbury NHS Foundation Trust,15/11/2019,MEDSURGCONS-OTHER,Medicine,NHS LOGISTICS,1010146968,70,
Department of Health,Salisbury NHS Foundation Trust,15/11/2019,MED PROSTH - PACEMAKERS,Medicine,NHS LOGISTICS,1010146968,1650,
Department of Health,Salisbury NHS Foundation Trust,15/11/2019,PAPER GENERAL STATIONERY SUNDRIES,Musculo-Skeletal,NHS LOGISTICS,1010146968,40.65,
Department of Health,Salisbury NHS Foundation Trust,15/11/2019,MED PROSTH - OTHER,Surgery,NHS LOGISTICS,1010146968,50,
Department of Health,Salisbury NHS Foundation Trust,15/11/2019,MED PROSTH - OTHER,Surgery,NHS LOGISTICS,1010146968,50,
Department of Health,Salisbury NHS Foundation Trust,15/11/2019,MEDPROST-TRAUMA PRODUCTS,Musculo-Skeletal,NHS LOGISTICS,1010146968,36.05,
Department of Health,Salisbury NHS Foundation Trust,15/11/2019,MEDPROST-TRAUMA PRODUCTS,Musculo-Skeletal,NHS LOGISTICS,1010146968,36.05,
Department of Health,Salisbury NHS Foundation Trust,15/11/2019,MED PROSTH - OTHER,Surgery,NHS LOGISTICS,1010146968,100,
Department of Health,Salisbury NHS Foundation Trust,15/11/2019,MED PROSTH - OTHER,Surgery,NHS LOGISTICS,1010146968,100,
Department of Health,Salisbury NHS Foundation Trust,15/11/2019,MED PROSTH - OTHER,Surgery,NHS LOGISTICS,1010146968,150,
Department of Health,Salisbury NHS Foundation Trust,15/11/2019,MED PROSTH - OTHER,Surgery,NHS LOGISTICS,1010146968,100,
Department of Health,Salisbury NHS Foundation Trust,15/11/2019,MED PROSTH - OTHER,Surgery,NHS LOGISTICS,1010146968,150,
Department of Health,Salisbury NHS Foundation Trust,15/11/2019,MED PROSTH - OTHER,Surgery,NHS LOGISTICS,1010146968,50,
Department of Health,Salisbury NHS Foundation Trust,15/11/2019,COOKING & KITCHEN UTENSILS,Corporate - Finance & Procurement,NHS LOGISTICS,1010146968,177.6,
Department of Health,Salisbury NHS Foundation Trust,15/11/2019,PATIENTS FOOTWEAR,Corporate - Finance & Procurement,NHS LOGISTICS,1010146968,105.45,
Department of Health,Salisbury NHS Foundation Trust,15/11/2019,PATIENTS FOOTWEAR,Corporate - Finance & Procurement,NHS LOGISTICS,1010146968,132,
Department of Health,Salisbury NHS Foundation Trust,15/11/2019,DRESSINGS - PRE STERILE,Surgery,NHS LOGISTICS,1010146968,3.57,
Department of Health,Salisbury NHS Foundation Trust,15/11/2019,DISPOSABLE THEATRE DRAPES WIPES,Surgery,NHS LOGISTICS,1010146968,1.6,
Department of Health,Salisbury NHS Foundation Trust,15/11/2019,OTHER MEDICAL SUPPLIES,Surgery,NHS LOGISTICS,1010146968,41,
Department of Health,Salisbury NHS Foundation Trust,15/11/2019,DRESSINGS - PRE STERILE,Surgery,NHS LOGISTICS,1010146968,0.68,
Department of Health,Salisbury NHS Foundation Trust,15/11/2019,M & S EQUIPELECTEQUIPINST - OTHER,Surgery,NHS LOGISTICS,1010146968,13.07,
Department of Health,Salisbury NHS Foundation Trust,15/11/2019,M & S EQUIPELECTEQUIPINST - OTHER,Surgery,NHS LOGISTICS,1010146968,6.1,
Department of Health,Salisbury NHS Foundation Trust,15/11/2019,TOILETRIES PERSONAL HYGIENE PRODUCT,Surgery,NHS LOGISTICS,1010146968,3.35,
Department of Health,Salisbury NHS Foundation Trust,15/11/2019,M & S EQUIPELECTEQUIPINST - OTHER,Surgery,NHS LOGISTICS,1010146968,7.98,
Department of Health,Salisbury NHS Foundation Trust,15/11/2019,DRESSINGS - PRE STERILE,Surgery,NHS LOGISTICS,1010146968,1.45,
Department of Health,Salisbury NHS Foundation Trust,15/11/2019,MEDSURGCONS-OTHER,Surgery,NHS LOGISTICS,1010146968,3.38,
Department of Health,Salisbury NHS Foundation Trust,15/11/2019,MEDSURGCONS-OTHER,Surgery,NHS LOGISTICS,1010146968,2.39,
Department of Health,Salisbury NHS Foundation Trust,15/11/2019,M & S EQUIPELECTEQUIPINST - OTHER,Surgery,NHS LOGISTICS,1010146968,14.25,
Department of Health,Salisbury NHS Foundation Trust,15/11/2019,DRESSINGS - PRE STERILE,Surgery,NHS LOGISTICS,1010146968,1.48,
Department of Health,Salisbury NHS Foundation Trust,15/11/2019,DRESSINGS  -  PROCEDURE PACKS,Surgery,NHS LOGISTICS,1010146968,14.5,
Department of Health,Salisbury NHS Foundation Trust,15/11/2019,OTHER MEDICAL SUPPLIES,Surgery,NHS LOGISTICS,1010146968,3,
Department of Health,Salisbury NHS Foundation Trust,15/11/2019,MEDSURGCONS-OTHER,Surgery,NHS LOGISTICS,1010146968,22.5,
Department of Health,Salisbury NHS Foundation Trust,15/11/2019,OTHER MEDICAL SUPPLIES,Surgery,NHS LOGISTICS,1010146968,7.12,
Department of Health,Salisbury NHS Foundation Trust,15/11/2019,PATIENTS INCONTINENCE,Surgery,NHS LOGISTICS,1010146968,7.62,
Department of Health,Salisbury NHS Foundation Trust,15/11/2019,SERVICES FROM NHS BODIES,Surgery,NHS LOGISTICS,1010146968,3.56,
Department of Health,Salisbury NHS Foundation Trust,15/11/2019,MEDSURGCONS-OTHER,Surgery,NHS LOGISTICS,1010146968,55,
Department of Health,Salisbury NHS Foundation Trust,15/11/2019,MEDSURGCONS-OTHER,Surgery,NHS LOGISTICS,1010146968,5.32,
Department of Health,Salisbury NHS Foundation Trust,15/11/2019,DRESSINGS - PRE STERILE,Surgery,NHS LOGISTICS,1010146968,2.76,
Department of Health,Salisbury NHS Foundation Trust,15/11/2019,MEDSURGCONS-OTHER,Surgery,NHS LOGISTICS,1010146968,12.8,
Department of Health,Salisbury NHS Foundation Trust,15/11/2019,TUBES,Surgery,NHS LOGISTICS,1010146968,2.74,
Department of Health,Salisbury NHS Foundation Trust,15/11/2019,NON DISPOSABLE BED LINEN,Surgery,NHS LOGISTICS,1010146968,11.28,
Department of Health,Salisbury NHS Foundation Trust,15/11/2019,DISPOSABLE THEATRE DRAPES WIPES,Surgery,NHS LOGISTICS,1010146968,5.86,
Department of Health,Salisbury NHS Foundation Trust,15/11/2019,DISPOSABLE THEATRE DRAPES WIPES,Surgery,NHS LOGISTICS,1010146968,10.6,
Department of Health,Salisbury NHS Foundation Trust,15/11/2019,OTHER MEDICAL SUPPLIES,Surgery,NHS LOGISTICS,1010146968,4.6,
Department of Health,Salisbury NHS Foundation Trust,15/11/2019,OTHER MEDICAL SUPPLIES,Medicine,NHS LOGISTICS,1010146968,23,
Department of Health,Salisbury NHS Foundation Trust,15/11/2019,BAGS SACKS - OTHER,Medicine,NHS LOGISTICS,1010146968,3.2,
Department of Health,Salisbury NHS Foundation Trust,15/11/2019,DRESSINGS - PRE STERILE,Medicine,NHS LOGISTICS,1010146968,3.82,
Department of Health,Salisbury NHS Foundation Trust,15/11/2019,DISPOSABLE THEATRE DRAPES WIPES,Medicine,NHS LOGISTICS,1010146968,1.73,
Department of Health,Salisbury NHS Foundation Trust,15/11/2019,TISSUES HAND TOWELS & TOILET PAPER,Medicine,NHS LOGISTICS,1010146968,1.22,
Department of Health,Salisbury NHS Foundation Trust,15/11/2019,DRESSINGS - PRE STERILE,Medicine,NHS LOGISTICS,1010146968,2.9,
Department of Health,Salisbury NHS Foundation Trust,15/11/2019,M & S EQUIPELECTEQUIPINST - OTHER,Medicine,NHS LOGISTICS,1010146968,11.76,
Department of Health,Salisbury NHS Foundation Trust,15/11/2019,MEDSURGCONS-OTHER,Medicine,NHS LOGISTICS,1010146968,6.76,
Department of Health,Salisbury NHS Foundation Trust,15/11/2019,MEDSURGCONS-OTHER,Medicine,NHS LOGISTICS,1010146968,5.43,
Department of Health,Salisbury NHS Foundation Trust,15/11/2019,MEDSURGCONS-OTHER,Medicine,NHS LOGISTICS,1010146968,2.39,
Department of Health,Salisbury NHS Foundation Trust,15/11/2019,DRESSINGS - PRE STERILE,Medicine,NHS LOGISTICS,1010146968,0.74,
Department of Health,Salisbury NHS Foundation Trust,15/11/2019,DRESSINGS  -  PROCEDURE PACKS,Medicine,NHS LOGISTICS,1010146968,14.5,
Department of Health,Salisbury NHS Foundation Trust,15/11/2019,DRESSINGS  -  PROCEDURE PACKS,Medicine,NHS LOGISTICS,1010146968,3.5,
Department of Health,Salisbury NHS Foundation Trust,15/11/2019,COOKING & KITCHEN UTENSILS,Medicine,NHS LOGISTICS,1010146968,16.56,
Department of Health,Salisbury NHS Foundation Trust,15/11/2019,OTHER MEDICAL SUPPLIES,Medicine,NHS LOGISTICS,1010146968,3,
Department of Health,Salisbury NHS Foundation Trust,15/11/2019,MEDSURGCONS-OTHER,Medicine,NHS LOGISTICS,1010146968,5,
Department of Health,Salisbury NHS Foundation Trust,15/11/2019,MEDSURGCONS-OTHER,Medicine,NHS LOGISTICS,1010146968,5.1,
Department of Health,Salisbury NHS Foundation Trust,15/11/2019,OTHER MEDICAL SUPPLIES,Medicine,NHS LOGISTICS,1010146968,7.12,
Department of Health,Salisbury NHS Foundation Trust,15/11/2019,OTHER MEDICAL SUPPLIES,Medicine,NHS LOGISTICS,1010146968,2.68,
Department of Health,Salisbury NHS Foundation Trust,15/11/2019,SURGICAL INSTRUMENTS - DISPOSABLE,Medicine,NHS LOGISTICS,1010146968,4.5,
Department of Health,Salisbury NHS Foundation Trust,15/11/2019,PATIENTS INCONTINENCE,Medicine,NHS LOGISTICS,1010146968,10.16,
Department of Health,Salisbury NHS Foundation Trust,15/11/2019,PATIENT APPLIANCES,Medicine,NHS LOGISTICS,1010146968,2.75,
Department of Health,Salisbury NHS Foundation Trust,15/11/2019,PATIENT APPLIANCES,Medicine,NHS LOGISTICS,1010146968,3.6,
Department of Health,Salisbury NHS Foundation Trust,15/11/2019,PATIENT APPLIANCES,Medicine,NHS LOGISTICS,1010146968,3.6,
Department of Health,Salisbury NHS Foundation Trust,15/11/2019,DRESSINGS - PRE STERILE,Medicine,NHS LOGISTICS,1010146968,4.08,
Department of Health,Salisbury NHS Foundation Trust,15/11/2019,MEDSURGCONS-OTHER,Medicine,NHS LOGISTICS,1010146968,3.53,
Department of Health,Salisbury NHS Foundation Trust,15/11/2019,MEDSURGCONS-OTHER,Medicine,NHS LOGISTICS,1010146968,6.16,
Department of Health,Salisbury NHS Foundation Trust,15/11/2019,MEDSURGCONS-OTHER,Medicine,NHS LOGISTICS,1010146968,12.8,
Department of Health,Salisbury NHS Foundation Trust,15/11/2019,TISSUES HAND TOWELS & TOILET PAPER,Medicine,NHS LOGISTICS,1010146968,0.6,
Department of Health,Salisbury NHS Foundation Trust,15/11/2019,MEDSURGCONS-OTHER,Medicine,NHS LOGISTICS,1010146968,0.78,
Department of Health,Salisbury NHS Foundation Trust,15/11/2019,MEDSURGCONS-OTHER,Medicine,NHS LOGISTICS,1010146968,3.24,
Department of Health,Salisbury NHS Foundation Trust,15/11/2019,TUBES,Medicine,NHS LOGISTICS,1010146968,2.74,
Department of Health,Salisbury NHS Foundation Trust,15/11/2019,DRESSINGS - PRE STERILE,Medicine,NHS LOGISTICS,1010146968,3.83,
Department of Health,Salisbury NHS Foundation Trust,15/11/2019,NON DISPOSABLE BED LINEN,Medicine,NHS LOGISTICS,1010146968,8.46,
Department of Health,Salisbury NHS Foundation Trust,15/11/2019,PATIENT APPLIANCES,Medicine,NHS LOGISTICS,1010146968,1.34,
Department of Health,Salisbury NHS Foundation Trust,15/11/2019,MEDSURGCONS-OTHER,Medicine,NHS LOGISTICS,1010146968,2.4,
Department of Health,Salisbury NHS Foundation Trust,15/11/2019,DISPOSABLE THEATRE DRAPES WIPES,Medicine,NHS LOGISTICS,1010146968,2.93,
Department of Health,Salisbury NHS Foundation Trust,15/11/2019,DISPOSABLE THEATRE DRAPES WIPES,Medicine,NHS LOGISTICS,1010146968,10.6,
Department of Health,Salisbury NHS Foundation Trust,15/11/2019,DRESSINGS  -  PROCEDURE PACKS,Medicine,NHS LOGISTICS,1010146968,561.5,
Department of Health,Salisbury NHS Foundation Trust,15/11/2019,NON DISPOSABLE THEATRE DRAPES WIPES,Medicine,NHS LOGISTICS,1010146968,34.5,
Department of Health,Salisbury NHS Foundation Trust,15/11/2019,SURGICAL INSTRUMENTS - GENERAL,Medicine,NHS LOGISTICS,1010146968,42.75,
Department of Health,Salisbury NHS Foundation Trust,15/11/2019,M & S EQUIPELECTEQUIPINST - OTHER,Medicine,NHS LOGISTICS,1010146968,304.22,
Department of Health,Salisbury NHS Foundation Trust,15/11/2019,OTHER MEDICAL SUPPLIES,Medicine,NHS LOGISTICS,1010146968,4.6,
Department of Health,Salisbury NHS Foundation Trust,15/11/2019,TUBES,Medicine,NHS LOGISTICS,1010146968,4.99,
Department of Health,Salisbury NHS Foundation Trust,15/11/2019,M & S EQUIPELECTEQUIPINST - OTHER,Medicine,NHS LOGISTICS,1010146968,3.66,
Department of Health,Salisbury NHS Foundation Trust,15/11/2019,TISSUES HAND TOWELS & TOILET PAPER,Medicine,NHS LOGISTICS,1010146968,0.6,
Department of Health,Salisbury NHS Foundation Trust,15/11/2019,DRESSINGS  -  PROCEDURE PACKS,Medicine,NHS LOGISTICS,1010146968,0.6,
Department of Health,Salisbury NHS Foundation Trust,15/11/2019,MEDSURGCONS-OTHER,Medicine,NHS LOGISTICS,1010146968,3.38,
Department of Health,Salisbury NHS Foundation Trust,15/11/2019,ANAESTHETIC EQUIPMENT ACCESSORIES,Medicine,NHS LOGISTICS,1010146968,1.92,
Department of Health,Salisbury NHS Foundation Trust,15/11/2019,OTHER MEDICAL SUPPLIES,Medicine,NHS LOGISTICS,1010146968,107.2,
Department of Health,Salisbury NHS Foundation Trust,15/11/2019,MEDSURGCONS-OTHER,Medicine,NHS LOGISTICS,1010146968,7.5,
Department of Health,Salisbury NHS Foundation Trust,15/11/2019,MEDSURGCONS-OTHER,Medicine,NHS LOGISTICS,1010146968,23,
Department of Health,Salisbury NHS Foundation Trust,15/11/2019,OTHER MEDICAL SUPPLIES,Medicine,NHS LOGISTICS,1010146968,6.63,
Department of Health,Salisbury NHS Foundation Trust,15/11/2019,OTHER MEDICAL SUPPLIES,Medicine,NHS LOGISTICS,1010146968,6.63,
Department of Health,Salisbury NHS Foundation Trust,15/11/2019,OTHER MEDICAL SUPPLIES,Medicine,NHS LOGISTICS,1010146968,1.34,
Department of Health,Salisbury NHS Foundation Trust,15/11/2019,OTHER MEDICAL SUPPLIES,Medicine,NHS LOGISTICS,1010146968,3.58,
Department of Health,Salisbury NHS Foundation Trust,15/11/2019,DRUGS,Medicine,NHS LOGISTICS,1010146968,72.36,
Department of Health,Salisbury NHS Foundation Trust,15/11/2019,MEDSURGCONS-SUTURES,Medicine,NHS LOGISTICS,1010146968,56.73,
Department of Health,Salisbury NHS Foundation Trust,15/11/2019,DRESSINGS - PRE STERILE,Medicine,NHS LOGISTICS,1010146968,19.56,
Department of Health,Salisbury NHS Foundation Trust,15/11/2019,MEDSURGCONS-OTHER,Medicine,NHS LOGISTICS,1010146968,6.4,
Department of Health,Salisbury NHS Foundation Trust,15/11/2019,NON DISPOSABLE BED LINEN,Medicine,NHS LOGISTICS,1010146968,5.25,
Department of Health,Salisbury NHS Foundation Trust,15/11/2019,DISPOSABLE THEATRE DRAPES WIPES,Medicine,NHS LOGISTICS,1010146968,2.93,
Department of Health,Salisbury NHS Foundation Trust,15/11/2019,DISPOSABLE THEATRE DRAPES WIPES,Medicine,NHS LOGISTICS,1010146968,10.6,
Department of Health,Salisbury NHS Foundation Trust,15/11/2019,DISPOSABLE THEATRE DRAPES WIPES,Medicine,NHS LOGISTICS,1010146968,3.13,
Department of Health,Salisbury NHS Foundation Trust,15/11/2019,DI & RADIO-RADIOLOGY EQUIPMENT,Clinical Support,NHS LOGISTICS,1010146968,950,
Department of Health,Salisbury NHS Foundation Trust,15/11/2019,DI & RADIO-RADIOLOGY EQUIPMENT,Clinical Support,NHS LOGISTICS,1010146968,783.75,
Department of Health,Salisbury NHS Foundation Trust,15/11/2019,MEDSURGCONS-OTHER,Clinical Support,NHS LOGISTICS,1010146968,32,
Department of Health,Salisbury NHS Foundation Trust,15/11/2019,MEDSURGCONS-OTHER,Clinical Support,NHS LOGISTICS,1010146968,127.96,
Department of Health,Salisbury NHS Foundation Trust,15/11/2019,LAB EQUIP-LABORATORY APPARATUS,Clinical Support,NHS LOGISTICS,1010146968,242,
Department of Health,Salisbury NHS Foundation Trust,15/11/2019,CLEANING MATERIAL PRODUCTS SUNDRIES,Clinical Support,NHS LOGISTICS,1010146968,6.6,
Department of Health,Salisbury NHS Foundation Trust,15/11/2019,OTHER MEDICAL SUPPLIES,Medicine,NHS LOGISTICS,1010146968,18.4,
Department of Health,Salisbury NHS Foundation Trust,15/11/2019,ELECTRICAL EQUIPMENT,Medicine,NHS LOGISTICS,1010146968,0.85,
Department of Health,Salisbury NHS Foundation Trust,15/11/2019,TUBES,Medicine,NHS LOGISTICS,1010146968,4.99,
Department of Health,Salisbury NHS Foundation Trust,15/11/2019,ELECTRICAL EQUIPMENT,Medicine,NHS LOGISTICS,1010146968,1.48,
Department of Health,Salisbury NHS Foundation Trust,15/11/2019,M & S EQUIPELECTEQUIPINST - OTHER,Medicine,NHS LOGISTICS,1010146968,4.88,
Department of Health,Salisbury NHS Foundation Trust,15/11/2019,MEDSURGCONS-OTHER,Medicine,NHS LOGISTICS,1010146968,4.55,
Department of Health,Salisbury NHS Foundation Trust,15/11/2019,DRESSINGS - PRE STERILE,Medicine,NHS LOGISTICS,1010146968,11.9,
Department of Health,Salisbury NHS Foundation Trust,15/11/2019,MEDSURGCONS-OTHER,Medicine,NHS LOGISTICS,1010146968,33.6,
Department of Health,Salisbury NHS Foundation Trust,15/11/2019,MEDSURGCONS-OTHER,Medicine,NHS LOGISTICS,1010146968,6.38,
Department of Health,Salisbury NHS Foundation Trust,15/11/2019,MEDSURGCONS-OTHER,Medicine,NHS LOGISTICS,1010146968,26.65,
Department of Health,Salisbury NHS Foundation Trust,15/11/2019,MEDSURGCONS-OTHER,Medicine,NHS LOGISTICS,1010146968,3.38,
Department of Health,Salisbury NHS Foundation Trust,15/11/2019,DRESSINGS  -  PROCEDURE PACKS,Medicine,NHS LOGISTICS,1010146968,9.6,
Department of Health,Salisbury NHS Foundation Trust,15/11/2019,DRESSINGS  -  PROCEDURE PACKS,Medicine,NHS LOGISTICS,1010146968,2.8,
Department of Health,Salisbury NHS Foundation Trust,15/11/2019,TOILETRIES PERSONAL HYGIENE PRODUCT,Medicine,NHS LOGISTICS,1010146968,1.77,
Department of Health,Salisbury NHS Foundation Trust,15/11/2019,MEDSURGCONS-OTHER,Medicine,NHS LOGISTICS,1010146968,6,
Department of Health,Salisbury NHS Foundation Trust,15/11/2019,MEDSURGCONS-OTHER,Medicine,NHS LOGISTICS,1010146968,5.1,
Department of Health,Salisbury NHS Foundation Trust,15/11/2019,OTHER MEDICAL SUPPLIES,Medicine,NHS LOGISTICS,1010146968,7.12,
Department of Health,Salisbury NHS Foundation Trust,15/11/2019,OTHER MEDICAL SUPPLIES,Medicine,NHS LOGISTICS,1010146968,1.34,
Department of Health,Salisbury NHS Foundation Trust,15/11/2019,SURGICAL INSTRUMENTS - DISPOSABLE,Medicine,NHS LOGISTICS,1010146968,2.25,
Department of Health,Salisbury NHS Foundation Trust,15/11/2019,PATIENTS INCONTINENCE,Medicine,NHS LOGISTICS,1010146968,5.08,
Department of Health,Salisbury NHS Foundation Trust,15/11/2019,PATIENT APPLIANCES,Medicine,NHS LOGISTICS,1010146968,2.75,
Department of Health,Salisbury NHS Foundation Trust,15/11/2019,TOILETRIES PERSONAL HYGIENE PRODUCT,Medicine,NHS LOGISTICS,1010146968,2.88,
Department of Health,Salisbury NHS Foundation Trust,15/11/2019,DRESSINGS - PRE STERILE,Medicine,NHS LOGISTICS,1010146968,2.04,
Department of Health,Salisbury NHS Foundation Trust,15/11/2019,DRESSINGS - PRE STERILE,Medicine,NHS LOGISTICS,1010146968,1.72,
Department of Health,Salisbury NHS Foundation Trust,15/11/2019,MEDSURGCONS-OTHER,Medicine,NHS LOGISTICS,1010146968,12.8,
Department of Health,Salisbury NHS Foundation Trust,15/11/2019,TISSUES HAND TOWELS & TOILET PAPER,Medicine,NHS LOGISTICS,1010146968,0.6,
Department of Health,Salisbury NHS Foundation Trust,15/11/2019,MEDSURGCONS-OTHER,Medicine,NHS LOGISTICS,1010146968,0.78,
Department of Health,Salisbury NHS Foundation Trust,15/11/2019,DRESSINGS - PRE STERILE,Medicine,NHS LOGISTICS,1010146968,3.83,
Department of Health,Salisbury NHS Foundation Trust,15/11/2019,NON DISPOSABLE BED LINEN,Medicine,NHS LOGISTICS,1010146968,11.28,
Department of Health,Salisbury NHS Foundation Trust,15/11/2019,MEDSURGCONS-OTHER,Medicine,NHS LOGISTICS,1010146968,0.21,
Department of Health,Salisbury NHS Foundation Trust,15/11/2019,DISPOSABLE THEATRE DRAPES WIPES,Medicine,NHS LOGISTICS,1010146968,2.93,
Department of Health,Salisbury NHS Foundation Trust,15/11/2019,DISPOSABLE THEATRE DRAPES WIPES,Medicine,NHS LOGISTICS,1010146968,21.2,
Department of Health,Salisbury NHS Foundation Trust,15/11/2019,BAGS SACKS - OTHER,Clinical Support,NHS LOGISTICS,1010146968,2.24,
Department of Health,Salisbury NHS Foundation Trust,15/11/2019,TISSUES HAND TOWELS & TOILET PAPER,Clinical Support,NHS LOGISTICS,1010146968,10.53,
Department of Health,Salisbury NHS Foundation Trust,15/11/2019,MEDSURGCONS-OTHER,Corporate - Finance & Procurement,NHS LOGISTICS,1010146968,1718.4,
Department of Health,Salisbury NHS Foundation Trust,15/11/2019,MEDSURGCONS-OTHER,Corporate - Finance & Procurement,NHS LOGISTICS,1010146968,1718.4,
Department of Health,Salisbury NHS Foundation Trust,15/11/2019,M & S EQUIPELECTEQUIPINST - OTHER,Clinical Support,NHS LOGISTICS,1010146968,145,
Department of Health,Salisbury NHS Foundation Trust,15/11/2019,TISSUES HAND TOWELS & TOILET PAPER,Clinical Support,NHS LOGISTICS,1010146968,31.59,
Department of Health,Salisbury NHS Foundation Trust,15/11/2019,MEDSURGCONS-OTHER,Clinical Support,NHS LOGISTICS,1010146968,6.76,
Department of Health,Salisbury NHS Foundation Trust,15/11/2019,DRESSINGS  -  PROCEDURE PACKS,Clinical Support,NHS LOGISTICS,1010146968,3.2,
Department of Health,Salisbury NHS Foundation Trust,15/11/2019,OTHER MEDICAL SUPPLIES,Clinical Support,NHS LOGISTICS,1010146968,3,
Department of Health,Salisbury NHS Foundation Trust,15/11/2019,DRESSINGS - PRE STERILE,Clinical Support,NHS LOGISTICS,1010146968,1.44,
Department of Health,Salisbury NHS Foundation Trust,15/11/2019,NON DISPOSABLE BED LINEN,Clinical Support,NHS LOGISTICS,1010146968,5.64,
Department of Health,Salisbury NHS Foundation Trust,15/11/2019,LAB EQUIP-LABORATORY APPARATUS,Clinical Support,NHS LOGISTICS,1010146968,58.4,
Department of Health,Salisbury NHS Foundation Trust,15/11/2019,BEVERAGES & AMBIENT FOOD,Facilities,NHS LOGISTICS,1010146968,36.45,
Department of Health,Salisbury NHS Foundation Trust,15/11/2019,MEDSURGCONS-SUTURES,Musculo-Skeletal,NHS LOGISTICS,1010146968,71.24,
Department of Health,Salisbury NHS Foundation Trust,15/11/2019,DRESSINGS - PRE STERILE,Musculo-Skeletal,NHS LOGISTICS,1010146968,146.4,
Department of Health,Salisbury NHS Foundation Trust,15/11/2019,DRESSINGS - PRE STERILE,Medicine,NHS LOGISTICS,1010146968,6.63,
Department of Health,Salisbury NHS Foundation Trust,15/11/2019,DRESSINGS - PRE STERILE,Medicine,NHS LOGISTICS,1010146968,2.79,
Department of Health,Salisbury NHS Foundation Trust,15/11/2019,DRESSINGS - PRE STERILE,Medicine,NHS LOGISTICS,1010146968,7.14,
Department of Health,Salisbury NHS Foundation Trust,15/11/2019,PATIENT APPLIANCES,Medicine,NHS LOGISTICS,1010146968,75,
Department of Health,Salisbury NHS Foundation Trust,15/11/2019,MEDSURGCONS-SUTURES,Medicine,NHS LOGISTICS,1010146968,50.33,
Department of Health,Salisbury NHS Foundation Trust,15/11/2019,OTHER MEDICAL SUPPLIES,Medicine,NHS LOGISTICS,1010146968,23,
Department of Health,Salisbury NHS Foundation Trust,15/11/2019,OTHER MEDICAL SUPPLIES,Medicine,NHS LOGISTICS,1010146968,41,
Department of Health,Salisbury NHS Foundation Trust,15/11/2019,OTHER MEDICAL SUPPLIES,Medicine,NHS LOGISTICS,1010146968,1.6,
Department of Health,Salisbury NHS Foundation Trust,15/11/2019,BAGS SACKS - OTHER,Medicine,NHS LOGISTICS,1010146968,9.6,
Department of Health,Salisbury NHS Foundation Trust,15/11/2019,DRESSINGS - PRE STERILE,Medicine,NHS LOGISTICS,1010146968,1.36,
Department of Health,Salisbury NHS Foundation Trust,15/11/2019,DRESSINGS - PRE STERILE,Medicine,NHS LOGISTICS,1010146968,1.46,
Department of Health,Salisbury NHS Foundation Trust,15/11/2019,DRESSINGS - PRE STERILE,Medicine,NHS LOGISTICS,1010146968,1,
Department of Health,Salisbury NHS Foundation Trust,15/11/2019,DRESSINGS - PRE STERILE,Medicine,NHS LOGISTICS,1010146968,1.18,
Department of Health,Salisbury NHS Foundation Trust,15/11/2019,DRESSINGS - PRE STERILE,Medicine,NHS LOGISTICS,1010146968,3.18,
Department of Health,Salisbury NHS Foundation Trust,15/11/2019,DRESSINGS - PRE STERILE,Medicine,NHS LOGISTICS,1010146968,29.87,
Department of Health,Salisbury NHS Foundation Trust,15/11/2019,DRESSINGS - PRE STERILE,Medicine,NHS LOGISTICS,1010146968,41.71,
Department of Health,Salisbury NHS Foundation Trust,15/11/2019,DRESSINGS - PRE STERILE,Medicine,NHS LOGISTICS,1010146968,2.8,
Department of Health,Salisbury NHS Foundation Trust,15/11/2019,DRESSINGS - PRE STERILE,Medicine,NHS LOGISTICS,1010146968,5,
Department of Health,Salisbury NHS Foundation Trust,15/11/2019,DRESSINGS - PRE STERILE,Medicine,NHS LOGISTICS,1010146968,0.9,
Department of Health,Salisbury NHS Foundation Trust,15/11/2019,TUBES,Medicine,NHS LOGISTICS,1010146968,4.99,
Department of Health,Salisbury NHS Foundation Trust,15/11/2019,M & S EQUIPELECTEQUIPINST - OTHER,Medicine,NHS LOGISTICS,1010146968,2.44,
Department of Health,Salisbury NHS Foundation Trust,15/11/2019,MEDSURGCONS-OTHER,Medicine,NHS LOGISTICS,1010146968,18.2,
Department of Health,Salisbury NHS Foundation Trust,15/11/2019,DRESSINGS - PRE STERILE,Medicine,NHS LOGISTICS,1010146968,23.8,
Department of Health,Salisbury NHS Foundation Trust,15/11/2019,DRESSINGS - PRE STERILE,Medicine,NHS LOGISTICS,1010146968,1.45,
Department of Health,Salisbury NHS Foundation Trust,15/11/2019,MEDSURGCONS-OTHER,Medicine,NHS LOGISTICS,1010146968,5.6,
Department of Health,Salisbury NHS Foundation Trust,15/11/2019,OTHER MEDICAL SUPPLIES,Medicine,NHS LOGISTICS,1010146968,9.04,
Department of Health,Salisbury NHS Foundation Trust,15/11/2019,ANAESTHETIC EQUIPMENT ACCESSORIES,Medicine,NHS LOGISTICS,1010146968,3,
Department of Health,Salisbury NHS Foundation Trust,15/11/2019,TISSUES HAND TOWELS & TOILET PAPER,Medicine,NHS LOGISTICS,1010146968,3,
Department of Health,Salisbury NHS Foundation Trust,15/11/2019,MEDSURGCONS-OTHER,Medicine,NHS LOGISTICS,1010146968,53.3,
Department of Health,Salisbury NHS Foundation Trust,15/11/2019,MEDSURGCONS-OTHER,Medicine,NHS LOGISTICS,1010146968,89.8,
Department of Health,Salisbury NHS Foundation Trust,15/11/2019,M & S EQUIPELECTEQUIPINST - OTHER,Medicine,NHS LOGISTICS,1010146968,11.76,
Department of Health,Salisbury NHS Foundation Trust,15/11/2019,MEDSURGCONS-OTHER,Medicine,NHS LOGISTICS,1010146968,10.14,
Department of Health,Salisbury NHS Foundation Trust,15/11/2019,MEDSURGCONS-OTHER,Medicine,NHS LOGISTICS,1010146968,2.39,
Department of Health,Salisbury NHS Foundation Trust,15/11/2019,TUBES,Medicine,NHS LOGISTICS,1010146968,5.82,
Department of Health,Salisbury NHS Foundation Trust,15/11/2019,HEALTHCARE - WEAR,Medicine,NHS LOGISTICS,1010146968,56.94,
Department of Health,Salisbury NHS Foundation Trust,15/11/2019,M & S EQUIPELECTEQUIPINST - OTHER,Medicine,NHS LOGISTICS,1010146968,14.25,
Department of Health,Salisbury NHS Foundation Trust,15/11/2019,DRESSINGS - PRE STERILE,Medicine,NHS LOGISTICS,1010146968,5.92,
Department of Health,Salisbury NHS Foundation Trust,15/11/2019,OTHER MEDICAL SUPPLIES,Medicine,NHS LOGISTICS,1010146968,2.8,
Department of Health,Salisbury NHS Foundation Trust,15/11/2019,PATIENT APPLIANCES,Medicine,NHS LOGISTICS,1010146968,7,
Department of Health,Salisbury NHS Foundation Trust,15/11/2019,PATIENT APPLIANCES,Medicine,NHS LOGISTICS,1010146968,14,
Department of Health,Salisbury NHS Foundation Trust,15/11/2019,PATIENT APPLIANCES,Medicine,NHS LOGISTICS,1010146968,7,
Department of Health,Salisbury NHS Foundation Trust,15/11/2019,ANAESTHETIC EQUIPMENT ACCESSORIES,Medicine,NHS LOGISTICS,1010146968,1.92,
Department of Health,Salisbury NHS Foundation Trust,15/11/2019,DRESSINGS  -  PROCEDURE PACKS,Medicine,NHS LOGISTICS,1010146968,1.75,
Department of Health,Salisbury NHS Foundation Trust,15/11/2019,DRESSINGS  -  PROCEDURE PACKS,Medicine,NHS LOGISTICS,1010146968,14.5,
Department of Health,Salisbury NHS Foundation Trust,15/11/2019,DRESSINGS  -  PROCEDURE PACKS,Medicine,NHS LOGISTICS,1010146968,7,
Department of Health,Salisbury NHS Foundation Trust,15/11/2019,OTHER MEDICAL SUPPLIES,Medicine,NHS LOGISTICS,1010146968,12.75,
Department of Health,Salisbury NHS Foundation Trust,15/11/2019,MEDSURGCONS-OTHER,Medicine,NHS LOGISTICS,1010146968,69,
Department of Health,Salisbury NHS Foundation Trust,15/11/2019,OTHER MEDICAL SUPPLIES,Medicine,NHS LOGISTICS,1010146968,1.34,
Department of Health,Salisbury NHS Foundation Trust,15/11/2019,OTHER MEDICAL SUPPLIES,Medicine,NHS LOGISTICS,1010146968,3.58,
Department of Health,Salisbury NHS Foundation Trust,15/11/2019,PATIENTS INCONTINENCE,Medicine,NHS LOGISTICS,1010146968,2.54,
Department of Health,Salisbury NHS Foundation Trust,15/11/2019,PATIENTS INCONTINENCE,Medicine,NHS LOGISTICS,1010146968,3.39,
Department of Health,Salisbury NHS Foundation Trust,15/11/2019,DRESSINGS - PRE STERILE,Medicine,NHS LOGISTICS,1010146968,26.67,
Department of Health,Salisbury NHS Foundation Trust,15/11/2019,DRESSINGS - PRE STERILE,Medicine,NHS LOGISTICS,1010146968,2.76,
Department of Health,Salisbury NHS Foundation Trust,15/11/2019,DRESSINGS - PRE STERILE,Medicine,NHS LOGISTICS,1010146968,18,
Department of Health,Salisbury NHS Foundation Trust,15/11/2019,MEDSURGCONS-OTHER,Medicine,NHS LOGISTICS,1010146968,19.2,
Department of Health,Salisbury NHS Foundation Trust,15/11/2019,MEDSURGCONS-OTHER,Medicine,NHS LOGISTICS,1010146968,12.53,
Department of Health,Salisbury NHS Foundation Trust,15/11/2019,DRESSINGS - PRE STERILE,Medicine,NHS LOGISTICS,1010146968,1.17,
Department of Health,Salisbury NHS Foundation Trust,15/11/2019,NON DISPOSABLE BED LINEN,Medicine,NHS LOGISTICS,1010146968,11.28,
Department of Health,Salisbury NHS Foundation Trust,15/11/2019,DISPOSABLE THEATRE DRAPES WIPES,Medicine,NHS LOGISTICS,1010146968,2.93,
Department of Health,Salisbury NHS Foundation Trust,15/11/2019,DISPOSABLE THEATRE DRAPES WIPES,Medicine,NHS LOGISTICS,1010146968,53,
Department of Health,Salisbury NHS Foundation Trust,15/11/2019,PATIENTS INCONTINENCE,Medicine,NHS LOGISTICS,1010146968,13.12,
Department of Health,Salisbury NHS Foundation Trust,15/11/2019,M & S EQUIPELECTEQUIPINST - OTHER,Medicine,NHS LOGISTICS,1010146968,7.98,
Department of Health,Salisbury NHS Foundation Trust,15/11/2019,TISSUES HAND TOWELS & TOILET PAPER,Medicine,NHS LOGISTICS,1010146968,1.22,
Department of Health,Salisbury NHS Foundation Trust,15/11/2019,MEDSURGCONS-OTHER,Medicine,NHS LOGISTICS,1010146968,26.65,
Department of Health,Salisbury NHS Foundation Trust,15/11/2019,M & S EQUIPELECTEQUIPINST - OTHER,Medicine,NHS LOGISTICS,1010146968,11.76,
Department of Health,Salisbury NHS Foundation Trust,15/11/2019,MEDSURGCONS-OTHER,Medicine,NHS LOGISTICS,1010146968,1.53,
Department of Health,Salisbury NHS Foundation Trust,15/11/2019,DRESSINGS  -  PROCEDURE PACKS,Medicine,NHS LOGISTICS,1010146968,6.4,
Department of Health,Salisbury NHS Foundation Trust,15/11/2019,DRESSINGS  -  PROCEDURE PACKS,Medicine,NHS LOGISTICS,1010146968,1.4,
Department of Health,Salisbury NHS Foundation Trust,15/11/2019,MEDSURGCONS-OTHER,Medicine,NHS LOGISTICS,1010146968,2,
Department of Health,Salisbury NHS Foundation Trust,15/11/2019,MEDSURGCONS-OTHER,Medicine,NHS LOGISTICS,1010146968,1.53,
Department of Health,Salisbury NHS Foundation Trust,15/11/2019,OTHER MEDICAL SUPPLIES,Medicine,NHS LOGISTICS,1010146968,6.63,
Department of Health,Salisbury NHS Foundation Trust,15/11/2019,MEDSURGCONS-OTHER,Medicine,NHS LOGISTICS,1010146968,89.26,
Department of Health,Salisbury NHS Foundation Trust,15/11/2019,PATIENTS INCONTINENCE,Medicine,NHS LOGISTICS,1010146968,5.62,
Department of Health,Salisbury NHS Foundation Trust,15/11/2019,MEDSURGCONS-OTHER,Medicine,NHS LOGISTICS,1010146968,3.53,
Department of Health,Salisbury NHS Foundation Trust,15/11/2019,MEDSURGCONS-OTHER,Medicine,NHS LOGISTICS,1010146968,0.78,
Department of Health,Salisbury NHS Foundation Trust,15/11/2019,MEDSURGCONS-OTHER,Medicine,NHS LOGISTICS,1010146968,3.24,
Department of Health,Salisbury NHS Foundation Trust,15/11/2019,NON DISPOSABLE BED LINEN,Medicine,NHS LOGISTICS,1010146968,5.64,
Department of Health,Salisbury NHS Foundation Trust,15/11/2019,DRESSINGS  -  PROCEDURE PACKS,Corporate - Finance & Procurement,NHS LOGISTICS,1010146968,297.43,
Department of Health,Salisbury NHS Foundation Trust,15/11/2019,DRESSINGS  -  PROCEDURE PACKS,Corporate - Finance & Procurement,NHS LOGISTICS,1010146968,193.2,
Department of Health,Salisbury NHS Foundation Trust,15/11/2019,DRESSINGS  -  PROCEDURE PACKS,Corporate - Finance & Procurement,NHS LOGISTICS,1010146968,421.85,
Department of Health,Salisbury NHS Foundation Trust,15/11/2019,DRESSINGS  -  PROCEDURE PACKS,Corporate - Finance & Procurement,NHS LOGISTICS,1010146968,370.05,
Department of Health,Salisbury NHS Foundation Trust,15/11/2019,DRESSINGS  -  PROCEDURE PACKS,Corporate - Finance & Procurement,NHS LOGISTICS,1010146968,249.55,
Department of Health,Salisbury NHS Foundation Trust,15/11/2019,DRESSINGS  -  PROCEDURE PACKS,Corporate - Finance & Procurement,NHS LOGISTICS,1010146968,182.15,
Department of Health,Salisbury NHS Foundation Trust,15/11/2019,DRESSINGS  -  PROCEDURE PACKS,Corporate - Finance & Procurement,NHS LOGISTICS,1010146968,149.7,
Department of Health,Salisbury NHS Foundation Trust,15/11/2019,DRESSINGS  -  PROCEDURE PACKS,Corporate - Finance & Procurement,NHS LOGISTICS,1010146968,127.8,
Department of Health,Salisbury NHS Foundation Trust,15/11/2019,HEARING AIDS SPARES,Surgery,NHS LOGISTICS,1010146968,21.6,
Department of Health,Salisbury NHS Foundation Trust,15/11/2019,HEARING AIDS SPARES,Surgery,NHS LOGISTICS,1010146968,21.6,
Department of Health,Salisbury NHS Foundation Trust,15/11/2019,MEDSURGCONS-SUTURES,Surgery,NHS LOGISTICS,1010146968,82.49,
Department of Health,Salisbury NHS Foundation Trust,15/11/2019,TISSUES HAND TOWELS & TOILET PAPER,Surgery,NHS LOGISTICS,1010146968,2.44,
Department of Health,Salisbury NHS Foundation Trust,15/11/2019,MEDSURGCONS-OTHER,Surgery,NHS LOGISTICS,1010146968,3.38,
Department of Health,Salisbury NHS Foundation Trust,15/11/2019,MEDSURGCONS-OTHER,Surgery,NHS LOGISTICS,1010146968,2.39,
Department of Health,Salisbury NHS Foundation Trust,15/11/2019,OTHER MEDICAL SUPPLIES,Surgery,NHS LOGISTICS,1010146968,6.68,
Department of Health,Salisbury NHS Foundation Trust,15/11/2019,OTHER MEDICAL SUPPLIES,Surgery,NHS LOGISTICS,1010146968,7.04,
Department of Health,Salisbury NHS Foundation Trust,15/11/2019,OTHER MEDICAL SUPPLIES,Surgery,NHS LOGISTICS,1010146968,6.63,
Department of Health,Salisbury NHS Foundation Trust,15/11/2019,OTHER MEDICAL SUPPLIES,Surgery,NHS LOGISTICS,1010146968,5.36,
Department of Health,Salisbury NHS Foundation Trust,15/11/2019,MEDSURGCONS-SUTURES,Surgery,NHS LOGISTICS,1010146968,90.34,
Department of Health,Salisbury NHS Foundation Trust,15/11/2019,MEDSURGCONS-SUTURES,Surgery,NHS LOGISTICS,1010146968,25.62,
Department of Health,Salisbury NHS Foundation Trust,15/11/2019,MEDSURGCONS-SUTURES,Surgery,NHS LOGISTICS,1010146968,65.45,
Department of Health,Salisbury NHS Foundation Trust,15/11/2019,DISPOSABLE THEATRE DRAPES WIPES,Surgery,NHS LOGISTICS,1010146968,21.2,
Department of Health,Salisbury NHS Foundation Trust,15/11/2019,SURGICAL INSTRUMENTS - GENERAL,Musculo-Skeletal,NHS LOGISTICS,1010146968,535.08,
Department of Health,Salisbury NHS Foundation Trust,15/11/2019,SURGICAL INSTRUMENTS - GENERAL,Musculo-Skeletal,NHS LOGISTICS,1010146968,267.54,
Department of Health,Salisbury NHS Foundation Trust,15/11/2019,TUBES,Surgery,NHS LOGISTICS,1010146968,4.99,
Department of Health,Salisbury NHS Foundation Trust,15/11/2019,TUBES,Surgery,NHS LOGISTICS,1010146968,5.48,
Department of Health,Salisbury NHS Foundation Trust,15/11/2019,DRESSINGS - PRE STERILE,Surgery,NHS LOGISTICS,1010146968,78.3,
Department of Health,Salisbury NHS Foundation Trust,15/11/2019,OTHER MEDICAL SUPPLIES,Surgery,NHS LOGISTICS,1010146968,6.48,
Department of Health,Salisbury NHS Foundation Trust,15/11/2019,OTHER MEDICAL SUPPLIES,Surgery,NHS LOGISTICS,1010146968,34.5,
Department of Health,Salisbury NHS Foundation Trust,15/11/2019,OTHER MEDICAL SUPPLIES,Surgery,NHS LOGISTICS,1010146968,1.6,
Department of Health,Salisbury NHS Foundation Trust,15/11/2019,OTHER MEDICAL SUPPLIES,Surgery,NHS LOGISTICS,1010146968,1.6,
Department of Health,Salisbury NHS Foundation Trust,15/11/2019,ANAESTHETIC EQUIPMENT ACCESSORIES,Surgery,NHS LOGISTICS,1010146968,37.8,
Department of Health,Salisbury NHS Foundation Trust,15/11/2019,ANAESTHETIC EQUIPMENT ACCESSORIES,Surgery,NHS LOGISTICS,1010146968,37.8,
Department of Health,Salisbury NHS Foundation Trust,15/11/2019,ANAESTHETIC EQUIPMENT ACCESSORIES,Surgery,NHS LOGISTICS,1010146968,226.8,
Department of Health,Salisbury NHS Foundation Trust,15/11/2019,MEDSURGCONS-OTHER,Surgery,NHS LOGISTICS,1010146968,10.22,
Department of Health,Salisbury NHS Foundation Trust,15/11/2019,TUBES,Surgery,NHS LOGISTICS,1010146968,14.97,
Department of Health,Salisbury NHS Foundation Trust,15/11/2019,MEDSURGCONS-OTHER,Surgery,NHS LOGISTICS,1010146968,5.17,
Department of Health,Salisbury NHS Foundation Trust,15/11/2019,TUBES,Surgery,NHS LOGISTICS,1010146968,3,
Department of Health,Salisbury NHS Foundation Trust,15/11/2019,TUBES,Surgery,NHS LOGISTICS,1010146968,3,
Department of Health,Salisbury NHS Foundation Trust,15/11/2019,DRESSINGS - PRE STERILE,Surgery,NHS LOGISTICS,1010146968,11.9,
Department of Health,Salisbury NHS Foundation Trust,15/11/2019,OTHER MEDICAL SUPPLIES,Surgery,NHS LOGISTICS,1010146968,33.9,
Department of Health,Salisbury NHS Foundation Trust,15/11/2019,MEDSURGCONS-OTHER,Surgery,NHS LOGISTICS,1010146968,36,
Department of Health,Salisbury NHS Foundation Trust,15/11/2019,MEDSURGCONS-OTHER,Surgery,NHS LOGISTICS,1010146968,6.76,
Department of Health,Salisbury NHS Foundation Trust,15/11/2019,MEDSURGCONS-OTHER,Surgery,NHS LOGISTICS,1010146968,5.43,
Department of Health,Salisbury NHS Foundation Trust,15/11/2019,MEDSURGCONS-OTHER,Surgery,NHS LOGISTICS,1010146968,1.53,
Department of Health,Salisbury NHS Foundation Trust,15/11/2019,MEDSURGCONS-OTHER,Surgery,NHS LOGISTICS,1010146968,2.39,
Department of Health,Salisbury NHS Foundation Trust,15/11/2019,M & S EQUIPELECTEQUIPINST - OTHER,Surgery,NHS LOGISTICS,1010146968,25,
Department of Health,Salisbury NHS Foundation Trust,15/11/2019,M & S EQUIPELECTEQUIPINST - OTHER,Surgery,NHS LOGISTICS,1010146968,25,
Department of Health,Salisbury NHS Foundation Trust,15/11/2019,MEDSURGCONS-OTHER,Surgery,NHS LOGISTICS,1010146968,92.64,
Department of Health,Salisbury NHS Foundation Trust,15/11/2019,MEDSURGCONS-OTHER,Surgery,NHS LOGISTICS,1010146968,23,
Department of Health,Salisbury NHS Foundation Trust,15/11/2019,OTHER MEDICAL SUPPLIES,Surgery,NHS LOGISTICS,1010146968,6.63,
Department of Health,Salisbury NHS Foundation Trust,15/11/2019,OTHER MEDICAL SUPPLIES,Surgery,NHS LOGISTICS,1010146968,8.04,
Department of Health,Salisbury NHS Foundation Trust,15/11/2019,DRUGS,Surgery,NHS LOGISTICS,1010146968,21.24,
Department of Health,Salisbury NHS Foundation Trust,15/11/2019,OTHER MEDICAL SUPPLIES,Surgery,NHS LOGISTICS,1010146968,10.6,
Department of Health,Salisbury NHS Foundation Trust,15/11/2019,OTHER MEDICAL SUPPLIES,Surgery,NHS LOGISTICS,1010146968,10.6,
Department of Health,Salisbury NHS Foundation Trust,15/11/2019,SURGICAL INSTRUMENTS - GENERAL,Surgery,NHS LOGISTICS,1010146968,4.13,
Department of Health,Salisbury NHS Foundation Trust,15/11/2019,SURGICAL INSTRUMENTS - GENERAL,Surgery,NHS LOGISTICS,1010146968,9.5,
Department of Health,Salisbury NHS Foundation Trust,15/11/2019,TUBES,Surgery,NHS LOGISTICS,1010146968,10.96,
Department of Health,Salisbury NHS Foundation Trust,15/11/2019,MEDSURGCONS-OTHER,Surgery,NHS LOGISTICS,1010146968,125,
Department of Health,Salisbury NHS Foundation Trust,15/11/2019,OTHER MEDICAL SUPPLIES,Surgery,NHS LOGISTICS,1010146968,27.6,
Department of Health,Salisbury NHS Foundation Trust,15/11/2019,TUBES,Surgery,NHS LOGISTICS,1010146968,4.99,
Department of Health,Salisbury NHS Foundation Trust,15/11/2019,ELECTRICAL EQUIPMENT,Surgery,NHS LOGISTICS,1010146968,1.48,
Department of Health,Salisbury NHS Foundation Trust,15/11/2019,MEDSURGCONS-OTHER,Surgery,NHS LOGISTICS,1010146968,7.94,
Department of Health,Salisbury NHS Foundation Trust,15/11/2019,MEDSURGCONS-OTHER,Surgery,NHS LOGISTICS,1010146968,49.68,
Department of Health,Salisbury NHS Foundation Trust,15/11/2019,TUBES,Surgery,NHS LOGISTICS,1010146968,35,
Department of Health,Salisbury NHS Foundation Trust,15/11/2019,DISPOSABLE THEATRE DRAPES WIPES,Surgery,NHS LOGISTICS,1010146968,1.73,
Department of Health,Salisbury NHS Foundation Trust,15/11/2019,M & S EQUIPELECTEQUIPINST - OTHER,Surgery,NHS LOGISTICS,1010146968,7.98,
Department of Health,Salisbury NHS Foundation Trust,15/11/2019,MEDSURGCONS-OTHER,Surgery,NHS LOGISTICS,1010146968,4.55,
Department of Health,Salisbury NHS Foundation Trust,15/11/2019,DRESSINGS  -  PROCEDURE PACKS,Surgery,NHS LOGISTICS,1010146968,2.48,
Department of Health,Salisbury NHS Foundation Trust,15/11/2019,DRESSINGS - PRE STERILE,Surgery,NHS LOGISTICS,1010146968,2.9,
Department of Health,Salisbury NHS Foundation Trust,15/11/2019,MEDSURGCONS-OTHER,Surgery,NHS LOGISTICS,1010146968,7,
Department of Health,Salisbury NHS Foundation Trust,15/11/2019,PATIENTS INCONTINENCE,Surgery,NHS LOGISTICS,1010146968,2.29,
Department of Health,Salisbury NHS Foundation Trust,15/11/2019,PATIENTS INCONTINENCE,Surgery,NHS LOGISTICS,1010146968,1.98,
Department of Health,Salisbury NHS Foundation Trust,15/11/2019,MEDSURGCONS-OTHER,Surgery,NHS LOGISTICS,1010146968,6.76,
Department of Health,Salisbury NHS Foundation Trust,15/11/2019,MEDSURGCONS-OTHER,Surgery,NHS LOGISTICS,1010146968,5.43,
Department of Health,Salisbury NHS Foundation Trust,15/11/2019,DRESSINGS - PRE STERILE,Surgery,NHS LOGISTICS,1010146968,4.44,
Department of Health,Salisbury NHS Foundation Trust,15/11/2019,DRESSINGS  -  PROCEDURE PACKS,Surgery,NHS LOGISTICS,1010146968,29,
Department of Health,Salisbury NHS Foundation Trust,15/11/2019,DRESSINGS  -  PROCEDURE PACKS,Surgery,NHS LOGISTICS,1010146968,3.5,
Department of Health,Salisbury NHS Foundation Trust,15/11/2019,MEDSURGCONS-OTHER,Surgery,NHS LOGISTICS,1010146968,7.65,
Department of Health,Salisbury NHS Foundation Trust,15/11/2019,OTHER MEDICAL SUPPLIES,Surgery,NHS LOGISTICS,1010146968,2.68,
Department of Health,Salisbury NHS Foundation Trust,15/11/2019,PATIENTS INCONTINENCE,Surgery,NHS LOGISTICS,1010146968,2.81,
Department of Health,Salisbury NHS Foundation Trust,15/11/2019,TOILETRIES PERSONAL HYGIENE PRODUCT,Surgery,NHS LOGISTICS,1010146968,3.26,
Department of Health,Salisbury NHS Foundation Trust,15/11/2019,MEDSURGCONS-OTHER,Surgery,NHS LOGISTICS,1010146968,44,
Department of Health,Salisbury NHS Foundation Trust,15/11/2019,DRESSINGS - PRE STERILE,Surgery,NHS LOGISTICS,1010146968,2.76,
Department of Health,Salisbury NHS Foundation Trust,15/11/2019,MEDSURGCONS-OTHER,Surgery,NHS LOGISTICS,1010146968,0.78,
Department of Health,Salisbury NHS Foundation Trust,15/11/2019,NON DISPOSABLE BED LINEN,Surgery,NHS LOGISTICS,1010146968,14.1,
Department of Health,Salisbury NHS Foundation Trust,15/11/2019,PATIENT APPLIANCES,Surgery,NHS LOGISTICS,1010146968,12.8,
Department of Health,Salisbury NHS Foundation Trust,15/11/2019,MEDSURGCONS-OTHER,Surgery,NHS LOGISTICS,1010146968,10.51,
Department of Health,Salisbury NHS Foundation Trust,15/11/2019,DISPOSABLE THEATRE DRAPES WIPES,Surgery,NHS LOGISTICS,1010146968,5.55,
Department of Health,Salisbury NHS Foundation Trust,15/11/2019,DISPOSABLE THEATRE DRAPES WIPES,Surgery,NHS LOGISTICS,1010146968,2.93,
Department of Health,Salisbury NHS Foundation Trust,15/11/2019,PATIENT APPLIANCES,Clinical Support,NHS LOGISTICS,1010146968,3.64,
Department of Health,Salisbury NHS Foundation Trust,15/11/2019,PATIENT APPLIANCES,Clinical Support,NHS LOGISTICS,1010146968,4.1,
Department of Health,Salisbury NHS Foundation Trust,15/11/2019,TUBES,Clinical Support,NHS LOGISTICS,1010146968,4.99,
Department of Health,Salisbury NHS Foundation Trust,15/11/2019,DRESSINGS - PRE STERILE,Clinical Support,NHS LOGISTICS,1010146968,1.36,
Department of Health,Salisbury NHS Foundation Trust,15/11/2019,ANAESTHETIC EQUIPMENT ACCESSORIES,Clinical Support,NHS LOGISTICS,1010146968,24.5,
Department of Health,Salisbury NHS Foundation Trust,15/11/2019,MED SURG EQUIP REP MAINT CLEANING,Clinical Support,NHS LOGISTICS,1010146968,15.3,
Department of Health,Salisbury NHS Foundation Trust,15/11/2019,M & S EQUIPELECTEQUIPINST - OTHER,Clinical Support,NHS LOGISTICS,1010146968,11.76,
Department of Health,Salisbury NHS Foundation Trust,15/11/2019,OTHER MEDICAL SUPPLIES,Clinical Support,NHS LOGISTICS,1010146968,2.68,
Department of Health,Salisbury NHS Foundation Trust,15/11/2019,OTHER MEDICAL SUPPLIES,Clinical Support,NHS LOGISTICS,1010146968,3.58,
Department of Health,Salisbury NHS Foundation Trust,15/11/2019,TOILETRIES PERSONAL HYGIENE PRODUCT,Clinical Support,NHS LOGISTICS,1010146968,3.26,
Department of Health,Salisbury NHS Foundation Trust,15/11/2019,MEDSURGCONS-OTHER,Clinical Support,NHS LOGISTICS,1010146968,7.06,
Department of Health,Salisbury NHS Foundation Trust,15/11/2019,SERVICES FROM NHS BODIES,Clinical Support,NHS LOGISTICS,1010146968,13.8,
Department of Health,Salisbury NHS Foundation Trust,15/11/2019,MEDSURGCONS-OTHER,Clinical Support,NHS LOGISTICS,1010146968,12.8,
Department of Health,Salisbury NHS Foundation Trust,15/11/2019,MEDSURGCONS-OTHER,Clinical Support,NHS LOGISTICS,1010146968,1.57,
Department of Health,Salisbury NHS Foundation Trust,15/11/2019,NON DISPOSABLE BED LINEN,Clinical Support,NHS LOGISTICS,1010146968,5.64,
Department of Health,Salisbury NHS Foundation Trust,15/11/2019,DRESSINGS  -  PROCEDURE PACKS,Clinical Support,NHS LOGISTICS,1010146968,1050,
Department of Health,Salisbury NHS Foundation Trust,15/11/2019,MED PROSTH - PACEMAKERS,Medicine,NHS LOGISTICS,1010146968,480,
Department of Health,Salisbury NHS Foundation Trust,15/11/2019,MEDSURGCONS-OTHER,Medicine,NHS LOGISTICS,1010146968,1700,
Department of Health,Salisbury NHS Foundation Trust,15/11/2019,MEDSURGCONS-OTHER,Medicine,NHS LOGISTICS,1010146968,1260,
Department of Health,Salisbury NHS Foundation Trust,15/11/2019,MEDSURGCONS-OTHER,Medicine,NHS LOGISTICS,1010146968,90,
Department of Health,Salisbury NHS Foundation Trust,15/11/2019,MEDSURGCONS-OTHER,Medicine,NHS LOGISTICS,1010146968,270,
Department of Health,Salisbury NHS Foundation Trust,15/11/2019,OTHER MEDICAL SUPPLIES,Medicine,NHS LOGISTICS,1010146968,400,
Department of Health,Salisbury NHS Foundation Trust,15/11/2019,MEDSURGCONS-OTHER,Medicine,NHS LOGISTICS,1010146968,95,
Department of Health,Salisbury NHS Foundation Trust,15/11/2019,MEDSURGCONS-OTHER,Medicine,NHS LOGISTICS,1010146968,87.5,
Department of Health,Salisbury NHS Foundation Trust,15/11/2019,MEDSURGCONS-OTHER,Medicine,NHS LOGISTICS,1010146968,200,
Department of Health,Salisbury NHS Foundation Trust,15/11/2019,OPTICAL - OTHER,Surgery,NHS LOGISTICS,1010146968,24.8,
Department of Health,Salisbury NHS Foundation Trust,15/11/2019,OPTICAL - OTHER,Surgery,NHS LOGISTICS,1010146968,50.4,
Department of Health,Salisbury NHS Foundation Trust,15/11/2019,OTHER MEDICAL SUPPLIES,Surgery,NHS LOGISTICS,1010146968,7.16,
Department of Health,Salisbury NHS Foundation Trust,15/11/2019,MEDSURGCONS-OTHER,Medicine,NHS LOGISTICS,1010146968,139.5,
Department of Health,Salisbury NHS Foundation Trust,15/11/2019,MEDSURGCONS-OTHER,Medicine,NHS LOGISTICS,1010146968,400,
Department of Health,Salisbury NHS Foundation Trust,15/11/2019,MEDSURGCONS-OTHER,Medicine,NHS LOGISTICS,1010146968,162.8,
Department of Health,Salisbury NHS Foundation Trust,15/11/2019,MEDSURGCONS-OTHER,Medicine,NHS LOGISTICS,1010146968,178.33,
Department of Health,Salisbury NHS Foundation Trust,15/11/2019,MEDSURGCONS-OTHER,Medicine,NHS LOGISTICS,1010146968,2672,
Department of Health,Salisbury NHS Foundation Trust,15/11/2019,MEDSURGCONS-OTHER,Medicine,NHS LOGISTICS,1010146968,501,
Department of Health,Salisbury NHS Foundation Trust,15/11/2019,MEDSURGCONS-OTHER,Medicine,NHS LOGISTICS,1010146968,347.95,
Department of Health,Salisbury NHS Foundation Trust,15/11/2019,MEDSURGCONS-OTHER,Medicine,NHS LOGISTICS,1010146968,579.92,
Department of Health,Salisbury NHS Foundation Trust,15/11/2019,MEDSURGCONS-OTHER,Medicine,NHS LOGISTICS,1010146968,800,
Department of Health,Salisbury NHS Foundation Trust,15/11/2019,MEDSURGCONS-OTHER,Medicine,NHS LOGISTICS,1010146968,160,
Department of Health,Salisbury NHS Foundation Trust,15/11/2019,MEDSURGCONS-OTHER,Medicine,NHS LOGISTICS,1010146968,80,
Department of Health,Salisbury NHS Foundation Trust,15/11/2019,MEDSURGCONS-OTHER,Medicine,NHS LOGISTICS,1010146968,160,
Department of Health,Salisbury NHS Foundation Trust,15/11/2019,MEDSURGCONS-OTHER,Medicine,NHS LOGISTICS,1010146968,160,
Department of Health,Salisbury NHS Foundation Trust,15/11/2019,MEDSURGCONS-OTHER,Medicine,NHS LOGISTICS,1010146968,550,
Department of Health,Salisbury NHS Foundation Trust,15/11/2019,MEDSURGCONS-OTHER,Medicine,NHS LOGISTICS,1010146968,240,
Department of Health,Salisbury NHS Foundation Trust,15/11/2019,MEDSURGCONS-OTHER,Medicine,NHS LOGISTICS,1010146968,80,
Department of Health,Salisbury NHS Foundation Trust,15/11/2019,MEDSURGCONS-OTHER,Medicine,NHS LOGISTICS,1010146968,240,
Department of Health,Salisbury NHS Foundation Trust,15/11/2019,MEDSURGCONS-OTHER,Medicine,NHS LOGISTICS,1010146968,440,
Department of Health,Salisbury NHS Foundation Trust,15/11/2019,PAPER GENERAL STATIONERY SUNDRIES,Medicine,NHS LOGISTICS,1010146968,64.96,
Department of Health,Salisbury NHS Foundation Trust,15/11/2019,OTHER MEDICAL SUPPLIES,Clinical Support,NHS LOGISTICS,1010146968,24,
Department of Health,Salisbury NHS Foundation Trust,15/11/2019,TUBES,Surgery,NHS LOGISTICS,1010146968,4.99,
Department of Health,Salisbury NHS Foundation Trust,15/11/2019,ELECTRICAL EQUIPMENT,Surgery,NHS LOGISTICS,1010146968,1.48,
Department of Health,Salisbury NHS Foundation Trust,15/11/2019,TISSUES HAND TOWELS & TOILET PAPER,Surgery,NHS LOGISTICS,1010146968,3.66,
Department of Health,Salisbury NHS Foundation Trust,15/11/2019,TISSUES HAND TOWELS & TOILET PAPER,Surgery,NHS LOGISTICS,1010146968,0.9,
Department of Health,Salisbury NHS Foundation Trust,15/11/2019,DRESSINGS  -  PROCEDURE PACKS,Surgery,NHS LOGISTICS,1010146968,0.2,
Department of Health,Salisbury NHS Foundation Trust,15/11/2019,OTHER MEDICAL SUPPLIES,Surgery,NHS LOGISTICS,1010146968,6.63,
Department of Health,Salisbury NHS Foundation Trust,15/11/2019,DISPOSABLE THEATRE DRAPES WIPES,Surgery,NHS LOGISTICS,1010146968,5.44,
Department of Health,Salisbury NHS Foundation Trust,15/11/2019,M & S EQUIPELECTEQUIPINST - OTHER,Clinical Support,NHS LOGISTICS,1010146968,169,
Department of Health,Salisbury NHS Foundation Trust,15/11/2019,M & S EQUIPELECTEQUIPINST - OTHER,Clinical Support,NHS LOGISTICS,1010146968,375,
Department of Health,Salisbury NHS Foundation Trust,15/11/2019,SURGICAL INSTRUMENTS - DISPOSABLE,Clinical Support,NHS LOGISTICS,1010146968,10,
Department of Health,Salisbury NHS Foundation Trust,15/11/2019,M & S EQUIPELECTEQUIPINST - OTHER,Clinical Support,NHS LOGISTICS,1010146968,343,
Department of Health,Salisbury NHS Foundation Trust,15/11/2019,M & S EQUIPELECTEQUIPINST - OTHER,Clinical Support,NHS LOGISTICS,1010146968,150,
Department of Health,Salisbury NHS Foundation Trust,15/11/2019,M & S EQUIPELECTEQUIPINST - OTHER,Clinical Support,NHS LOGISTICS,1010146968,150,
Department of Health,Salisbury NHS Foundation Trust,15/11/2019,M & S EQUIPELECTEQUIPINST - OTHER,Clinical Support,NHS LOGISTICS,1010146968,421,
Department of Health,Salisbury NHS Foundation Trust,15/11/2019,BAGS SACKS - OTHER,Clinical Support,NHS LOGISTICS,1010146968,3.2,
Department of Health,Salisbury NHS Foundation Trust,15/11/2019,TUBES,Clinical Support,NHS LOGISTICS,1010146968,4.99,
Department of Health,Salisbury NHS Foundation Trust,15/11/2019,TISSUES HAND TOWELS & TOILET PAPER,Clinical Support,NHS LOGISTICS,1010146968,2.44,
Department of Health,Salisbury NHS Foundation Trust,15/11/2019,TISSUES HAND TOWELS & TOILET PAPER,Clinical Support,NHS LOGISTICS,1010146968,0.6,
Department of Health,Salisbury NHS Foundation Trust,15/11/2019,MEDSURGCONS-OTHER,Clinical Support,NHS LOGISTICS,1010146968,6.76,
Department of Health,Salisbury NHS Foundation Trust,15/11/2019,MEDSURGCONS-OTHER,Clinical Support,NHS LOGISTICS,1010146968,5.43,
Department of Health,Salisbury NHS Foundation Trust,15/11/2019,MEDSURGCONS-OTHER,Clinical Support,NHS LOGISTICS,1010146968,1.53,
Department of Health,Salisbury NHS Foundation Trust,15/11/2019,MEDSURGCONS-OTHER,Clinical Support,NHS LOGISTICS,1010146968,4.78,
Department of Health,Salisbury NHS Foundation Trust,15/11/2019,MEDSURGCONS-OTHER,Clinical Support,NHS LOGISTICS,1010146968,45,
Department of Health,Salisbury NHS Foundation Trust,15/11/2019,OTHER MEDICAL SUPPLIES,Clinical Support,NHS LOGISTICS,1010146968,1.34,
Department of Health,Salisbury NHS Foundation Trust,15/11/2019,OTHER MEDICAL SUPPLIES,Clinical Support,NHS LOGISTICS,1010146968,7.16,
Department of Health,Salisbury NHS Foundation Trust,15/11/2019,SERVICES FROM NHS BODIES,Clinical Support,NHS LOGISTICS,1010146968,8.64,
Department of Health,Salisbury NHS Foundation Trust,15/11/2019,DRESSINGS - PRE STERILE,Clinical Support,NHS LOGISTICS,1010146968,2.76,
Department of Health,Salisbury NHS Foundation Trust,15/11/2019,MEDSURGCONS-OTHER,Clinical Support,NHS LOGISTICS,1010146968,1.57,
Department of Health,Salisbury NHS Foundation Trust,15/11/2019,TUBES,Clinical Support,NHS LOGISTICS,1010146968,2.74,
Department of Health,Salisbury NHS Foundation Trust,15/11/2019,X-RAY FILM PROCESSING CHEMICALS,Clinical Support,NHS LOGISTICS,1010146968,250.4,
Department of Health,Salisbury NHS Foundation Trust,15/11/2019,NON DISPOSABLE BED LINEN,Clinical Support,NHS LOGISTICS,1010146968,11.28,
Department of Health,Salisbury NHS Foundation Trust,15/11/2019,DISPOSABLE THEATRE DRAPES WIPES,Clinical Support,NHS LOGISTICS,1010146968,21.2,
Department of Health,Salisbury NHS Foundation Trust,15/11/2019,OTHER MEDICAL SUPPLIES,Medicine,NHS LOGISTICS,1010146968,3.8,
Department of Health,Salisbury NHS Foundation Trust,15/11/2019,OTHER MEDICAL SUPPLIES,Medicine,NHS LOGISTICS,1010146968,41,
Department of Health,Salisbury NHS Foundation Trust,15/11/2019,BAGS SACKS - OTHER,Medicine,NHS LOGISTICS,1010146968,3.2,
Department of Health,Salisbury NHS Foundation Trust,15/11/2019,DRESSINGS - PRE STERILE,Medicine,NHS LOGISTICS,1010146968,0.68,
Department of Health,Salisbury NHS Foundation Trust,15/11/2019,M & S EQUIPELECTEQUIPINST - OTHER,Medicine,NHS LOGISTICS,1010146968,6.76,
Department of Health,Salisbury NHS Foundation Trust,15/11/2019,MEDSURGCONS-OTHER,Medicine,NHS LOGISTICS,1010146968,47.22,
Department of Health,Salisbury NHS Foundation Trust,15/11/2019,TOILETRIES PERSONAL HYGIENE PRODUCT,Medicine,NHS LOGISTICS,1010146968,6.7,
Department of Health,Salisbury NHS Foundation Trust,15/11/2019,DRESSINGS - PRE STERILE,Medicine,NHS LOGISTICS,1010146968,11.9,
Department of Health,Salisbury NHS Foundation Trust,15/11/2019,TISSUES HAND TOWELS & TOILET PAPER,Medicine,NHS LOGISTICS,1010146968,2.1,
Department of Health,Salisbury NHS Foundation Trust,15/11/2019,PATIENTS INCONTINENCE,Medicine,NHS LOGISTICS,1010146968,2.29,
Department of Health,Salisbury NHS Foundation Trust,15/11/2019,PATIENTS INCONTINENCE,Medicine,NHS LOGISTICS,1010146968,4.72,
Department of Health,Salisbury NHS Foundation Trust,15/11/2019,M & S EQUIPELECTEQUIPINST - OTHER,Medicine,NHS LOGISTICS,1010146968,8.1,
Department of Health,Salisbury NHS Foundation Trust,15/11/2019,MEDSURGCONS-OTHER,Medicine,NHS LOGISTICS,1010146968,6.76,
Department of Health,Salisbury NHS Foundation Trust,15/11/2019,MEDSURGCONS-OTHER,Medicine,NHS LOGISTICS,1010146968,2.39,
Department of Health,Salisbury NHS Foundation Trust,15/11/2019,DRESSINGS  -  PROCEDURE PACKS,Medicine,NHS LOGISTICS,1010146968,6.4,
Department of Health,Salisbury NHS Foundation Trust,15/11/2019,OTHER MEDICAL SUPPLIES,Medicine,NHS LOGISTICS,1010146968,1.34,
Department of Health,Salisbury NHS Foundation Trust,15/11/2019,PATIENTS INCONTINENCE,Medicine,NHS LOGISTICS,1010146968,33.72,
Department of Health,Salisbury NHS Foundation Trust,15/11/2019,PATIENT APPLIANCES,Medicine,NHS LOGISTICS,1010146968,5.5,
Department of Health,Salisbury NHS Foundation Trust,15/11/2019,DRESSINGS - PRE STERILE,Medicine,NHS LOGISTICS,1010146968,2.04,
Department of Health,Salisbury NHS Foundation Trust,15/11/2019,MEDSURGCONS-OTHER,Medicine,NHS LOGISTICS,1010146968,6.4,
Department of Health,Salisbury NHS Foundation Trust,15/11/2019,TISSUES HAND TOWELS & TOILET PAPER,Medicine,NHS LOGISTICS,1010146968,0.6,
Department of Health,Salisbury NHS Foundation Trust,15/11/2019,DENTAL SURGERY SUNDRIES,Medicine,NHS LOGISTICS,1010146968,2.52,
Department of Health,Salisbury NHS Foundation Trust,15/11/2019,MEDSURGCONS-OTHER,Medicine,NHS LOGISTICS,1010146968,1.57,
Department of Health,Salisbury NHS Foundation Trust,15/11/2019,NON DISPOSABLE BED LINEN,Medicine,NHS LOGISTICS,1010146968,8.46,
Department of Health,Salisbury NHS Foundation Trust,15/11/2019,PATIENT APPLIANCES,Medicine,NHS LOGISTICS,1010146968,1.34,
Department of Health,Salisbury NHS Foundation Trust,15/11/2019,MEDSURGCONS-OTHER,Medicine,NHS LOGISTICS,1010146968,1.2,
Department of Health,Salisbury NHS Foundation Trust,15/11/2019,DISPOSABLE THEATRE DRAPES WIPES,Medicine,NHS LOGISTICS,1010146968,2.93,
Department of Health,Salisbury NHS Foundation Trust,15/11/2019,DISPOSABLE THEATRE DRAPES WIPES,Medicine,NHS LOGISTICS,1010146968,10.6,
Department of Health,Salisbury NHS Foundation Trust,15/11/2019,DISPOSABLE THEATRE DRAPES WIPES,Medicine,NHS LOGISTICS,1010146968,6.26,
Department of Health,Salisbury NHS Foundation Trust,15/11/2019,DRESSINGS - PRE STERILE,Clinical Support,NHS LOGISTICS,1010146968,3.4,
Department of Health,Salisbury NHS Foundation Trust,15/11/2019,OTHER MEDICAL SUPPLIES,Clinical Support,NHS LOGISTICS,1010146968,71.24,
Department of Health,Salisbury NHS Foundation Trust,15/11/2019,COOKING & KITCHEN UTENSILS,Clinical Support,NHS LOGISTICS,1010146968,2.02,
Department of Health,Salisbury NHS Foundation Trust,15/11/2019,M & S EQUIPELECTEQUIPINST - OTHER,Clinical Support,NHS LOGISTICS,1010146968,11.76,
Department of Health,Salisbury NHS Foundation Trust,15/11/2019,MEDSURGCONS-OTHER,Clinical Support,NHS LOGISTICS,1010146968,12,
Department of Health,Salisbury NHS Foundation Trust,15/11/2019,DRESSINGS - PRE STERILE,Clinical Support,NHS LOGISTICS,1010146968,8.7,
Department of Health,Salisbury NHS Foundation Trust,15/11/2019,MEDSURGCONS-OTHER,Clinical Support,NHS LOGISTICS,1010146968,77.8,
Department of Health,Salisbury NHS Foundation Trust,15/11/2019,DRUGS,Clinical Support,NHS LOGISTICS,1010146968,4.75,
Department of Health,Salisbury NHS Foundation Trust,15/11/2019,MEDSURGCONS-OTHER,Clinical Support,NHS LOGISTICS,1010146968,39.3,
Department of Health,Salisbury NHS Foundation Trust,15/11/2019,SURGICAL INSTRUMENTS - GENERAL,Clinical Support,NHS LOGISTICS,1010146968,172.5,
Department of Health,Salisbury NHS Foundation Trust,15/11/2019,PAPER GENERAL STATIONERY SUNDRIES,Surgery,NHS LOGISTICS,1010146968,16.26,
Department of Health,Salisbury NHS Foundation Trust,15/11/2019,MEDSURGCONS-OTHER,Surgery,NHS LOGISTICS,1010146968,40,
Department of Health,Salisbury NHS Foundation Trust,15/11/2019,MEDSURGCONS-LAPAROSCOPIC EQUIPMENT,Surgery,NHS LOGISTICS,1010146968,342,
Department of Health,Salisbury NHS Foundation Trust,15/11/2019,M & S EQUIPELECTEQUIPINST - OTHER,Surgery,NHS LOGISTICS,1010146968,340,
Department of Health,Salisbury NHS Foundation Trust,15/11/2019,OTHER MEDICAL SUPPLIES,Surgery,NHS LOGISTICS,1010146968,123,
Department of Health,Salisbury NHS Foundation Trust,15/11/2019,ANAESTHETIC EQUIPMENT ACCESSORIES,Surgery,NHS LOGISTICS,1010146968,75.6,
Department of Health,Salisbury NHS Foundation Trust,15/11/2019,OTHER MEDICAL SUPPLIES,Surgery,NHS LOGISTICS,1010146968,28.4,
Department of Health,Salisbury NHS Foundation Trust,15/11/2019,OTHER MEDICAL SUPPLIES,Surgery,NHS LOGISTICS,1010146968,286.5,
Department of Health,Salisbury NHS Foundation Trust,15/11/2019,MEDSURGCONS-OTHER,Surgery,NHS LOGISTICS,1010146968,6,
Department of Health,Salisbury NHS Foundation Trust,15/11/2019,M & S EQUIPELECTEQUIPINST - OTHER,Surgery,NHS LOGISTICS,1010146968,25,
Department of Health,Salisbury NHS Foundation Trust,15/11/2019,OTHER MEDICAL SUPPLIES,Surgery,NHS LOGISTICS,1010146968,35.2,
Department of Health,Salisbury NHS Foundation Trust,15/11/2019,OTHER MEDICAL SUPPLIES,Surgery,NHS LOGISTICS,1010146968,35.2,
Department of Health,Salisbury NHS Foundation Trust,15/11/2019,OTHER MEDICAL SUPPLIES,Surgery,NHS LOGISTICS,1010146968,35.2,
Department of Health,Salisbury NHS Foundation Trust,15/11/2019,OTHER MEDICAL SUPPLIES,Surgery,NHS LOGISTICS,1010146968,35.2,
Department of Health,Salisbury NHS Foundation Trust,15/11/2019,SURGICAL INSTRUMENTS - GENERAL,Surgery,NHS LOGISTICS,1010146968,9.5,
Department of Health,Salisbury NHS Foundation Trust,15/11/2019,BAGS SACKS - OTHER,Surgery,NHS LOGISTICS,1010146968,6.69,
Department of Health,Salisbury NHS Foundation Trust,15/11/2019,DRESSINGS - PRE STERILE,Surgery,NHS LOGISTICS,1010146968,1,
Department of Health,Salisbury NHS Foundation Trust,15/11/2019,MEDSURGCONS-OTHER,Surgery,NHS LOGISTICS,1010146968,7.94,
Department of Health,Salisbury NHS Foundation Trust,15/11/2019,SURGICAL INSTRUMENTS - GENERAL,Surgery,NHS LOGISTICS,1010146968,18.5,
Department of Health,Salisbury NHS Foundation Trust,15/11/2019,BAGS SACKS - OTHER,Surgery,NHS LOGISTICS,1010146968,4.58,
Department of Health,Salisbury NHS Foundation Trust,15/11/2019,NON DISPOSABLE THEATRE DRAPES WIPES,Surgery,NHS LOGISTICS,1010146968,145,
Department of Health,Salisbury NHS Foundation Trust,15/11/2019,DRESSINGS - PRE STERILE,Surgery,NHS LOGISTICS,1010146968,3.34,
Department of Health,Salisbury NHS Foundation Trust,15/11/2019,MEDSURGCONS-OTHER,Surgery,NHS LOGISTICS,1010146968,1.53,
Department of Health,Salisbury NHS Foundation Trust,15/11/2019,MEDSURGCONS-OTHER,Surgery,NHS LOGISTICS,1010146968,7.17,
Department of Health,Salisbury NHS Foundation Trust,15/11/2019,DISPOSABLE THEATRE DRAPES WIPES,Surgery,NHS LOGISTICS,1010146968,34.65,
Department of Health,Salisbury NHS Foundation Trust,15/11/2019,SURGICAL INSTRUMENTS - GENERAL,Surgery,NHS LOGISTICS,1010146968,12,
Department of Health,Salisbury NHS Foundation Trust,15/11/2019,DRESSINGS  -  PROCEDURE PACKS,Surgery,NHS LOGISTICS,1010146968,24.8,
Department of Health,Salisbury NHS Foundation Trust,15/11/2019,MEDSURGCONS-OTHER,Surgery,NHS LOGISTICS,1010146968,23.7,
Department of Health,Salisbury NHS Foundation Trust,15/11/2019,DRESSINGS - PRE STERILE,Surgery,NHS LOGISTICS,1010146968,2.84,
Department of Health,Salisbury NHS Foundation Trust,15/11/2019,MEDSURGCONS-OTHER,Surgery,NHS LOGISTICS,1010146968,3.53,
Department of Health,Salisbury NHS Foundation Trust,15/11/2019,NON DISPOSABLE BED LINEN,Surgery,NHS LOGISTICS,1010146968,33.84,
Department of Health,Salisbury NHS Foundation Trust,15/11/2019,PATIENTS BABY WEAR,Medicine,NHS LOGISTICS,1010146968,6.17,
Department of Health,Salisbury NHS Foundation Trust,15/11/2019,OTHER MEDICAL SUPPLIES,Medicine,NHS LOGISTICS,1010146968,9.2,
Department of Health,Salisbury NHS Foundation Trust,15/11/2019,OTHER MEDICAL SUPPLIES,Medicine,NHS LOGISTICS,1010146968,41,
Department of Health,Salisbury NHS Foundation Trust,15/11/2019,DRESSINGS - PRE STERILE,Medicine,NHS LOGISTICS,1010146968,0.68,
Department of Health,Salisbury NHS Foundation Trust,15/11/2019,DRESSINGS - PRE STERILE,Medicine,NHS LOGISTICS,1010146968,1.46,
Department of Health,Salisbury NHS Foundation Trust,15/11/2019,DRESSINGS - PRE STERILE,Medicine,NHS LOGISTICS,1010146968,3.82,
Department of Health,Salisbury NHS Foundation Trust,15/11/2019,DRESSINGS - PRE STERILE,Medicine,NHS LOGISTICS,1010146968,10.04,
Department of Health,Salisbury NHS Foundation Trust,15/11/2019,M & S EQUIPELECTEQUIPINST - OTHER,Medicine,NHS LOGISTICS,1010146968,6.76,
Department of Health,Salisbury NHS Foundation Trust,15/11/2019,MEDSURGCONS-OTHER,Medicine,NHS LOGISTICS,1010146968,7.94,
Department of Health,Salisbury NHS Foundation Trust,15/11/2019,TOILETRIES PERSONAL HYGIENE PRODUCT,Medicine,NHS LOGISTICS,1010146968,3.35,
Department of Health,Salisbury NHS Foundation Trust,15/11/2019,TISSUES HAND TOWELS & TOILET PAPER,Medicine,NHS LOGISTICS,1010146968,1.22,
Department of Health,Salisbury NHS Foundation Trust,15/11/2019,PATIENTS INCONTINENCE,Medicine,NHS LOGISTICS,1010146968,4.72,
Department of Health,Salisbury NHS Foundation Trust,15/11/2019,MEDSURGCONS-OTHER,Medicine,NHS LOGISTICS,1010146968,44.9,
Department of Health,Salisbury NHS Foundation Trust,15/11/2019,M & S EQUIPELECTEQUIPINST - OTHER,Medicine,NHS LOGISTICS,1010146968,11.76,
Department of Health,Salisbury NHS Foundation Trust,15/11/2019,MEDSURGCONS-OTHER,Medicine,NHS LOGISTICS,1010146968,6.76,
Department of Health,Salisbury NHS Foundation Trust,15/11/2019,MEDSURGCONS-OTHER,Medicine,NHS LOGISTICS,1010146968,5.43,
Department of Health,Salisbury NHS Foundation Trust,15/11/2019,DRESSINGS - PRE STERILE,Medicine,NHS LOGISTICS,1010146968,1.48,
Department of Health,Salisbury NHS Foundation Trust,15/11/2019,DRESSINGS  -  PROCEDURE PACKS,Medicine,NHS LOGISTICS,1010146968,14.5,
Department of Health,Salisbury NHS Foundation Trust,15/11/2019,DRESSINGS  -  PROCEDURE PACKS,Medicine,NHS LOGISTICS,1010146968,7,
Department of Health,Salisbury NHS Foundation Trust,15/11/2019,TOILETRIES PERSONAL HYGIENE PRODUCT,Medicine,NHS LOGISTICS,1010146968,1.77,
Department of Health,Salisbury NHS Foundation Trust,15/11/2019,MEDSURGCONS-OTHER,Medicine,NHS LOGISTICS,1010146968,10,
Department of Health,Salisbury NHS Foundation Trust,15/11/2019,MEDSURGCONS-OTHER,Medicine,NHS LOGISTICS,1010146968,5.1,
Department of Health,Salisbury NHS Foundation Trust,15/11/2019,OTHER MEDICAL SUPPLIES,Medicine,NHS LOGISTICS,1010146968,14.24,
Department of Health,Salisbury NHS Foundation Trust,15/11/2019,OTHER MEDICAL SUPPLIES,Medicine,NHS LOGISTICS,1010146968,2.68,
Department of Health,Salisbury NHS Foundation Trust,15/11/2019,PATIENTS INCONTINENCE,Medicine,NHS LOGISTICS,1010146968,30.48,
Department of Health,Salisbury NHS Foundation Trust,15/11/2019,DRESSINGS - PRE STERILE,Medicine,NHS LOGISTICS,1010146968,3.6,
Department of Health,Salisbury NHS Foundation Trust,15/11/2019,DRESSINGS - PRE STERILE,Medicine,NHS LOGISTICS,1010146968,4.08,
Department of Health,Salisbury NHS Foundation Trust,15/11/2019,MEDSURGCONS-OTHER,Medicine,NHS LOGISTICS,1010146968,12.8,
Department of Health,Salisbury NHS Foundation Trust,15/11/2019,TISSUES HAND TOWELS & TOILET PAPER,Medicine,NHS LOGISTICS,1010146968,1.2,
Department of Health,Salisbury NHS Foundation Trust,15/11/2019,MEDSURGCONS-OTHER,Medicine,NHS LOGISTICS,1010146968,0.78,
Department of Health,Salisbury NHS Foundation Trust,15/11/2019,TUBES,Medicine,NHS LOGISTICS,1010146968,2.74,
Department of Health,Salisbury NHS Foundation Trust,15/11/2019,DRESSINGS - PRE STERILE,Medicine,NHS LOGISTICS,1010146968,3.4,
Department of Health,Salisbury NHS Foundation Trust,15/11/2019,NON DISPOSABLE BED LINEN,Medicine,NHS LOGISTICS,1010146968,11.28,
Department of Health,Salisbury NHS Foundation Trust,15/11/2019,PATIENT APPLIANCES,Medicine,NHS LOGISTICS,1010146968,2.68,
Department of Health,Salisbury NHS Foundation Trust,15/11/2019,DISPOSABLE THEATRE DRAPES WIPES,Medicine,NHS LOGISTICS,1010146968,2.93,
Department of Health,Salisbury NHS Foundation Trust,15/11/2019,DISPOSABLE THEATRE DRAPES WIPES,Medicine,NHS LOGISTICS,1010146968,5.44,
Department of Health,Salisbury NHS Foundation Trust,15/11/2019,DISPOSABLE THEATRE DRAPES WIPES,Medicine,NHS LOGISTICS,1010146968,10.6,
Department of Health,Salisbury NHS Foundation Trust,15/11/2019,M & S EQUIPELECTEQUIPINST - OTHER,Surgery,NHS LOGISTICS,1010146968,1.42,
Department of Health,Salisbury NHS Foundation Trust,15/11/2019,ELECTRICAL EQUIPMENT,Surgery,NHS LOGISTICS,1010146968,1.48,
Department of Health,Salisbury NHS Foundation Trust,15/11/2019,M & S EQUIPELECTEQUIPINST - OTHER,Musculo-Skeletal,NHS LOGISTICS,1010146968,2.44,
Department of Health,Salisbury NHS Foundation Trust,15/11/2019,TISSUES HAND TOWELS & TOILET PAPER,Musculo-Skeletal,NHS LOGISTICS,1010146968,4.88,
Department of Health,Salisbury NHS Foundation Trust,15/11/2019,PATIENT APPLIANCES,Musculo-Skeletal,NHS LOGISTICS,1010146968,18.6,
Department of Health,Salisbury NHS Foundation Trust,15/11/2019,PATIENT APPLIANCES,Musculo-Skeletal,NHS LOGISTICS,1010146968,18.6,
Department of Health,Salisbury NHS Foundation Trust,15/11/2019,TISSUES HAND TOWELS & TOILET PAPER,Musculo-Skeletal,NHS LOGISTICS,1010146968,0.9,
Department of Health,Salisbury NHS Foundation Trust,15/11/2019,MEDSURGCONS-OTHER,Musculo-Skeletal,NHS LOGISTICS,1010146968,2.39,
Department of Health,Salisbury NHS Foundation Trust,15/11/2019,OTHER MEDICAL SUPPLIES,Musculo-Skeletal,NHS LOGISTICS,1010146968,2.68,
Department of Health,Salisbury NHS Foundation Trust,15/11/2019,DISPOSABLE THEATRE DRAPES WIPES,Musculo-Skeletal,NHS LOGISTICS,1010146968,2.93,
Department of Health,Salisbury NHS Foundation Trust,15/11/2019,DISPOSABLE THEATRE DRAPES WIPES,Musculo-Skeletal,NHS LOGISTICS,1010146968,5.44,
Department of Health,Salisbury NHS Foundation Trust,15/11/2019,DRESSINGS - PRE STERILE,Surgery,NHS LOGISTICS,1010146968,13.16,
Department of Health,Salisbury NHS Foundation Trust,15/11/2019,DRESSINGS - PRE STERILE,Surgery,NHS LOGISTICS,1010146968,16.34,
Department of Health,Salisbury NHS Foundation Trust,15/11/2019,DRESSINGS - PRE STERILE,Surgery,NHS LOGISTICS,1010146968,6.2,
Department of Health,Salisbury NHS Foundation Trust,15/11/2019,DRESSINGS - PRE STERILE,Surgery,NHS LOGISTICS,1010146968,1.54,
Department of Health,Salisbury NHS Foundation Trust,15/11/2019,DRESSINGS - PRE STERILE,Surgery,NHS LOGISTICS,1010146968,4.56,
Department of Health,Salisbury NHS Foundation Trust,15/11/2019,TISSUES HAND TOWELS & TOILET PAPER,Surgery,NHS LOGISTICS,1010146968,2.28,
Department of Health,Salisbury NHS Foundation Trust,15/11/2019,TISSUES HAND TOWELS & TOILET PAPER,Surgery,NHS LOGISTICS,1010146968,2.44,
Department of Health,Salisbury NHS Foundation Trust,15/11/2019,TISSUES HAND TOWELS & TOILET PAPER,Surgery,NHS LOGISTICS,1010146968,10.53,
Department of Health,Salisbury NHS Foundation Trust,15/11/2019,TISSUES HAND TOWELS & TOILET PAPER,Surgery,NHS LOGISTICS,1010146968,1.2,
Department of Health,Salisbury NHS Foundation Trust,15/11/2019,DRUGS,Surgery,NHS LOGISTICS,1010146968,8.42,
Department of Health,Salisbury NHS Foundation Trust,15/11/2019,DRESSINGS - PRE STERILE,Surgery,NHS LOGISTICS,1010146968,2.22,
Department of Health,Salisbury NHS Foundation Trust,15/11/2019,DRESSINGS - PRE STERILE,Surgery,NHS LOGISTICS,1010146968,14.31,
Department of Health,Salisbury NHS Foundation Trust,15/11/2019,DRESSINGS - PRE STERILE,Surgery,NHS LOGISTICS,1010146968,4.35,
Department of Health,Salisbury NHS Foundation Trust,15/11/2019,MEDSURGCONS-OTHER,Surgery,NHS LOGISTICS,1010146968,5.4,
Department of Health,Salisbury NHS Foundation Trust,15/11/2019,DRESSINGS - PRE STERILE,Surgery,NHS LOGISTICS,1010146968,14.5,
Department of Health,Salisbury NHS Foundation Trust,15/11/2019,ELECTRICAL EQUIPMENT,Medicine,NHS LOGISTICS,1010146968,2.96,
Department of Health,Salisbury NHS Foundation Trust,15/11/2019,M & S EQUIPELECTEQUIPINST - OTHER,Medicine,NHS LOGISTICS,1010146968,2.44,
Department of Health,Salisbury NHS Foundation Trust,15/11/2019,TISSUES HAND TOWELS & TOILET PAPER,Medicine,NHS LOGISTICS,1010146968,21.06,
Department of Health,Salisbury NHS Foundation Trust,15/11/2019,MEDSURGCONS-OTHER,Medicine,NHS LOGISTICS,1010146968,36.36,
Department of Health,Salisbury NHS Foundation Trust,15/11/2019,MEDSURGCONS-OTHER,Medicine,NHS LOGISTICS,1010146968,2.95,
Department of Health,Salisbury NHS Foundation Trust,15/11/2019,DISPOSABLE THEATRE DRAPES WIPES,Medicine,NHS LOGISTICS,1010146968,2.93,
Department of Health,Salisbury NHS Foundation Trust,15/11/2019,ELECTRICAL EQUIPMENT,Surgery,NHS LOGISTICS,1010146968,1.48,
Department of Health,Salisbury NHS Foundation Trust,15/11/2019,DISPOSABLE THEATRE DRAPES WIPES,Surgery,NHS LOGISTICS,1010146968,5.44,
Department of Health,Salisbury NHS Foundation Trust,15/11/2019,TISSUES HAND TOWELS & TOILET PAPER,Surgery,NHS LOGISTICS,1010146968,2.44,
Department of Health,Salisbury NHS Foundation Trust,15/11/2019,CLEANING MATERIAL PRODUCTS SUNDRIES,Surgery,NHS LOGISTICS,1010146968,4.25,
Department of Health,Salisbury NHS Foundation Trust,15/11/2019,CLEANING MATERIAL PRODUCTS SUNDRIES,Surgery,NHS LOGISTICS,1010146968,6.6,
Department of Health,Salisbury NHS Foundation Trust,15/11/2019,TISSUES HAND TOWELS & TOILET PAPER,Surgery,NHS LOGISTICS,1010146968,1.2,
Department of Health,Salisbury NHS Foundation Trust,15/11/2019,PATIENTS BABY WEAR,Medicine,NHS LOGISTICS,1010146968,53.28,
Department of Health,Salisbury NHS Foundation Trust,15/11/2019,M & S EQUIPELECTEQUIPINST - OTHER,Medicine,NHS LOGISTICS,1010146968,12.52,
Department of Health,Salisbury NHS Foundation Trust,15/11/2019,BAGS SACKS - OTHER,Medicine,NHS LOGISTICS,1010146968,4.97,
Department of Health,Salisbury NHS Foundation Trust,15/11/2019,TUBES,Medicine,NHS LOGISTICS,1010146968,4.99,
Department of Health,Salisbury NHS Foundation Trust,15/11/2019,DISPOSABLE THEATRE DRAPES WIPES,Medicine,NHS LOGISTICS,1010146968,1.73,
Department of Health,Salisbury NHS Foundation Trust,15/11/2019,M & S EQUIPELECTEQUIPINST - OTHER,Medicine,NHS LOGISTICS,1010146968,2.44,
Department of Health,Salisbury NHS Foundation Trust,15/11/2019,TOILETRIES PERSONAL HYGIENE PRODUCT,Medicine,NHS LOGISTICS,1010146968,13.4,
Department of Health,Salisbury NHS Foundation Trust,15/11/2019,M & S EQUIPELECTEQUIPINST - OTHER,Medicine,NHS LOGISTICS,1010146968,7.98,
Department of Health,Salisbury NHS Foundation Trust,15/11/2019,MEDSURGCONS-OTHER,Medicine,NHS LOGISTICS,1010146968,4.55,
Department of Health,Salisbury NHS Foundation Trust,15/11/2019,M & S EQUIPELECTEQUIPINST - OTHER,Medicine,NHS LOGISTICS,1010146968,23.52,
Department of Health,Salisbury NHS Foundation Trust,15/11/2019,MEDSURGCONS-OTHER,Medicine,NHS LOGISTICS,1010146968,3.38,
Department of Health,Salisbury NHS Foundation Trust,15/11/2019,DRESSINGS - PRE STERILE,Medicine,NHS LOGISTICS,1010146968,2.96,
Department of Health,Salisbury NHS Foundation Trust,15/11/2019,ANAESTHETIC EQUIPMENT ACCESSORIES,Medicine,NHS LOGISTICS,1010146968,0.96,
Department of Health,Salisbury NHS Foundation Trust,15/11/2019,DRESSINGS  -  PROCEDURE PACKS,Medicine,NHS LOGISTICS,1010146968,14.5,
Department of Health,Salisbury NHS Foundation Trust,15/11/2019,MEDSURGCONS-OTHER,Medicine,NHS LOGISTICS,1010146968,22.5,
Department of Health,Salisbury NHS Foundation Trust,15/11/2019,OTHER MEDICAL SUPPLIES,Medicine,NHS LOGISTICS,1010146968,7.12,
Department of Health,Salisbury NHS Foundation Trust,15/11/2019,OTHER MEDICAL SUPPLIES,Medicine,NHS LOGISTICS,1010146968,1.34,
Department of Health,Salisbury NHS Foundation Trust,15/11/2019,PATIENTS INCONTINENCE,Medicine,NHS LOGISTICS,1010146968,25.29,
Department of Health,Salisbury NHS Foundation Trust,15/11/2019,DRESSINGS - PRE STERILE,Medicine,NHS LOGISTICS,1010146968,7.2,
Department of Health,Salisbury NHS Foundation Trust,15/11/2019,DRESSINGS - PRE STERILE,Medicine,NHS LOGISTICS,1010146968,1.72,
Department of Health,Salisbury NHS Foundation Trust,15/11/2019,NON DISPOSABLE BED LINEN,Medicine,NHS LOGISTICS,1010146968,8.46,
Department of Health,Salisbury NHS Foundation Trust,15/11/2019,DISPOSABLE THEATRE DRAPES WIPES,Medicine,NHS LOGISTICS,1010146968,2.93,
Department of Health,Salisbury NHS Foundation Trust,15/11/2019,DISPOSABLE THEATRE DRAPES WIPES,Medicine,NHS LOGISTICS,1010146968,5.44,
Department of Health,Salisbury NHS Foundation Trust,15/11/2019,DISPOSABLE THEATRE DRAPES WIPES,Medicine,NHS LOGISTICS,1010146968,10.6,
Department of Health,Salisbury NHS Foundation Trust,15/11/2019,DISPOSABLE THEATRE DRAPES WIPES,Medicine,NHS LOGISTICS,1010146968,6.26,
Department of Health,Salisbury NHS Foundation Trust,15/11/2019,BEVERAGES & AMBIENT FOOD,Medicine,NHS LOGISTICS,1010146968,5.2,
Department of Health,Salisbury NHS Foundation Trust,15/11/2019,DRESSINGS - PRE STERILE,Medicine,NHS LOGISTICS,1010146968,232.5,
Department of Health,Salisbury NHS Foundation Trust,15/11/2019,OTHER MEDICAL SUPPLIES,Musculo-Skeletal,NHS LOGISTICS,1010146968,27.6,
Department of Health,Salisbury NHS Foundation Trust,15/11/2019,DRESSINGS - PRE STERILE,Musculo-Skeletal,NHS LOGISTICS,1010146968,1.46,
Department of Health,Salisbury NHS Foundation Trust,15/11/2019,DRESSINGS - PRE STERILE,Musculo-Skeletal,NHS LOGISTICS,1010146968,1.18,
Department of Health,Salisbury NHS Foundation Trust,15/11/2019,DRESSINGS - PRE STERILE,Musculo-Skeletal,NHS LOGISTICS,1010146968,7.64,
Department of Health,Salisbury NHS Foundation Trust,15/11/2019,M & S EQUIPELECTEQUIPINST - OTHER,Musculo-Skeletal,NHS LOGISTICS,1010146968,6.76,
Department of Health,Salisbury NHS Foundation Trust,15/11/2019,ELECTRICAL EQUIPMENT,Musculo-Skeletal,NHS LOGISTICS,1010146968,1.48,
Department of Health,Salisbury NHS Foundation Trust,15/11/2019,M & S EQUIPELECTEQUIPINST - OTHER,Musculo-Skeletal,NHS LOGISTICS,1010146968,3.66,
Department of Health,Salisbury NHS Foundation Trust,15/11/2019,M & S EQUIPELECTEQUIPINST - OTHER,Musculo-Skeletal,NHS LOGISTICS,1010146968,1.26,
Department of Health,Salisbury NHS Foundation Trust,15/11/2019,TOILETRIES PERSONAL HYGIENE PRODUCT,Musculo-Skeletal,NHS LOGISTICS,1010146968,13.4,
Department of Health,Salisbury NHS Foundation Trust,15/11/2019,TISSUES HAND TOWELS & TOILET PAPER,Musculo-Skeletal,NHS LOGISTICS,1010146968,2.44,
Department of Health,Salisbury NHS Foundation Trust,15/11/2019,M & S EQUIPELECTEQUIPINST - OTHER,Musculo-Skeletal,NHS LOGISTICS,1010146968,9.2,
Department of Health,Salisbury NHS Foundation Trust,15/11/2019,DRESSINGS - PRE STERILE,Musculo-Skeletal,NHS LOGISTICS,1010146968,6.14,
Department of Health,Salisbury NHS Foundation Trust,15/11/2019,DRESSINGS - PRE STERILE,Musculo-Skeletal,NHS LOGISTICS,1010146968,3.34,
Department of Health,Salisbury NHS Foundation Trust,15/11/2019,PATIENTS INCONTINENCE,Musculo-Skeletal,NHS LOGISTICS,1010146968,1.98,
Department of Health,Salisbury NHS Foundation Trust,15/11/2019,MEDSURGCONS-OTHER,Musculo-Skeletal,NHS LOGISTICS,1010146968,26.65,
Department of Health,Salisbury NHS Foundation Trust,15/11/2019,MEDSURGCONS-OTHER,Musculo-Skeletal,NHS LOGISTICS,1010146968,44.9,
Department of Health,Salisbury NHS Foundation Trust,15/11/2019,M & S EQUIPELECTEQUIPINST - OTHER,Musculo-Skeletal,NHS LOGISTICS,1010146968,8.1,
Department of Health,Salisbury NHS Foundation Trust,15/11/2019,MEDSURGCONS-OTHER,Musculo-Skeletal,NHS LOGISTICS,1010146968,6.76,
Department of Health,Salisbury NHS Foundation Trust,15/11/2019,MEDSURGCONS-OTHER,Musculo-Skeletal,NHS LOGISTICS,1010146968,5.43,
Department of Health,Salisbury NHS Foundation Trust,15/11/2019,DRESSINGS - PRE STERILE,Musculo-Skeletal,NHS LOGISTICS,1010146968,2.22,
Department of Health,Salisbury NHS Foundation Trust,15/11/2019,ANAESTHETIC EQUIPMENT ACCESSORIES,Musculo-Skeletal,NHS LOGISTICS,1010146968,3.36,
Department of Health,Salisbury NHS Foundation Trust,15/11/2019,NON DISPOSABLE BED LINEN,Musculo-Skeletal,NHS LOGISTICS,1010146968,14.64,
Department of Health,Salisbury NHS Foundation Trust,15/11/2019,TOILETRIES PERSONAL HYGIENE PRODUCT,Musculo-Skeletal,NHS LOGISTICS,1010146968,1.77,
Department of Health,Salisbury NHS Foundation Trust,15/11/2019,MEDSURGCONS-OTHER,Musculo-Skeletal,NHS LOGISTICS,1010146968,7.5,
Department of Health,Salisbury NHS Foundation Trust,15/11/2019,MEDSURGCONS-OTHER,Musculo-Skeletal,NHS LOGISTICS,1010146968,5.1,
Department of Health,Salisbury NHS Foundation Trust,15/11/2019,OTHER MEDICAL SUPPLIES,Musculo-Skeletal,NHS LOGISTICS,1010146968,7.12,
Department of Health,Salisbury NHS Foundation Trust,15/11/2019,OTHER MEDICAL SUPPLIES,Musculo-Skeletal,NHS LOGISTICS,1010146968,1.34,
Department of Health,Salisbury NHS Foundation Trust,15/11/2019,TOILETRIES PERSONAL HYGIENE PRODUCT,Musculo-Skeletal,NHS LOGISTICS,1010146968,2.15,
Department of Health,Salisbury NHS Foundation Trust,15/11/2019,PATIENTS INCONTINENCE,Musculo-Skeletal,NHS LOGISTICS,1010146968,15.24,
Department of Health,Salisbury NHS Foundation Trust,15/11/2019,OTHER MEDICAL SUPPLIES,Musculo-Skeletal,NHS LOGISTICS,1010146968,20.1,
Department of Health,Salisbury NHS Foundation Trust,15/11/2019,MEDSURGCONS-OTHER,Musculo-Skeletal,NHS LOGISTICS,1010146968,13.56,
Department of Health,Salisbury NHS Foundation Trust,15/11/2019,DRESSINGS - PRE STERILE,Musculo-Skeletal,NHS LOGISTICS,1010146968,4.08,
Department of Health,Salisbury NHS Foundation Trust,15/11/2019,MEDSURGCONS-OTHER,Musculo-Skeletal,NHS LOGISTICS,1010146968,3.53,
Department of Health,Salisbury NHS Foundation Trust,15/11/2019,DRESSINGS - PRE STERILE,Musculo-Skeletal,NHS LOGISTICS,1010146968,2.84,
Department of Health,Salisbury NHS Foundation Trust,15/11/2019,MEDSURGCONS-OTHER,Musculo-Skeletal,NHS LOGISTICS,1010146968,19.2,
Department of Health,Salisbury NHS Foundation Trust,15/11/2019,M & S EQUIPELECTEQUIPINST - OTHER,Musculo-Skeletal,NHS LOGISTICS,1010146968,2.84,
Department of Health,Salisbury NHS Foundation Trust,15/11/2019,MEDSURGCONS-OTHER,Musculo-Skeletal,NHS LOGISTICS,1010146968,1.57,
Department of Health,Salisbury NHS Foundation Trust,15/11/2019,TUBES,Musculo-Skeletal,NHS LOGISTICS,1010146968,2.74,
Department of Health,Salisbury NHS Foundation Trust,15/11/2019,NON DISPOSABLE BED LINEN,Musculo-Skeletal,NHS LOGISTICS,1010146968,14.1,
Department of Health,Salisbury NHS Foundation Trust,15/11/2019,PATIENT APPLIANCES,Musculo-Skeletal,NHS LOGISTICS,1010146968,42,
Department of Health,Salisbury NHS Foundation Trust,15/11/2019,TOILETRIES PERSONAL HYGIENE PRODUCT,Musculo-Skeletal,NHS LOGISTICS,1010146968,24.96,
Department of Health,Salisbury NHS Foundation Trust,15/11/2019,MEDSURGCONS-OTHER,Musculo-Skeletal,NHS LOGISTICS,1010146968,0.78,
Department of Health,Salisbury NHS Foundation Trust,15/11/2019,DISPOSABLE THEATRE DRAPES WIPES,Musculo-Skeletal,NHS LOGISTICS,1010146968,21.2,
Department of Health,Salisbury NHS Foundation Trust,15/11/2019,DISPOSABLE THEATRE DRAPES WIPES,Musculo-Skeletal,NHS LOGISTICS,1010146968,3.13,
Department of Health,Salisbury NHS Foundation Trust,15/11/2019,BAGS SACKS - OTHER,Musculo-Skeletal,NHS LOGISTICS,1010146968,2,
Department of Health,Salisbury NHS Foundation Trust,15/11/2019,DRESSINGS - PRE STERILE,Musculo-Skeletal,NHS LOGISTICS,1010146968,11.46,
Department of Health,Salisbury NHS Foundation Trust,15/11/2019,DRESSINGS - PRE STERILE,Musculo-Skeletal,NHS LOGISTICS,1010146968,1.82,
Department of Health,Salisbury NHS Foundation Trust,15/11/2019,DRESSINGS - PRE STERILE,Musculo-Skeletal,NHS LOGISTICS,1010146968,2.9,
Department of Health,Salisbury NHS Foundation Trust,15/11/2019,DRESSINGS - PRE STERILE,Musculo-Skeletal,NHS LOGISTICS,1010146968,6.84,
Department of Health,Salisbury NHS Foundation Trust,15/11/2019,DRESSINGS - PRE STERILE,Musculo-Skeletal,NHS LOGISTICS,1010146968,8.44,
Department of Health,Salisbury NHS Foundation Trust,15/11/2019,DRESSINGS - PRE STERILE,Musculo-Skeletal,NHS LOGISTICS,1010146968,5.02,
Department of Health,Salisbury NHS Foundation Trust,15/11/2019,DRESSINGS - PRE STERILE,Musculo-Skeletal,NHS LOGISTICS,1010146968,7.42,
Department of Health,Salisbury NHS Foundation Trust,15/11/2019,SURGICAL INSTRUMENTS - GENERAL,Musculo-Skeletal,NHS LOGISTICS,1010146968,6.39,
Department of Health,Salisbury NHS Foundation Trust,15/11/2019,M & S EQUIPELECTEQUIPINST - OTHER,Musculo-Skeletal,NHS LOGISTICS,1010146968,22.57,
Department of Health,Salisbury NHS Foundation Trust,15/11/2019,M & S EQUIPELECTEQUIPINST - OTHER,Musculo-Skeletal,NHS LOGISTICS,1010146968,2.44,
Department of Health,Salisbury NHS Foundation Trust,15/11/2019,TISSUES HAND TOWELS & TOILET PAPER,Musculo-Skeletal,NHS LOGISTICS,1010146968,10.53,
Department of Health,Salisbury NHS Foundation Trust,15/11/2019,PATIENT APPLIANCES,Musculo-Skeletal,NHS LOGISTICS,1010146968,23.25,
Department of Health,Salisbury NHS Foundation Trust,15/11/2019,PATIENT APPLIANCES,Musculo-Skeletal,NHS LOGISTICS,1010146968,46.5,
Department of Health,Salisbury NHS Foundation Trust,15/11/2019,DRESSINGS - PRE STERILE,Musculo-Skeletal,NHS LOGISTICS,1010146968,2,
Department of Health,Salisbury NHS Foundation Trust,15/11/2019,MEDSURGCONS-OTHER,Musculo-Skeletal,NHS LOGISTICS,1010146968,6.38,
Department of Health,Salisbury NHS Foundation Trust,15/11/2019,MEDSURGCONS-OTHER,Musculo-Skeletal,NHS LOGISTICS,1010146968,3.38,
Department of Health,Salisbury NHS Foundation Trust,15/11/2019,DRESSINGS  -  PROCEDURE PACKS,Musculo-Skeletal,NHS LOGISTICS,1010146968,29,
Department of Health,Salisbury NHS Foundation Trust,15/11/2019,MEDSURGCONS-SUTURES,Musculo-Skeletal,NHS LOGISTICS,1010146968,68.38,
Department of Health,Salisbury NHS Foundation Trust,15/11/2019,MEDSURGCONS-SUTURES,Musculo-Skeletal,NHS LOGISTICS,1010146968,45.17,
Department of Health,Salisbury NHS Foundation Trust,15/11/2019,DRESSINGS - PRE STERILE,Musculo-Skeletal,NHS LOGISTICS,1010146968,19.16,
Department of Health,Salisbury NHS Foundation Trust,15/11/2019,DISPOSABLE THEATRE DRAPES WIPES,Musculo-Skeletal,NHS LOGISTICS,1010146968,5.44,
Department of Health,Salisbury NHS Foundation Trust,15/11/2019,DRESSINGS - PRE STERILE,Musculo-Skeletal,NHS LOGISTICS,1010146968,118.8,
Department of Health,Salisbury NHS Foundation Trust,15/11/2019,DRESSINGS - PRE STERILE,Musculo-Skeletal,NHS LOGISTICS,1010146968,237.6,
Department of Health,Salisbury NHS Foundation Trust,15/11/2019,DRESSINGS - PRE STERILE,Musculo-Skeletal,NHS LOGISTICS,1010146968,118.8,
Department of Health,Salisbury NHS Foundation Trust,15/11/2019,OTHER MEDICAL SUPPLIES,Medicine,NHS LOGISTICS,1010146968,27.6,
Department of Health,Salisbury NHS Foundation Trust,15/11/2019,OTHER MEDICAL SUPPLIES,Medicine,NHS LOGISTICS,1010146968,41,
Department of Health,Salisbury NHS Foundation Trust,15/11/2019,PATIENTS INCONTINENCE,Medicine,NHS LOGISTICS,1010146968,13.12,
Department of Health,Salisbury NHS Foundation Trust,15/11/2019,BAGS SACKS - OTHER,Medicine,NHS LOGISTICS,1010146968,3.2,
Department of Health,Salisbury NHS Foundation Trust,15/11/2019,DRESSINGS - PRE STERILE,Medicine,NHS LOGISTICS,1010146968,2.04,
Department of Health,Salisbury NHS Foundation Trust,15/11/2019,DRESSINGS - PRE STERILE,Medicine,NHS LOGISTICS,1010146968,2.36,
Department of Health,Salisbury NHS Foundation Trust,15/11/2019,DRESSINGS - PRE STERILE,Medicine,NHS LOGISTICS,1010146968,3.82,
Department of Health,Salisbury NHS Foundation Trust,15/11/2019,M & S EQUIPELECTEQUIPINST - OTHER,Medicine,NHS LOGISTICS,1010146968,6.76,
Department of Health,Salisbury NHS Foundation Trust,15/11/2019,TUBES,Medicine,NHS LOGISTICS,1010146968,4.99,
Department of Health,Salisbury NHS Foundation Trust,15/11/2019,ELECTRICAL EQUIPMENT,Medicine,NHS LOGISTICS,1010146968,2.96,
Department of Health,Salisbury NHS Foundation Trust,15/11/2019,DISPOSABLE THEATRE DRAPES WIPES,Medicine,NHS LOGISTICS,1010146968,1.73,
Department of Health,Salisbury NHS Foundation Trust,15/11/2019,M & S EQUIPELECTEQUIPINST - OTHER,Medicine,NHS LOGISTICS,1010146968,6.1,
Department of Health,Salisbury NHS Foundation Trust,15/11/2019,TOILETRIES PERSONAL HYGIENE PRODUCT,Medicine,NHS LOGISTICS,1010146968,3.35,
Department of Health,Salisbury NHS Foundation Trust,15/11/2019,TISSUES HAND TOWELS & TOILET PAPER,Medicine,NHS LOGISTICS,1010146968,1.22,
Department of Health,Salisbury NHS Foundation Trust,15/11/2019,MEDSURGCONS-OTHER,Medicine,NHS LOGISTICS,1010146968,27.3,
Department of Health,Salisbury NHS Foundation Trust,15/11/2019,DRESSINGS - PRE STERILE,Medicine,NHS LOGISTICS,1010146968,23.8,
Department of Health,Salisbury NHS Foundation Trust,15/11/2019,DRESSINGS - PRE STERILE,Medicine,NHS LOGISTICS,1010146968,1.45,
Department of Health,Salisbury NHS Foundation Trust,15/11/2019,MEDSURGCONS-OTHER,Medicine,NHS LOGISTICS,1010146968,7,
Department of Health,Salisbury NHS Foundation Trust,15/11/2019,MEDSURGCONS-OTHER,Medicine,NHS LOGISTICS,1010146968,53.3,
Department of Health,Salisbury NHS Foundation Trust,15/11/2019,MEDSURGCONS-OTHER,Medicine,NHS LOGISTICS,1010146968,44.9,
Department of Health,Salisbury NHS Foundation Trust,15/11/2019,M & S EQUIPELECTEQUIPINST - OTHER,Medicine,NHS LOGISTICS,1010146968,23.52,
Department of Health,Salisbury NHS Foundation Trust,15/11/2019,MEDSURGCONS-OTHER,Medicine,NHS LOGISTICS,1010146968,10.14,
Department of Health,Salisbury NHS Foundation Trust,15/11/2019,MEDSURGCONS-OTHER,Medicine,NHS LOGISTICS,1010146968,5.43,
Department of Health,Salisbury NHS Foundation Trust,15/11/2019,TUBES,Medicine,NHS LOGISTICS,1010146968,5.82,
Department of Health,Salisbury NHS Foundation Trust,15/11/2019,DRESSINGS - PRE STERILE,Medicine,NHS LOGISTICS,1010146968,1.48,
Department of Health,Salisbury NHS Foundation Trust,15/11/2019,MEDSURGCONS-OTHER,Medicine,NHS LOGISTICS,1010146968,1.95,
Department of Health,Salisbury NHS Foundation Trust,15/11/2019,ANAESTHETIC EQUIPMENT ACCESSORIES,Medicine,NHS LOGISTICS,1010146968,6.72,
Department of Health,Salisbury NHS Foundation Trust,15/11/2019,DRESSINGS  -  PROCEDURE PACKS,Medicine,NHS LOGISTICS,1010146968,0.35,
Department of Health,Salisbury NHS Foundation Trust,15/11/2019,DRESSINGS  -  PROCEDURE PACKS,Medicine,NHS LOGISTICS,1010146968,9.6,
Department of Health,Salisbury NHS Foundation Trust,15/11/2019,DRESSINGS  -  PROCEDURE PACKS,Medicine,NHS LOGISTICS,1010146968,8.75,
Department of Health,Salisbury NHS Foundation Trust,15/11/2019,NON DISPOSABLE BED LINEN,Medicine,NHS LOGISTICS,1010146968,34.16,
Department of Health,Salisbury NHS Foundation Trust,15/11/2019,NON DISPOSABLE BED LINEN,Medicine,NHS LOGISTICS,1010146968,47.5,
Department of Health,Salisbury NHS Foundation Trust,15/11/2019,MEDSURGCONS-OTHER,Medicine,NHS LOGISTICS,1010146968,22.5,
Department of Health,Salisbury NHS Foundation Trust,15/11/2019,MEDSURGCONS-OTHER,Medicine,NHS LOGISTICS,1010146968,1,
Department of Health,Salisbury NHS Foundation Trust,15/11/2019,MEDSURGCONS-OTHER,Medicine,NHS LOGISTICS,1010146968,46,
Department of Health,Salisbury NHS Foundation Trust,15/11/2019,OTHER MEDICAL SUPPLIES,Medicine,NHS LOGISTICS,1010146968,7.12,
Department of Health,Salisbury NHS Foundation Trust,15/11/2019,OTHER MEDICAL SUPPLIES,Medicine,NHS LOGISTICS,1010146968,6.63,
Department of Health,Salisbury NHS Foundation Trust,15/11/2019,OTHER MEDICAL SUPPLIES,Medicine,NHS LOGISTICS,1010146968,7.04,
Department of Health,Salisbury NHS Foundation Trust,15/11/2019,OTHER MEDICAL SUPPLIES,Medicine,NHS LOGISTICS,1010146968,5.36,
Department of Health,Salisbury NHS Foundation Trust,15/11/2019,OTHER MEDICAL SUPPLIES,Medicine,NHS LOGISTICS,1010146968,3.58,
Department of Health,Salisbury NHS Foundation Trust,15/11/2019,PATIENTS INCONTINENCE,Medicine,NHS LOGISTICS,1010146968,10.16,
Department of Health,Salisbury NHS Foundation Trust,15/11/2019,PATIENT APPLIANCES,Medicine,NHS LOGISTICS,1010146968,5.5,
Department of Health,Salisbury NHS Foundation Trust,15/11/2019,PATIENT APPLIANCES,Medicine,NHS LOGISTICS,1010146968,2.75,
Department of Health,Salisbury NHS Foundation Trust,15/11/2019,TOILETRIES PERSONAL HYGIENE PRODUCT,Medicine,NHS LOGISTICS,1010146968,2.88,
Department of Health,Salisbury NHS Foundation Trust,15/11/2019,DRESSINGS - PRE STERILE,Medicine,NHS LOGISTICS,1010146968,4.08,
Department of Health,Salisbury NHS Foundation Trust,15/11/2019,MEDSURGCONS-OTHER,Medicine,NHS LOGISTICS,1010146968,110,
Department of Health,Salisbury NHS Foundation Trust,15/11/2019,MEDSURGCONS-OTHER,Medicine,NHS LOGISTICS,1010146968,12.8,
Department of Health,Salisbury NHS Foundation Trust,15/11/2019,MEDSURGCONS-OTHER,Medicine,NHS LOGISTICS,1010146968,25.56,
Department of Health,Salisbury NHS Foundation Trust,15/11/2019,MEDSURGCONS-OTHER,Medicine,NHS LOGISTICS,1010146968,2.35,
Department of Health,Salisbury NHS Foundation Trust,15/11/2019,TUBES,Medicine,NHS LOGISTICS,1010146968,2.74,
Department of Health,Salisbury NHS Foundation Trust,15/11/2019,DRESSINGS - PRE STERILE,Medicine,NHS LOGISTICS,1010146968,6.48,
Department of Health,Salisbury NHS Foundation Trust,15/11/2019,NON DISPOSABLE BED LINEN,Medicine,NHS LOGISTICS,1010146968,11.28,
Department of Health,Salisbury NHS Foundation Trust,15/11/2019,PATIENT APPLIANCES,Medicine,NHS LOGISTICS,1010146968,8.4,
Department of Health,Salisbury NHS Foundation Trust,15/11/2019,PATIENT APPLIANCES,Medicine,NHS LOGISTICS,1010146968,12.8,
Department of Health,Salisbury NHS Foundation Trust,15/11/2019,MEDSURGCONS-OTHER,Medicine,NHS LOGISTICS,1010146968,12,
Department of Health,Salisbury NHS Foundation Trust,15/11/2019,MEDSURGCONS-OTHER,Medicine,NHS LOGISTICS,1010146968,11.9,
Department of Health,Salisbury NHS Foundation Trust,15/11/2019,DISPOSABLE THEATRE DRAPES WIPES,Medicine,NHS LOGISTICS,1010146968,2.93,
Department of Health,Salisbury NHS Foundation Trust,15/11/2019,BAGS SACKS - OTHER,Musculo-Skeletal,NHS LOGISTICS,1010146968,2,
Department of Health,Salisbury NHS Foundation Trust,15/11/2019,MEDSURGCONS-OTHER,Musculo-Skeletal,NHS LOGISTICS,1010146968,6.38,
Department of Health,Salisbury NHS Foundation Trust,15/11/2019,TUBES,Musculo-Skeletal,NHS LOGISTICS,1010146968,11.64,
Department of Health,Salisbury NHS Foundation Trust,15/11/2019,OTHER MEDICAL SUPPLIES,Musculo-Skeletal,NHS LOGISTICS,1010146968,6.63,
Department of Health,Salisbury NHS Foundation Trust,15/11/2019,TUBES,Musculo-Skeletal,NHS LOGISTICS,1010146968,14.8,
Department of Health,Salisbury NHS Foundation Trust,15/11/2019,DISPOSABLE THEATRE DRAPES WIPES,Musculo-Skeletal,NHS LOGISTICS,1010146968,10.6,
Department of Health,Salisbury NHS Foundation Trust,15/11/2019,DENTAL SURGERY SUNDRIES,Musculo-Skeletal,NHS LOGISTICS,1010146968,16.34,
Department of Health,Salisbury NHS Foundation Trust,15/11/2019,OTHER MEDICAL SUPPLIES,Surgery,NHS LOGISTICS,1010146968,41,
Department of Health,Salisbury NHS Foundation Trust,15/11/2019,DRESSINGS - PRE STERILE,Surgery,NHS LOGISTICS,1010146968,1.46,
Department of Health,Salisbury NHS Foundation Trust,15/11/2019,DISPOSABLE THEATRE DRAPES WIPES,Surgery,NHS LOGISTICS,1010146968,1.73,
Department of Health,Salisbury NHS Foundation Trust,15/11/2019,M & S EQUIPELECTEQUIPINST - OTHER,Surgery,NHS LOGISTICS,1010146968,12.2,
Department of Health,Salisbury NHS Foundation Trust,15/11/2019,TOILETRIES PERSONAL HYGIENE PRODUCT,Surgery,NHS LOGISTICS,1010146968,6.7,
Department of Health,Salisbury NHS Foundation Trust,15/11/2019,MEDSURGCONS-OTHER,Surgery,NHS LOGISTICS,1010146968,4.55,
Department of Health,Salisbury NHS Foundation Trust,15/11/2019,DRESSINGS - PRE STERILE,Surgery,NHS LOGISTICS,1010146968,1,
Department of Health,Salisbury NHS Foundation Trust,15/11/2019,PATIENTS INCONTINENCE,Surgery,NHS LOGISTICS,1010146968,4.72,
Department of Health,Salisbury NHS Foundation Trust,15/11/2019,MEDSURGCONS-OTHER,Surgery,NHS LOGISTICS,1010146968,44.9,
Department of Health,Salisbury NHS Foundation Trust,15/11/2019,M & S EQUIPELECTEQUIPINST - OTHER,Surgery,NHS LOGISTICS,1010146968,4.05,
Department of Health,Salisbury NHS Foundation Trust,15/11/2019,MEDSURGCONS-OTHER,Surgery,NHS LOGISTICS,1010146968,3.38,
Department of Health,Salisbury NHS Foundation Trust,15/11/2019,M & S EQUIPELECTEQUIPINST - OTHER,Surgery,NHS LOGISTICS,1010146968,9.5,
Department of Health,Salisbury NHS Foundation Trust,15/11/2019,ANAESTHETIC EQUIPMENT ACCESSORIES,Surgery,NHS LOGISTICS,1010146968,1.44,
Department of Health,Salisbury NHS Foundation Trust,15/11/2019,OTHER MEDICAL SUPPLIES,Surgery,NHS LOGISTICS,1010146968,7.12,
Department of Health,Salisbury NHS Foundation Trust,15/11/2019,OTHER MEDICAL SUPPLIES,Surgery,NHS LOGISTICS,1010146968,4.02,
Department of Health,Salisbury NHS Foundation Trust,15/11/2019,PATIENTS INCONTINENCE,Surgery,NHS LOGISTICS,1010146968,5.08,
Department of Health,Salisbury NHS Foundation Trust,15/11/2019,TOILETRIES PERSONAL HYGIENE PRODUCT,Surgery,NHS LOGISTICS,1010146968,3.26,
Department of Health,Salisbury NHS Foundation Trust,15/11/2019,MEDSURGCONS-OTHER,Surgery,NHS LOGISTICS,1010146968,4.38,
Department of Health,Salisbury NHS Foundation Trust,15/11/2019,MEDSURGCONS-OTHER,Surgery,NHS LOGISTICS,1010146968,12.8,
Department of Health,Salisbury NHS Foundation Trust,15/11/2019,MEDSURGCONS-OTHER,Surgery,NHS LOGISTICS,1010146968,0.78,
Department of Health,Salisbury NHS Foundation Trust,15/11/2019,NON DISPOSABLE BED LINEN,Surgery,NHS LOGISTICS,1010146968,2.82,
Department of Health,Salisbury NHS Foundation Trust,15/11/2019,DISPOSABLE THEATRE DRAPES WIPES,Surgery,NHS LOGISTICS,1010146968,2.93,
Department of Health,Salisbury NHS Foundation Trust,15/11/2019,DISPOSABLE THEATRE DRAPES WIPES,Surgery,NHS LOGISTICS,1010146968,10.6,
Department of Health,Salisbury NHS Foundation Trust,15/11/2019,MEDSURGCONS-LAPAROSCOPIC EQUIPMENT,Surgery,NHS LOGISTICS,1010146968,114,
Department of Health,Salisbury NHS Foundation Trust,15/11/2019,MEDSURGCONS-LAPAROSCOPIC EQUIPMENT,Surgery,NHS LOGISTICS,1010146968,114,
Department of Health,Salisbury NHS Foundation Trust,15/11/2019,MEDSURGCONS-LAPAROSCOPIC EQUIPMENT,Surgery,NHS LOGISTICS,1010146968,72,
Department of Health,Salisbury NHS Foundation Trust,15/11/2019,MEDSURGCONS-LAPAROSCOPIC EQUIPMENT,Surgery,NHS LOGISTICS,1010146968,260,
Department of Health,Salisbury NHS Foundation Trust,15/11/2019,MEDSURGCONS-SUTURES,Musculo-Skeletal,NHS LOGISTICS,1010146968,93,
Department of Health,Salisbury NHS Foundation Trust,15/11/2019,MEDSURGCONS-SUTURES,Musculo-Skeletal,NHS LOGISTICS,1010146968,45.17,
Department of Health,Salisbury NHS Foundation Trust,15/11/2019,MEDSURGCONS-SUTURES,Musculo-Skeletal,NHS LOGISTICS,1010146968,127.2,
Department of Health,Salisbury NHS Foundation Trust,15/11/2019,MEDSURGCONS-SUTURES,Musculo-Skeletal,NHS LOGISTICS,1010146968,104.42,
Department of Health,Salisbury NHS Foundation Trust,15/11/2019,MEDSURGCONS-SUTURES,Musculo-Skeletal,NHS LOGISTICS,1010146968,35.84,
Department of Health,Salisbury NHS Foundation Trust,15/11/2019,MEDSURGCONS-SUTURES,Musculo-Skeletal,NHS LOGISTICS,1010146968,106.15,
Department of Health,Salisbury NHS Foundation Trust,15/11/2019,BAGS SACKS - OTHER,Surgery,NHS LOGISTICS,1010146968,2.42,
Department of Health,Salisbury NHS Foundation Trust,15/11/2019,BAGS SACKS - OTHER,Surgery,NHS LOGISTICS,1010146968,20.04,
Department of Health,Salisbury NHS Foundation Trust,15/11/2019,DRESSINGS - PRE STERILE,Surgery,NHS LOGISTICS,1010146968,11.64,
Department of Health,Salisbury NHS Foundation Trust,15/11/2019,DISPOSABLE THEATRE DRAPES WIPES,Surgery,NHS LOGISTICS,1010146968,78.8,
Department of Health,Salisbury NHS Foundation Trust,15/11/2019,SURGICAL INSTRUMENTS - GENERAL,Surgery,NHS LOGISTICS,1010146968,18.5,
Department of Health,Salisbury NHS Foundation Trust,15/11/2019,DRESSINGS - PRE STERILE,Surgery,NHS LOGISTICS,1010146968,7.83,
Department of Health,Salisbury NHS Foundation Trust,15/11/2019,DRESSINGS - PRE STERILE,Surgery,NHS LOGISTICS,1010146968,5.86,
Department of Health,Salisbury NHS Foundation Trust,15/11/2019,TOILETRIES PERSONAL HYGIENE PRODUCT,Surgery,NHS LOGISTICS,1010146968,27,
Department of Health,Salisbury NHS Foundation Trust,15/11/2019,DRUGS,Surgery,NHS LOGISTICS,1010146968,12.63,
Department of Health,Salisbury NHS Foundation Trust,15/11/2019,DRUGS,Surgery,NHS LOGISTICS,1010146968,49.2,
Department of Health,Salisbury NHS Foundation Trust,15/11/2019,BEVERAGES & AMBIENT FOOD,Surgery,NHS LOGISTICS,1010146968,15.62,
Department of Health,Salisbury NHS Foundation Trust,15/11/2019,TUBES,Surgery,NHS LOGISTICS,1010146968,48.4,
Department of Health,Salisbury NHS Foundation Trust,15/11/2019,DRUGS,Surgery,NHS LOGISTICS,1010146968,20.05,
Department of Health,Salisbury NHS Foundation Trust,15/11/2019,MEDSURGCONS-OTHER,Surgery,NHS LOGISTICS,1010146968,8.4,
Department of Health,Salisbury NHS Foundation Trust,15/11/2019,DRUGS,Surgery,NHS LOGISTICS,1010146968,40.1,
Department of Health,Salisbury NHS Foundation Trust,15/11/2019,MEDSURGCONS-OTHER,Surgery,NHS LOGISTICS,1010146968,36,
Department of Health,Salisbury NHS Foundation Trust,15/11/2019,SERVICES FROM NHS BODIES,Surgery,NHS LOGISTICS,1010146968,4.32,
Department of Health,Salisbury NHS Foundation Trust,15/11/2019,BEVERAGES & AMBIENT FOOD,Surgery,NHS LOGISTICS,1010146968,0.94,
Department of Health,Salisbury NHS Foundation Trust,15/11/2019,DRESSINGS - PRE STERILE,Surgery,NHS LOGISTICS,1010146968,2.04,
Department of Health,Salisbury NHS Foundation Trust,15/11/2019,MEDSURGCONS-SUTURES,Surgery,NHS LOGISTICS,1010146968,36.23,
Department of Health,Salisbury NHS Foundation Trust,15/11/2019,DRESSINGS - PRE STERILE,Surgery,NHS LOGISTICS,1010146968,5.77,
Department of Health,Salisbury NHS Foundation Trust,15/11/2019,DRESSINGS - PRE STERILE,Surgery,NHS LOGISTICS,1010146968,1.72,
Department of Health,Salisbury NHS Foundation Trust,15/11/2019,BEVERAGES & AMBIENT FOOD,Surgery,NHS LOGISTICS,1010146968,5.76,
Department of Health,Salisbury NHS Foundation Trust,15/11/2019,TUBES,Surgery,NHS LOGISTICS,1010146968,3.7,
Department of Health,Salisbury NHS Foundation Trust,15/11/2019,TUBES,Surgery,NHS LOGISTICS,1010146968,60,
Department of Health,Salisbury NHS Foundation Trust,15/11/2019,NON DISPOSABLE BED LINEN,Surgery,NHS LOGISTICS,1010146968,33.84,
Department of Health,Salisbury NHS Foundation Trust,15/11/2019,DISPOSABLE THEATRE DRAPES WIPES,Surgery,NHS LOGISTICS,1010146968,2.93,
Department of Health,Salisbury NHS Foundation Trust,15/11/2019,DISPOSABLE THEATRE DRAPES WIPES,Surgery,NHS LOGISTICS,1010146968,5.44,
Department of Health,Salisbury NHS Foundation Trust,15/11/2019,DISPOSABLE THEATRE DRAPES WIPES,Surgery,NHS LOGISTICS,1010146968,10.6,
Department of Health,Salisbury NHS Foundation Trust,15/11/2019,HEALTHCARE - WEAR,Surgery,NHS LOGISTICS,1010146968,36.82,
Department of Health,Salisbury NHS Foundation Trust,15/11/2019,DRESSINGS - PRE STERILE,Surgery,NHS LOGISTICS,1010146968,202.29,
Department of Health,Salisbury NHS Foundation Trust,15/11/2019,MISCELLANEOUS CONSUMABLE ITEMS,Clinical Support,NHS LOGISTICS,1010146968,1.4,
Department of Health,Salisbury NHS Foundation Trust,15/11/2019,M & S EQUIPELECTEQUIPINST - OTHER,Surgery,NHS LOGISTICS,1010146968,1.22,
Department of Health,Salisbury NHS Foundation Trust,15/11/2019,TISSUES HAND TOWELS & TOILET PAPER,Surgery,NHS LOGISTICS,1010146968,6,
Department of Health,Salisbury NHS Foundation Trust,15/11/2019,DRESSINGS - PRE STERILE,Surgery,NHS LOGISTICS,1010146968,6.34,
Department of Health,Salisbury NHS Foundation Trust,15/11/2019,OPTICAL - OTHER,Surgery,NHS LOGISTICS,1010146968,12.4,
Department of Health,Salisbury NHS Foundation Trust,15/11/2019,OTHER MEDICAL SUPPLIES,Surgery,NHS LOGISTICS,1010146968,105.8,
Department of Health,Salisbury NHS Foundation Trust,15/11/2019,OTHER MEDICAL SUPPLIES,Surgery,NHS LOGISTICS,1010146968,52.9,
Department of Health,Salisbury NHS Foundation Trust,15/11/2019,DRESSINGS - PRE STERILE,Musculo-Skeletal,NHS LOGISTICS,1010146968,2.8,
Department of Health,Salisbury NHS Foundation Trust,15/11/2019,DRESSINGS - PRE STERILE,Musculo-Skeletal,NHS LOGISTICS,1010146968,10,
Department of Health,Salisbury NHS Foundation Trust,15/11/2019,DRESSINGS - PRE STERILE,Musculo-Skeletal,NHS LOGISTICS,1010146968,21.48,
Department of Health,Salisbury NHS Foundation Trust,15/11/2019,DRESSINGS - PRE STERILE,Musculo-Skeletal,NHS LOGISTICS,1010146968,3.65,
Department of Health,Salisbury NHS Foundation Trust,15/11/2019,DRESSINGS  -  PROCEDURE PACKS,Musculo-Skeletal,NHS LOGISTICS,1010146968,0.2,
Department of Health,Salisbury NHS Foundation Trust,15/11/2019,DRESSINGS - PRE STERILE,Musculo-Skeletal,NHS LOGISTICS,1010146968,0.74,
Department of Health,Salisbury NHS Foundation Trust,15/11/2019,DRESSINGS - PRE STERILE,Musculo-Skeletal,NHS LOGISTICS,1010146968,18,
Department of Health,Salisbury NHS Foundation Trust,15/11/2019,DRESSINGS - PRE STERILE,Musculo-Skeletal,NHS LOGISTICS,1010146968,18,
Department of Health,Salisbury NHS Foundation Trust,15/11/2019,DRESSINGS - PRE STERILE,Musculo-Skeletal,NHS LOGISTICS,1010146968,18,
Department of Health,Salisbury NHS Foundation Trust,15/11/2019,DRESSINGS - PRE STERILE,Musculo-Skeletal,NHS LOGISTICS,1010146968,20.75,
Department of Health,Salisbury NHS Foundation Trust,15/11/2019,DRESSINGS - PRE STERILE,Musculo-Skeletal,NHS LOGISTICS,1010146968,20.75,
Department of Health,Salisbury NHS Foundation Trust,15/11/2019,DRESSINGS - PRE STERILE,Musculo-Skeletal,NHS LOGISTICS,1010146968,20.75,
Department of Health,Salisbury NHS Foundation Trust,15/11/2019,DRESSINGS - PRE STERILE,Musculo-Skeletal,NHS LOGISTICS,1010146968,20.75,
Department of Health,Salisbury NHS Foundation Trust,15/11/2019,DRESSINGS - PRE STERILE,Musculo-Skeletal,NHS LOGISTICS,1010146968,20.75,
Department of Health,Salisbury NHS Foundation Trust,15/11/2019,DRESSINGS  -  PROCEDURE PACKS,Musculo-Skeletal,NHS LOGISTICS,1010146968,3.2,
Department of Health,Salisbury NHS Foundation Trust,15/11/2019,DRESSINGS - PRE STERILE,Musculo-Skeletal,NHS LOGISTICS,1010146968,9.15,
Department of Health,Salisbury NHS Foundation Trust,15/11/2019,MEDSURGCONS-OTHER,Musculo-Skeletal,NHS LOGISTICS,1010146968,17.2,
Department of Health,Salisbury NHS Foundation Trust,15/11/2019,DRESSINGS - PRE STERILE,Musculo-Skeletal,NHS LOGISTICS,1010146968,9,
Department of Health,Salisbury NHS Foundation Trust,15/11/2019,DRESSINGS - PRE STERILE,Musculo-Skeletal,NHS LOGISTICS,1010146968,9,
Department of Health,Salisbury NHS Foundation Trust,15/11/2019,TOILETRIES PERSONAL HYGIENE PRODUCT,Musculo-Skeletal,NHS LOGISTICS,1010146968,1.08,
Department of Health,Salisbury NHS Foundation Trust,15/11/2019,DRESSINGS - PRE STERILE,Musculo-Skeletal,NHS LOGISTICS,1010146968,23.28,
Department of Health,Salisbury NHS Foundation Trust,15/11/2019,DRESSINGS - PRE STERILE,Musculo-Skeletal,NHS LOGISTICS,1010146968,4.02,
Department of Health,Salisbury NHS Foundation Trust,15/11/2019,DRESSINGS - PRE STERILE,Musculo-Skeletal,NHS LOGISTICS,1010146968,4.69,
Department of Health,Salisbury NHS Foundation Trust,15/11/2019,DRESSINGS - PRE STERILE,Musculo-Skeletal,NHS LOGISTICS,1010146968,16.8,
Department of Health,Salisbury NHS Foundation Trust,15/11/2019,CLEANING MATERIAL PRODUCTS SUNDRIES,Musculo-Skeletal,NHS LOGISTICS,1010146968,8.5,
Department of Health,Salisbury NHS Foundation Trust,15/11/2019,CLEANING MATERIAL PRODUCTS SUNDRIES,Musculo-Skeletal,NHS LOGISTICS,1010146968,13.2,
Department of Health,Salisbury NHS Foundation Trust,15/11/2019,M & S EQUIPELECTEQUIPINST - OTHER,Musculo-Skeletal,NHS LOGISTICS,1010146968,11.76,
Department of Health,Salisbury NHS Foundation Trust,15/11/2019,CLEANING MATERIAL PRODUCTS SUNDRIES,Musculo-Skeletal,NHS LOGISTICS,1010146968,36.4,
Department of Health,Salisbury NHS Foundation Trust,15/11/2019,DRESSINGS - PRE STERILE,Musculo-Skeletal,NHS LOGISTICS,1010146968,49.1,
Department of Health,Salisbury NHS Foundation Trust,15/11/2019,DRESSINGS - PRE STERILE,Musculo-Skeletal,NHS LOGISTICS,1010146968,1.12,
Department of Health,Salisbury NHS Foundation Trust,15/11/2019,DISPOSABLE THEATRE DRAPES WIPES,Musculo-Skeletal,NHS LOGISTICS,1010146968,10.6,
Department of Health,Salisbury NHS Foundation Trust,15/11/2019,OTHER MEDICAL SUPPLIES,Clinical Support,NHS LOGISTICS,1010146968,25.5,
Department of Health,Salisbury NHS Foundation Trust,15/11/2019,SURGICAL INSTRUMENTS - GENERAL,Clinical Support,NHS LOGISTICS,1010146968,54.88,
Department of Health,Salisbury NHS Foundation Trust,15/11/2019,MEDSURGCONS-OTHER,Clinical Support,NHS LOGISTICS,1010146968,3.38,
Department of Health,Salisbury NHS Foundation Trust,15/11/2019,MEDSURGCONS-OTHER,Clinical Support,NHS LOGISTICS,1010146968,6,
Department of Health,Salisbury NHS Foundation Trust,15/11/2019,OTHER MEDICAL SUPPLIES,Clinical Support,NHS LOGISTICS,1010146968,1.34,
Department of Health,Salisbury NHS Foundation Trust,15/11/2019,OTHER MEDICAL SUPPLIES,Clinical Support,NHS LOGISTICS,1010146968,3.58,
Department of Health,Salisbury NHS Foundation Trust,15/11/2019,DRESSINGS - PRE STERILE,Clinical Support,NHS LOGISTICS,1010146968,2.04,
Department of Health,Salisbury NHS Foundation Trust,15/11/2019,DISPOSABLE THEATRE DRAPES WIPES,Clinical Support,NHS LOGISTICS,1010146968,2.93,
Department of Health,Salisbury NHS Foundation Trust,15/11/2019,BEVERAGES & AMBIENT FOOD,Surgery,NHS LOGISTICS,1010146968,15.62,
Department of Health,Salisbury NHS Foundation Trust,15/11/2019,BEVERAGES & AMBIENT FOOD,Surgery,NHS LOGISTICS,1010146968,1.41,
Department of Health,Salisbury NHS Foundation Trust,15/11/2019,BEVERAGES & AMBIENT FOOD,Surgery,NHS LOGISTICS,1010146968,8.64,
Department of Health,Salisbury NHS Foundation Trust,15/11/2019,OTHER MEDICAL SUPPLIES,Medicine,NHS LOGISTICS,1010146968,9.2,
Department of Health,Salisbury NHS Foundation Trust,15/11/2019,DRESSINGS - PRE STERILE,Medicine,NHS LOGISTICS,1010146968,1.46,
Department of Health,Salisbury NHS Foundation Trust,15/11/2019,DISPOSABLE THEATRE DRAPES WIPES,Medicine,NHS LOGISTICS,1010146968,3.46,
Department of Health,Salisbury NHS Foundation Trust,15/11/2019,MEDSURGCONS-OTHER,Medicine,NHS LOGISTICS,1010146968,3.38,
Department of Health,Salisbury NHS Foundation Trust,15/11/2019,TUBES,Medicine,NHS LOGISTICS,1010146968,5.82,
Department of Health,Salisbury NHS Foundation Trust,15/11/2019,DRESSINGS - PRE STERILE,Medicine,NHS LOGISTICS,1010146968,0.74,
Department of Health,Salisbury NHS Foundation Trust,15/11/2019,DRESSINGS  -  PROCEDURE PACKS,Medicine,NHS LOGISTICS,1010146968,14.5,
Department of Health,Salisbury NHS Foundation Trust,15/11/2019,DRESSINGS  -  PROCEDURE PACKS,Medicine,NHS LOGISTICS,1010146968,4.2,
Department of Health,Salisbury NHS Foundation Trust,15/11/2019,MEDSURGCONS-OTHER,Medicine,NHS LOGISTICS,1010146968,2.5,
Department of Health,Salisbury NHS Foundation Trust,15/11/2019,MEDSURGCONS-OTHER,Medicine,NHS LOGISTICS,1010146968,2.55,
Department of Health,Salisbury NHS Foundation Trust,15/11/2019,OTHER MEDICAL SUPPLIES,Medicine,NHS LOGISTICS,1010146968,6.63,
Department of Health,Salisbury NHS Foundation Trust,15/11/2019,OTHER MEDICAL SUPPLIES,Medicine,NHS LOGISTICS,1010146968,7.04,
Department of Health,Salisbury NHS Foundation Trust,15/11/2019,OTHER MEDICAL SUPPLIES,Medicine,NHS LOGISTICS,1010146968,1.34,
Department of Health,Salisbury NHS Foundation Trust,15/11/2019,PATIENTS INCONTINENCE,Medicine,NHS LOGISTICS,1010146968,3.39,
Department of Health,Salisbury NHS Foundation Trust,15/11/2019,MEDSURGCONS-OTHER,Medicine,NHS LOGISTICS,1010146968,6.4,
Department of Health,Salisbury NHS Foundation Trust,15/11/2019,MEDSURGCONS-OTHER,Medicine,NHS LOGISTICS,1010146968,0.78,
Department of Health,Salisbury NHS Foundation Trust,15/11/2019,TUBES,Medicine,NHS LOGISTICS,1010146968,2.74,
Department of Health,Salisbury NHS Foundation Trust,15/11/2019,DISPOSABLE THEATRE DRAPES WIPES,Medicine,NHS LOGISTICS,1010146968,2.93,
Department of Health,Salisbury NHS Foundation Trust,15/11/2019,DISPOSABLE THEATRE DRAPES WIPES,Medicine,NHS LOGISTICS,1010146968,5.44,
Department of Health,Salisbury NHS Foundation Trust,15/11/2019,OTHER MEDICAL SUPPLIES,Medicine,NHS LOGISTICS,1010146968,101,
Department of Health,Salisbury NHS Foundation Trust,15/11/2019,OTHER MEDICAL SUPPLIES,Medicine,NHS LOGISTICS,1010146968,48.5,
Department of Health,Salisbury NHS Foundation Trust,15/11/2019,OTHER MEDICAL SUPPLIES,Medicine,NHS LOGISTICS,1010146968,11.2,
Department of Health,Salisbury NHS Foundation Trust,15/11/2019,TISSUES HAND TOWELS & TOILET PAPER,Medicine,NHS LOGISTICS,1010146968,1.22,
Department of Health,Salisbury NHS Foundation Trust,15/11/2019,TISSUES HAND TOWELS & TOILET PAPER,Medicine,NHS LOGISTICS,1010146968,0.3,
Department of Health,Salisbury NHS Foundation Trust,15/11/2019,TUBES,Medicine,NHS LOGISTICS,1010146968,5.82,
Department of Health,Salisbury NHS Foundation Trust,15/11/2019,DRESSINGS  -  PROCEDURE PACKS,Medicine,NHS LOGISTICS,1010146968,14.5,
Department of Health,Salisbury NHS Foundation Trust,15/11/2019,OTHER MEDICAL SUPPLIES,Medicine,NHS LOGISTICS,1010146968,1.34,
Department of Health,Salisbury NHS Foundation Trust,15/11/2019,OTHER MEDICAL SUPPLIES,Medicine,NHS LOGISTICS,1010146968,2.85,
Department of Health,Salisbury NHS Foundation Trust,15/11/2019,DISPOSABLE THEATRE DRAPES WIPES,Medicine,NHS LOGISTICS,1010146968,8.16,
Department of Health,Salisbury NHS Foundation Trust,15/11/2019,MEDSURGCONS-OTHER,Medicine,NHS LOGISTICS,1010146968,180,
Department of Health,Salisbury NHS Foundation Trust,15/11/2019,MEDSURGCONS-OTHER,Medicine,NHS LOGISTICS,1010146968,89.75,
Department of Health,Salisbury NHS Foundation Trust,15/11/2019,MEDSURGCONS-OTHER,Medicine,NHS LOGISTICS,1010146968,350,
Department of Health,Salisbury NHS Foundation Trust,15/11/2019,MEDSURGCONS-OTHER,Medicine,NHS LOGISTICS,1010146968,200,
Department of Health,Salisbury NHS Foundation Trust,15/11/2019,MEDSURGCONS-OTHER,Medicine,NHS LOGISTICS,1010146968,850,
Department of Health,Salisbury NHS Foundation Trust,15/11/2019,MEDSURGCONS-OTHER,Medicine,NHS LOGISTICS,1010146968,248,
Department of Health,Salisbury NHS Foundation Trust,15/11/2019,MEDSURGCONS-OTHER,Medicine,NHS LOGISTICS,1010146968,630,
Department of Health,Salisbury NHS Foundation Trust,15/11/2019,MEDSURGCONS-OTHER,Medicine,NHS LOGISTICS,1010146968,35,
Department of Health,Salisbury NHS Foundation Trust,15/11/2019,MEDSURGCONS-OTHER,Medicine,NHS LOGISTICS,1010146968,21,
Department of Health,Salisbury NHS Foundation Trust,15/11/2019,MEDSURGCONS-OTHER,Medicine,NHS LOGISTICS,1010146968,42,
Department of Health,Salisbury NHS Foundation Trust,15/11/2019,MEDSURGCONS-OTHER,Medicine,NHS LOGISTICS,1010146968,21,
Department of Health,Salisbury NHS Foundation Trust,15/11/2019,MEDSURGCONS-OTHER,Medicine,NHS LOGISTICS,1010146968,63,
Department of Health,Salisbury NHS Foundation Trust,15/11/2019,MEDSURGCONS-OTHER,Medicine,NHS LOGISTICS,1010146968,42,
Department of Health,Salisbury NHS Foundation Trust,15/11/2019,MEDSURGCONS-OTHER,Medicine,NHS LOGISTICS,1010146968,47.5,
Department of Health,Salisbury NHS Foundation Trust,15/11/2019,MED PROSTH - PACEMAKERS,Medicine,NHS LOGISTICS,1010146968,1650,
Department of Health,Salisbury NHS Foundation Trust,15/11/2019,DRESSINGS - PRE STERILE,Musculo-Skeletal,NHS LOGISTICS,1010146968,6.1,
Department of Health,Salisbury NHS Foundation Trust,15/11/2019,DRESSINGS  -  PROCEDURE PACKS,Musculo-Skeletal,NHS LOGISTICS,1010146968,6.4,
Department of Health,Salisbury NHS Foundation Trust,15/11/2019,PAPER GENERAL STATIONERY SUNDRIES,Musculo-Skeletal,NHS LOGISTICS,1010146968,48.78,
Department of Health,Salisbury NHS Foundation Trust,15/11/2019,DRESSINGS - PRE STERILE,Musculo-Skeletal,NHS LOGISTICS,1010146968,29.2,
Department of Health,Salisbury NHS Foundation Trust,15/11/2019,PATIENT APPLIANCES,Musculo-Skeletal,NHS LOGISTICS,1010146968,640,
Department of Health,Salisbury NHS Foundation Trust,15/11/2019,SURGICAL INSTRUMENTS - GENERAL,Musculo-Skeletal,NHS LOGISTICS,1010146968,267.54,
Department of Health,Salisbury NHS Foundation Trust,15/11/2019,SURGICAL INSTRUMENTS - GENERAL,Musculo-Skeletal,NHS LOGISTICS,1010146968,267.54,
Department of Health,Salisbury NHS Foundation Trust,15/11/2019,SURGICAL INSTRUMENTS - GENERAL,Musculo-Skeletal,NHS LOGISTICS,1010146968,267.54,
Department of Health,Salisbury NHS Foundation Trust,15/11/2019,M & S EQUIPELECTEQUIPINST - OTHER,Clinical Support,NHS LOGISTICS,1010146968,18,
Department of Health,Salisbury NHS Foundation Trust,15/11/2019,DRESSINGS - PRE STERILE,Clinical Support,NHS LOGISTICS,1010146968,2.36,
Department of Health,Salisbury NHS Foundation Trust,15/11/2019,LAB EQUIP-LABORATORY APPARATUS,Clinical Support,NHS LOGISTICS,1010146968,5.08,
Department of Health,Salisbury NHS Foundation Trust,15/11/2019,MEDSURGCONS-OTHER,Clinical Support,NHS LOGISTICS,1010146968,6.38,
Department of Health,Salisbury NHS Foundation Trust,15/11/2019,PATIENT APPLIANCES,Clinical Support,NHS LOGISTICS,1010146968,9.98,
Department of Health,Salisbury NHS Foundation Trust,15/11/2019,SURGICAL INSTRUMENTS - DISPOSABLE,Clinical Support,NHS LOGISTICS,1010146968,11.25,
Department of Health,Salisbury NHS Foundation Trust,15/11/2019,DISPOSABLE THEATRE DRAPES WIPES,Clinical Support,NHS LOGISTICS,1010146968,2.93,
Department of Health,Salisbury NHS Foundation Trust,15/11/2019,DISPOSABLE THEATRE DRAPES WIPES,Clinical Support,NHS LOGISTICS,1010146968,10.6,
Department of Health,Salisbury NHS Foundation Trust,15/11/2019,TISSUES HAND TOWELS & TOILET PAPER,Surgery,NHS LOGISTICS,1010146968,3.66,
Department of Health,Salisbury NHS Foundation Trust,15/11/2019,TISSUES HAND TOWELS & TOILET PAPER,Surgery,NHS LOGISTICS,1010146968,10.53,
Department of Health,Salisbury NHS Foundation Trust,15/11/2019,MEDSURGCONS-OTHER,Surgery,NHS LOGISTICS,1010146968,1.53,
Department of Health,Salisbury NHS Foundation Trust,15/11/2019,MEDSURGCONS-OTHER,Surgery,NHS LOGISTICS,1010146968,2.39,
Department of Health,Salisbury NHS Foundation Trust,15/11/2019,DRESSINGS  -  PROCEDURE PACKS,Surgery,NHS LOGISTICS,1010146968,12.8,
Department of Health,Salisbury NHS Foundation Trust,15/11/2019,DISPOSABLE THEATRE DRAPES WIPES,Surgery,NHS LOGISTICS,1010146968,5.44,
Department of Health,Salisbury NHS Foundation Trust,15/11/2019,MEDSURGCONS-OTHER,Surgery,NHS LOGISTICS,1010146968,240,
Department of Health,Salisbury NHS Foundation Trust,15/11/2019,PAPER GENERAL STATIONERY SUNDRIES,Surgery,NHS LOGISTICS,1010146968,8.13,
Department of Health,Salisbury NHS Foundation Trust,15/11/2019,MEDSURGCONS-OTHER,Surgery,NHS LOGISTICS,1010146968,8.8,
Department of Health,Salisbury NHS Foundation Trust,15/11/2019,TISSUES HAND TOWELS & TOILET PAPER,Surgery,NHS LOGISTICS,1010146968,3.66,
Department of Health,Salisbury NHS Foundation Trust,15/11/2019,MEDSURGCONS-OTHER,Surgery,NHS LOGISTICS,1010146968,29.1,
Department of Health,Salisbury NHS Foundation Trust,15/11/2019,DRESSINGS  -  PROCEDURE PACKS,Surgery,NHS LOGISTICS,1010146968,12.4,
Department of Health,Salisbury NHS Foundation Trust,15/11/2019,DRESSINGS  -  PROCEDURE PACKS,Surgery,NHS LOGISTICS,1010146968,1.4,
Department of Health,Salisbury NHS Foundation Trust,15/11/2019,MEDSURGCONS-OTHER,Surgery,NHS LOGISTICS,1010146968,11.85,
Department of Health,Salisbury NHS Foundation Trust,15/11/2019,DRESSINGS - PRE STERILE,Surgery,NHS LOGISTICS,1010146968,0.72,
Department of Health,Salisbury NHS Foundation Trust,15/11/2019,NON DISPOSABLE BED LINEN,Surgery,NHS LOGISTICS,1010146968,2.32,
Department of Health,Salisbury NHS Foundation Trust,15/11/2019,OTHER MEDICAL SUPPLIES,Musculo-Skeletal,NHS LOGISTICS,1010146968,41,
Department of Health,Salisbury NHS Foundation Trust,15/11/2019,DRESSINGS - PRE STERILE,Musculo-Skeletal,NHS LOGISTICS,1010146968,11.9,
Department of Health,Salisbury NHS Foundation Trust,15/11/2019,MED SURG EQUIP REP MAINT CLEANING,Musculo-Skeletal,NHS LOGISTICS,1010146968,34.44,
Department of Health,Salisbury NHS Foundation Trust,15/11/2019,MEDSURGCONS-OTHER,Musculo-Skeletal,NHS LOGISTICS,1010146968,3.38,
Department of Health,Salisbury NHS Foundation Trust,15/11/2019,DRESSINGS - PRE STERILE,Musculo-Skeletal,NHS LOGISTICS,1010146968,2.22,
Department of Health,Salisbury NHS Foundation Trust,15/11/2019,DRESSINGS  -  PROCEDURE PACKS,Musculo-Skeletal,NHS LOGISTICS,1010146968,29,
Department of Health,Salisbury NHS Foundation Trust,15/11/2019,DRESSINGS  -  PROCEDURE PACKS,Musculo-Skeletal,NHS LOGISTICS,1010146968,2.8,
Department of Health,Salisbury NHS Foundation Trust,15/11/2019,MEDSURGCONS-OTHER,Musculo-Skeletal,NHS LOGISTICS,1010146968,5,
Department of Health,Salisbury NHS Foundation Trust,15/11/2019,MEDSURGCONS-OTHER,Musculo-Skeletal,NHS LOGISTICS,1010146968,5.1,
Department of Health,Salisbury NHS Foundation Trust,15/11/2019,OTHER MEDICAL SUPPLIES,Musculo-Skeletal,NHS LOGISTICS,1010146968,2.68,
